Workbook

Sheet Acerno_Cache_XXXXX (hidden)

Sheet 12.2018 Data
A1: Ferc Acct | B1: Expenditure Organization | C1: Service | D1: Jurisdiction | E1: Report Category | F1: Transaction Amt SUM | G1: Electric Amt SUM | H1: Gas North Amt SUM | I1: Gas South Amt SUM | J1: Not Assigned Amt SUM
A2: 920000 | B2: 000 | C2: CD | D2: AN | E2: OPER | F2: 1.78 | G2: 1.38 | H2: 0.4
A3: 920000 | B3: 000 | C3: CD | D3: AA | E3: OPER | F3: 264093.08 | G3: 185221.67 | H3: 54268.47 | I3: 24602.94
A4: 920000 | B4: 000 | C4: ZZ | D4: ZZ | E4: OPER | F4: 0 | J4: 0
A5: 920000 | B5: 000 | C5: ED | D5: AN | E5: OPER | F5: 2.62 | G5: 2.62
A6: 920000 | B6: A01 | C6: ED | D6: AN | E6: OPER | F6: 113582.74 | G6: 113582.74
A7: 920000 | B7: A02 | C7: CD | D7: AA | E7: OPER | F7: 237867.37 | G7: 166828.33 | H7: 48879.42 | I7: 22159.62
A8: 920000 | B8: A04 | C8: CD | D8: AA | E8: OPER | F8: 1582.12 | G8: 1109.62 | H8: 325.11 | I8: 147.39
A9: 920000 | B9: A07 | C9: CD | D9: AA | E9: OPER | F9: 1060.33 | G9: 743.66 | H9: 217.89 | I9: 98.78
A10: 920000 | B10: A19 | C10: CD | D10: WA | E10: OPER | F10: 14352.36 | G10: 11153.93 | H10: 3198.43
A11: 920000 | B11: A19 | C11: CD | D11: AA | E11: OPER | F11: 198058.83 | G11: 138908.54 | H11: 40699.05 | I11: 18451.24
A12: 920000 | B12: A19 | C12: CD | D12: AN | E12: OPER | F12: 40.63 | G12: 31.58 | H12: 9.05
A13: 920000 | B13: A39 | C13: CD | D13: AA | E13: OPER | F13: 8125 | G13: 5698.49 | H13: 1669.62 | I13: 756.89
A14: 920000 | B14: A50 | C14: CD | D14: AA | E14: OPER | F14: 1083.14 | G14: 759.65 | H14: 222.57 | I14: 100.92
A15: 920000 | B15: A54 | C15: ED | D15: WA | E15: OPER | F15: 42768.18 | G15: 42768.18
A16: 920000 | B16: A54 | C16: CD | D16: AA | E16: OPER | F16: 374025.04 | G16: 262322.48 | H16: 76858.42 | I16: 34844.14
A17: 920000 | B17: A56 | C17: CD | D17: AA | E17: OPER | F17: 286.05 | G17: 200.62 | H17: 58.78 | I17: 26.65
A18: 920000 | B18: A57 | C18: CD | D18: AA | E18: OPER | F18: 373396.5 | G18: 261881.66 | H18: 76729.22 | I18: 34785.62
A19: 920000 | B19: A57 | C19: ED | D19: AN | E19: OPER | F19: 46.85 | G19: 46.85
A20: 920000 | B20: A81 | C20: CD | D20: AA | E20: OPER | F20: 1240.09 | G20: 869.73 | H20: 254.83 | I20: 115.53
A21: 920000 | B21: A81 | C21: GD | D21: AA | E21: OPER | F21: 4451.32 | H21: 3051.91 | I21: 1399.41
A22: 920000 | B22: A82 | C22: CD | D22: AA | E22: OPER | F22: 324.02 | G22: 227.26 | H22: 66.58 | I22: 30.18
A23: 920000 | B23: B02 | C23: CD | D23: AA | E23: OPER | F23: 260531.42 | G23: 182723.62 | H23: 53536.69 | I23: 24271.11
A24: 920000 | B24: B04 | C24: CD | D24: AA | E24: OPER | F24: 2183.59 | G24: 1531.46 | H24: 448.7 | I24: 203.43
A25: 920000 | B25: B07 | C25: CD | D25: AA | E25: OPER | F25: 3398.03 | G25: 2383.23 | H25: 698.27 | I25: 316.53
A26: 920000 | B26: B08 | C26: CD | D26: AA | E26: OPER | F26: 326811.32 | G26: 229209.08 | H26: 67156.31 | I26: 30445.93
A27: 920000 | B27: B09 | C27: ED | D27: AN | E27: OPER | F27: 11141.32 | G27: 11141.32
A28: 920000 | B28: B09 | C28: CD | D28: AA | E28: OPER | F28: 808929.32 | G28: 567342.71 | H28: 166226.9 | I28: 75359.71
A29: 920000 | B29: B09 | C29: CD | D29: AN | E29: OPER | F29: 60428.77 | G29: 46962.23 | H29: 13466.54
A30: 920000 | B30: B16 | C30: CD | D30: AA | E30: OPER | F30: 58977.54 | G30: 41363.84 | H30: 12119.28 | I30: 5494.42
A31: 920000 | B31: B50 | C31: ED | D31: AN | E31: OPER | F31: 1500 | G31: 1500
A32: 920000 | B32: B50 | C32: CD | D32: AA | E32: OPER | F32: 4137.99 | G32: 2902.19 | H32: 850.32 | I32: 385.48
A33: 920000 | B33: B51 | C33: CD | D33: AA | E33: OPER | F33: 5651.02 | G33: 3963.34 | H33: 1161.23 | I33: 526.45
A34: 920000 | B34: B51 | C34: GD | D34: AA | E34: OPER | F34: 4741.6 | H34: 3250.93 | I34: 1490.67
A35: 920000 | B35: B52 | C35: GD | D35: AA | E35: OPER | F35: 153.02 | H35: 104.91 | I35: 48.11
A36: 920000 | B36: B54 | C36: GD | D36: AA | E36: OPER | F36: 975.06 | H36: 668.52 | I36: 306.54
A37: 920000 | B37: B54 | C37: CD | D37: AA | E37: OPER | F37: 218.81 | G37: 153.46 | H37: 44.97 | I37: 20.38
A38: 920000 | B38: C04 | C38: CD | D38: AA | E38: OPER | F38: 13770.94 | G38: 9658.24 | H38: 2829.8 | I38: 1282.9
A39: 920000 | B39: C07 | C39: CD | D39: AA | E39: OPER | F39: 6141.59 | G39: 4307.4 | H39: 1262.04 | I39: 572.15
A40: 920000 | B40: C08 | C40: CD | D40: AA | E40: OPER | F40: 97999.69 | G40: 68732.06 | H40: 20138 | I40: 9129.63
A41: 920000 | B41: C09 | C41: ED | D41: AN | E41: OPER | F41: 86583.6 | G41: 86583.6
A42: 920000 | B42: C09 | C42: CD | D42: AA | E42: OPER | F42: 192129.25 | G42: 134749.71 | H42: 39480.7 | I42: 17898.84
A43: 920000 | B43: C11 | C43: CD | D43: WA | E43: OPER | F43: 3692.94 | G43: 2869.96 | H43: 822.98
A44: 920000 | B44: C11 | C44: CD | D44: AA | E44: OPER | F44: 317035.92 | G44: 222353.17 | H44: 65147.7 | I44: 29535.05
A45: 920000 | B45: C19 | C45: CD | D45: AN | E45: OPER | F45: 317.5 | G45: 246.74 | H45: 70.76
A46: 920000 | B46: C19 | C46: ED | D46: AN | E46: OPER | F46: 2675.58 | G46: 2675.58
A47: 920000 | B47: C19 | C47: CD | D47: AA | E47: OPER | F47: 455591.96 | G47: 319529.26 | H47: 93619.58 | I47: 42443.12
A48: 920000 | B48: C50 | C48: CD | D48: AA | E48: OPER | F48: 2986.18 | G48: 2094.36 | H48: 613.63 | I48: 278.19
A49: 920000 | B49: C51 | C49: CD | D49: AA | E49: OPER | F49: 40433.22 | G49: 28357.81 | H49: 8308.63 | I49: 3766.78
A50: 920000 | B50: C53 | C50: CD | D50: AA | E50: OPER | F50: 902.22 | G50: 632.77 | H50: 185.4 | I50: 84.05
A51: 920000 | B51: C54 | C51: CD | D51: AA | E51: OPER | F51: 512940.11 | G51: 359750.53 | H51: 105404.05 | I51: 47785.53
A52: 920000 | B52: C56 | C52: CD | D52: AA | E52: OPER | F52: 2098.65 | G52: 1471.9 | H52: 431.26 | I52: 195.49
A53: 920000 | B53: C57 | C53: CD | D53: AA | E53: OPER | F53: 2355.92 | G53: 1652.33 | H53: 484.12 | I53: 219.47
A54: 920000 | B54: C59 | C54: CD | D54: AA | E54: OPER | F54: 104515.35 | G54: 73301.91 | H54: 21476.87 | I54: 9736.57
A55: 920000 | B55: D08 | C55: ED | D55: AN | E55: OPER | F55: -5919.49 | G55: -5919.49
A56: 920000 | B56: D08 | C56: CD | D56: AA | E56: OPER | F56: 43095.19 | G56: 30224.85 | H56: 8855.67 | I56: 4014.67
A57: 920000 | B57: D09 | C57: ED | D57: AN | E57: OPER | F57: 189444.9 | G57: 189444.9
A58: 920000 | B58: D50 | C58: CD | D58: AA | E58: OPER | F58: 67936.76 | G58: 47647.44 | H58: 13960.33 | I58: 6328.99
A59: 920000 | B59: D50 | C59: CD | D59: AN | E59: OPER | F59: 297.25 | G59: 231 | H59: 66.25
A60: 920000 | B60: D53 | C60: CD | D60: AA | E60: OPER | F60: 218.2 | G60: 153.04 | H60: 44.84 | I60: 20.32
A61: 920000 | B61: D53 | C61: CD | D61: AN | E61: OPER | F61: 1250 | G61: 971.44 | H61: 278.56
A62: 920000 | B62: D54 | C62: CD | D62: AA | E62: OPER | F62: 324306.4 | G62: 227452.28 | H62: 66641.67 | I62: 30212.45
A63: 920000 | B63: E01 | C63: CD | D63: AA | E63: OPER | F63: 2569452.58 | G63: 1802085.53 | H63: 527996.87 | I63: 239370.18
A64: 920000 | B64: E02 | C64: CD | D64: AA | E64: OPER | F64: 128433.26 | G64: 90076.67 | H64: 26391.75 | I64: 11964.84
A65: 920000 | B65: E07 | C65: ED | D65: AN | E65: OPER | F65: 2996.37 | G65: 2996.37
A66: 920000 | B66: E07 | C66: CD | D66: AA | E66: OPER | F66: 10556.29 | G66: 7403.62 | H66: 2169.18 | I66: 983.49
A67: 920000 | B67: E09 | C67: CD | D67: AA | E67: OPER | F67: 57551.34 | G67: 40363.64 | H67: 11826.2 | I67: 5361.5
A68: 920000 | B68: E14 | C68: CD | D68: AN | E68: OPER | F68: 42306.34 | G68: 32878.39 | H68: 9427.95
A69: 920000 | B69: E14 | C69: CD | D69: AA | E69: OPER | F69: 264427.26 | G69: 185456.12 | H69: 54337.17 | I69: 24633.97
A70: 920000 | B70: E14 | C70: ED | D70: AN | E70: OPER | F70: 33959.65 | G70: 33959.65
A71: 920000 | B71: E19 | C71: CD | D71: AN | E71: OPER | F71: 180.25 | G71: 140.09 | H71: 40.16
A72: 920000 | B72: E19 | C72: CD | D72: AA | E72: OPER | F72: 458166.88 | G72: 321335.42 | H72: 94148.96 | I72: 42682.5
A73: 920000 | B73: E50 | C73: CD | D73: AA | E73: OPER | F73: 10430.33 | G73: 7315.31 | H73: 2143.32 | I73: 971.7
A74: 920000 | B74: E51 | C74: CD | D74: AA | E74: OPER | F74: 46349.91 | G74: 32507.5 | H74: 9524.44 | I74: 4317.97
A75: 920000 | B75: E51 | C75: CD | D75: AN | E75: OPER | F75: 9123.05 | G75: 7089.98 | H75: 2033.07
A76: 920000 | B76: E55 | C76: CD | D76: AA | E76: OPER | F76: 13435.01 | G76: 9422.65 | H76: 2760.74 | I76: 1251.62
A77: 920000 | B77: F02 | C77: CD | D77: AA | E77: OPER | F77: 227595.27 | G77: 159623.99 | H77: 46768.69 | I77: 21202.59
A78: 920000 | B78: F08 | C78: CD | D78: AA | E78: OPER | F78: 461.7 | G78: 323.81 | H78: 94.87 | I78: 43.02
A79: 920000 | B79: F19 | C79: CD | D79: AA | E79: OPER | F79: 237705.74 | G79: 166714.91 | H79: 48846.16 | I79: 22144.67
A80: 920000 | B80: F39 | C80: CD | D80: AA | E80: OPER | F80: 25656.73 | G80: 17994.29 | H80: 5272.2 | I80: 2390.24
A81: 920000 | B81: F50 | C81: CD | D81: AA | E81: OPER | F81: 8501.49 | G81: 5962.51 | H81: 1746.97 | I81: 792.01
A82: 920000 | B82: F52 | C82: GD | D82: AA | E82: OPER | F82: 1129.62 | H82: 774.49 | I82: 355.13
A83: 920000 | B83: F53 | C83: CD | D83: WA | E83: OPER | F83: 9674.76 | G83: 7518.65 | H83: 2156.11
A84: 920000 | B84: F53 | C84: CD | D84: ID | E84: OPER | F84: 22903.4 | G84: 17799.38 | H84: 5104.02
A85: 920000 | B85: F54 | C85: CD | D85: AA | E85: OPER | F85: 397803.85 | G85: 278999.77 | H85: 81744.85 | I85: 37059.23
A86: 920000 | B86: F55 | C86: CD | D86: AA | E86: OPER | F86: 613489.41 | G86: 430270.77 | H86: 126066 | I86: 57152.64
A87: 920000 | B87: F55 | C87: ED | D87: AN | E87: OPER | F87: 6484.33 | G87: 6484.33
A88: 920000 | B88: F55 | C88: GD | D88: AA | E88: OPER | F88: 6484.33 | H88: 4445.78 | I88: 2038.55
A89: 920000 | B89: G02 | C89: CD | D89: AA | E89: OPER | F89: 249291.62 | G89: 174840.63 | H89: 51226.97 | I89: 23224.02
A90: 920000 | B90: G02 | C90: CD | D90: WA | E90: OPER | F90: 528.9 | G90: 411.03 | H90: 117.87
A91: 920000 | B91: G08 | C91: CD | D91: AA | E91: OPER | F91: 3570.9 | G91: 2504.46 | H91: 733.78 | I91: 332.66
A92: 920000 | B92: G39 | C92: CD | D92: AA | E92: OPER | F92: 15814.67 | G92: 11091.65 | H92: 3249.77 | I92: 1473.25
A93: 920000 | B93: G50 | C93: CD | D93: AA | E93: OPER | F93: 10900.58 | G93: 7645.14 | H93: 2239.96 | I93: 1015.48
A94: 920000 | B94: G51 | C94: CD | D94: AA | E94: OPER | F94: 8501.99 | G94: 5962.88 | H94: 1747.07 | I94: 792.04
A95: 920000 | B95: G53 | C95: CD | D95: ID | E95: OPER | F95: 59189.42 | G95: 45999.03 | H95: 13190.39
A96: 920000 | B96: G54 | C96: CD | D96: AA | E96: OPER | F96: 35870.19 | G96: 25157.55 | H96: 7370.98 | I96: 3341.66
A97: 920000 | B97: H02 | C97: CD | D97: AA | E97: OPER | F97: 170016.92 | G97: 119241.31 | H97: 34936.91 | I97: 15838.7
A98: 920000 | B98: H04 | C98: CD | D98: AA | E98: OPER | F98: 60.21 | G98: 42.23 | H98: 12.37 | I98: 5.61
A99: 920000 | B99: H07 | C99: CD | D99: AA | E99: OPER | F99: 24621.69 | G99: 17268.43 | H99: 5059.51 | I99: 2293.75
A100: 920000 | B100: H14 | C100: CD | D100: WA | E100: OPER | F100: 29962.56 | G100: 23285.45 | H100: 6677.11
A101: 920000 | B101: H14 | C101: CD | D101: AA | E101: OPER | F101: 129773.65 | G101: 91016.76 | H101: 26667.16 | I101: 12089.73
A102: 920000 | B102: H14 | C102: CD | D102: ID | E102: OPER | F102: 10213.05 | G102: 7937.17 | H102: 2275.88
A103: 920000 | B103: H51 | C103: CD | D103: AA | E103: OPER | F103: 716080.48 | G103: 502223.11 | H103: 147147.42 | I103: 66709.95
A104: 920000 | B104: H54 | C104: CD | D104: AA | E104: OPER | F104: 238497.14 | G104: 167270.06 | H104: 49008.85 | I104: 22218.23
A105: 920000 | B105: I02 | C105: CD | D105: AA | E105: OPER | F105: 556475.47 | G105: 390283.99 | H105: 114350.17 | I105: 51841.31
A106: 920000 | B106: I02 | C106: CD | D106: WA | E106: OPER | F106: 12614.16 | G106: 9803.09 | H106: 2811.07
A107: 920000 | B107: I08 | C107: CD | D107: AA | E107: OPER | F107: 180734.49 | G107: 126758.12 | H107: 37139.12 | I107: 16837.25
A108: 920000 | B108: I08 | C108: GD | D108: AA | E108: OPER | F108: 880.86 | H108: 603.94 | I108: 276.92
A109: 920000 | B109: I50 | C109: CD | D109: AA | E109: OPER | F109: 1632.12 | G109: 1144.68 | H109: 335.37 | I109: 152.07
A110: 920000 | B110: J02 | C110: CD | D110: AA | E110: OPER | F110: 750 | G110: 526.01 | H110: 154.12 | I110: 69.87
A111: 920000 | B111: J07 | C111: CD | D111: AA | E111: OPER | F111: 4996.78 | G111: 3504.5 | H111: 1026.8 | I111: 465.48
A112: 920000 | B112: J09 | C112: CD | D112: AA | E112: OPER | F112: 199616.61 | G112: 140001.16 | H112: 41019.27 | I112: 18596.18
A113: 920000 | B113: J50 | C113: CD | D113: ID | E113: OPER | F113: 565.3 | G113: 439.32 | H113: 125.98
A114: 920000 | B114: J50 | C114: CD | D114: AA | E114: OPER | F114: 235929.73 | G114: 165469.37 | H114: 48481.19 | I114: 21979.17
A115: 920000 | B115: J50 | C115: CD | D115: WA | E115: OPER | F115: 146897.96 | G115: 114161.78 | H115: 32736.18
A116: 920000 | B116: J51 | C116: CD | D116: AA | E116: OPER | F116: 5075.49 | G116: 3559.66 | H116: 1042.95 | I116: 472.88
A117: 920000 | B117: J51 | C117: ED | D117: AN | E117: OPER | F117: 1122.86 | G117: 1122.86
A118: 920000 | B118: J53 | C118: CD | D118: AA | E118: OPER | F118: 51595.68 | G118: 36186.64 | H118: 10602.42 | I118: 4806.62
A119: 920000 | B119: J54 | C119: CD | D119: AA | E119: OPER | F119: 537236.52 | G119: 376790.95 | H119: 110396.81 | I119: 50048.76
A120: 920000 | B120: K02 | C120: CD | D120: AA | E120: OPER | F120: 95418.63 | G120: 66921.89 | H120: 19607.58 | I120: 8889.16
A121: 920000 | B121: K19 | C121: CD | D121: AA | E121: OPER | F121: 176826.8 | G121: 124017.45 | H121: 36336.16 | I121: 16473.19
A122: 920000 | B122: K50 | C122: CD | D122: AA | E122: OPER | F122: 115721.17 | G122: 81161.04 | H122: 23779.51 | I122: 10780.62
A123: 920000 | B123: K51 | C123: CD | D123: AA | E123: OPER | F123: 12161.55 | G123: 8529.5 | H123: 2499.08 | I123: 1132.97
A124: 920000 | B124: K53 | C124: CD | D124: AA | E124: OPER | F124: 7235.12 | G124: 5074.35 | H124: 1486.75 | I124: 674.02
A125: 920000 | B125: L39 | C125: CD | D125: AA | E125: OPER | F125: 41816.9 | G125: 29328.28 | H125: 8592.94 | I125: 3895.68
A126: 920000 | B126: L50 | C126: CD | D126: AA | E126: OPER | F126: 1683.6 | G126: 1180.8 | H126: 345.97 | I126: 156.83
A127: 920000 | B127: L51 | C127: CD | D127: AA | E127: OPER | F127: 29051.82 | G127: 20375.52 | H127: 5969.85 | I127: 2706.45
A128: 920000 | B128: L51 | C128: CD | D128: AN | E128: OPER | F128: 229636.93 | G128: 178462.31 | H128: 51174.62
A129: 920000 | B129: L53 | C129: CD | D129: AA | E129: OPER | F129: 14098.76 | G129: 9888.16 | H129: 2897.15 | I129: 1313.45
A130: 920000 | B130: L54 | C130: CD | D130: AA | E130: OPER | F130: 150 | G130: 105.2 | H130: 30.82 | I130: 13.98
A131: 920000 | B131: M02 | C131: CD | D131: AA | E131: OPER | F131: 151486.97 | G131: 106245.46 | H131: 31129.03 | I131: 14112.48
A132: 920000 | B132: M07 | C132: CD | D132: AA | E132: OPER | F132: 320.1 | G132: 224.5 | H132: 65.78 | I132: 29.82
A133: 920000 | B133: M08 | C133: CD | D133: AA | E133: OPER | F133: 2756.97 | G133: 1933.6 | H133: 566.53 | I133: 256.84
A134: 920000 | B134: M09 | C134: CD | D134: AA | E134: OPER | F134: 53565.89 | G134: 37568.45 | H134: 11007.33 | I134: 4990.11
A135: 920000 | B135: M11 | C135: CD | D135: AA | E135: OPER | F135: 150576.25 | G135: 105606.63 | H135: 30941.94 | I135: 14027.68
A136: 920000 | B136: M19 | C136: ED | D136: AN | E136: OPER | F136: 3621.5 | G136: 3621.5
A137: 920000 | B137: M19 | C137: CD | D137: AN | E137: OPER | F137: 537.44 | G137: 417.66 | H137: 119.78
A138: 920000 | B138: M19 | C138: CD | D138: AA | E138: OPER | F138: 309168.94 | G138: 216835.59 | H138: 63531.17 | I138: 28802.18
A139: 920000 | B139: M54 | C139: CD | D139: AA | E139: OPER | F139: 1623.36 | G139: 1138.55 | H139: 333.58 | I139: 151.23
A140: 920000 | B140: N02 | C140: CD | D140: AA | E140: OPER | F140: 329095.22 | G140: 230810.98 | H140: 67625.78 | I140: 30658.46
A141: 920000 | B141: N08 | C141: CD | D141: AA | E141: OPER | F141: 1846.54 | G141: 1295.08 | H141: 379.44 | I141: 172.02
A142: 920000 | B142: N09 | C142: CD | D142: AA | E142: OPER | F142: 671537.5 | G142: 470982.78 | H142: 137994.11 | I142: 62560.61
A143: 920000 | B143: N50 | C143: CD | D143: AA | E143: OPER | F143: 45048.91 | G143: 31595.12 | H143: 9257.06 | I143: 4196.73
A144: 920000 | B144: P03 | C144: CD | D144: AA | E144: OPER | F144: 31021.68 | G144: 21757.06 | H144: 6374.67 | I144: 2889.95
A145: 920000 | B145: P07 | C145: ED | D145: AN | E145: OPER | F145: 6342.84 | G145: 6342.84
A146: 920000 | B146: P07 | C146: CD | D146: AA | E146: OPER | F146: 6719.12 | G146: 4712.45 | H146: 1380.71 | I146: 625.96
A147: 920000 | B147: P08 | C147: ED | D147: AN | E147: OPER | F147: 51747.9 | G147: 51747.9
A148: 920000 | B148: P08 | C148: CD | D148: WA | E148: OPER | F148: 3860.8 | G148: 3000.42 | H148: 860.38
A149: 920000 | B149: P08 | C149: CD | D149: AA | E149: OPER | F149: 25332.22 | G149: 17766.74 | H149: 5205.51 | I149: 2359.97
A150: 920000 | B150: P09 | C150: CD | D150: AA | E150: OPER | F150: 280317.18 | G150: 196600.55 | H150: 57602.46 | I150: 26114.17
A151: 920000 | B151: P50 | C151: CD | D151: AA | E151: OPER | F151: 108.54 | G151: 76.12 | H151: 22.3 | I151: 10.12
A152: 920000 | B152: P53 | C152: CD | D152: ID | E152: OPER | F152: 22207.15 | G152: 17258.38 | H152: 4948.77
A153: 920000 | B153: P53 | C153: CD | D153: WA | E153: OPER | F153: 32965.79 | G153: 25619.42 | H153: 7346.37
A154: 920000 | B154: P59 | C154: CD | D154: AA | E154: OPER | F154: 347334.45 | G154: 243603.06 | H154: 71373.84 | I154: 32357.55
A155: 920000 | B155: P99 | C155: ED | D155: AN | E155: OPER | F155: 1764.02 | G155: 1764.02
A156: 920000 | B156: P99 | C156: CD | D156: AA | E156: OPER | F156: 654200.73 | G156: 458823.74 | H156: 134431.8 | I156: 60945.19
A157: 920000 | B157: Q19 | C157: CD | D157: AA | E157: OPER | F157: 4146.75 | G157: 2908.35 | H157: 852.1 | I157: 386.3
A158: 920000 | B158: R07 | C158: CD | D158: AA | E158: OPER | F158: 6760.4 | G158: 4741.4 | H158: 1389.2 | I158: 629.8
A159: 920000 | B159: R08 | C159: CD | D159: AA | E159: OPER | F159: 4789.59 | G159: 3359.17 | H159: 984.22 | I159: 446.2
A160: 920000 | B160: R09 | C160: CD | D160: AA | E160: OPER | F160: 62995.38 | G160: 44181.82 | H160: 12944.89 | I160: 5868.67
A161: 920000 | B161: R11 | C161: CD | D161: AA | E161: OPER | F161: 20949.45 | G161: 14692.9 | H161: 4304.93 | I161: 1951.62
A162: 920000 | B162: R11 | C162: CD | D162: WA | E162: OPER | F162: 16194.83 | G162: 12585.82 | H162: 3609.01
A163: 920000 | B163: R19 | C163: CD | D163: AN | E163: OPER | F163: 109.38 | G163: 85 | H163: 24.38
A164: 920000 | B164: R19 | C164: ED | D164: AN | E164: OPER | F164: 850 | G164: 850
A165: 920000 | B165: R19 | C165: CD | D165: AA | E165: OPER | F165: 36484.45 | G165: 25588.38 | H165: 7497.18 | I165: 3398.89
A166: 920000 | B166: R51 | C166: CD | D166: AA | E166: OPER | F166: 3808.8 | G166: 2671.33 | H166: 782.64 | I166: 354.83
A167: 920000 | B167: R54 | C167: CD | D167: AA | E167: OPER | F167: 568987.6 | G167: 399059.42 | H167: 116921.29 | I167: 53006.89
A168: 920000 | B168: S03 | C168: CD | D168: AA | E168: OPER | F168: 1634.6 | G168: 1146.43 | H168: 335.89 | I168: 152.28
A169: 920000 | B169: S19 | C169: CD | D169: AA | E169: OPER | F169: 45606.27 | G169: 31985.94 | H169: 9371.63 | I169: 4248.7
A170: 920000 | B170: S39 | C170: CD | D170: AA | E170: OPER | F170: 959.42 | G170: 672.9 | H170: 197.15 | I170: 89.37
A171: 920000 | B171: S50 | C171: CD | D171: AA | E171: OPER | F171: 69488.02 | G171: 48735.46 | H171: 14279.11 | I171: 6473.45
A172: 920000 | B172: S51 | C172: ED | D172: AN | E172: OPER | F172: 1249.98 | G172: 1249.98
A173: 920000 | B173: S51 | C173: CD | D173: WA | E173: OPER | F173: 37.02 | G173: 28.77 | H173: 8.25
A174: 920000 | B174: S51 | C174: CD | D174: AA | E174: OPER | F174: 16627.91 | G174: 11661.99 | H174: 3416.89 | I174: 1549.03
A175: 920000 | B175: S51 | C175: CD | D175: AN | E175: OPER | F175: 3946.91 | G175: 3067.37 | H175: 879.54
A176: 920000 | B176: S52 | C176: CD | D176: AA | E176: OPER | F176: 31089.47 | G176: 21804.63 | H176: 6388.57 | I176: 2896.27
A177: 920000 | B177: S54 | C177: CD | D177: AA | E177: OPER | F177: 558050 | G177: 391388.48 | H177: 114673.65 | I177: 51987.87
A178: 920000 | B178: T08 | C178: CD | D178: AA | E178: OPER | F178: 10370.34 | G178: 7273.26 | H178: 2131 | I178: 966.08
A179: 920000 | B179: T19 | C179: CD | D179: AA | E179: OPER | F179: 259682.7 | G179: 182128.53 | H179: 53362.21 | I179: 24191.96
A180: 920000 | B180: T51 | C180: CD | D180: AA | E180: OPER | F180: 9794.77 | G180: 6869.58 | H180: 2012.73 | I180: 912.46
A181: 920000 | B181: T52 | C181: CD | D181: AA | E181: OPER | F181: 33574.23 | G181: 23547.31 | H181: 6899.16 | I181: 3127.76
A182: 920000 | B182: T52 | C182: CD | D182: WA | E182: OPER | F182: 4874.75 | G182: 3788.41 | H182: 1086.34
A183: 920000 | B183: T54 | C183: CD | D183: AA | E183: OPER | F183: 332877.46 | G183: 233463.6 | H183: 68402.96 | I183: 31010.9
A184: 920000 | B184: U01 | C184: CD | D184: AA | E184: OPER | F184: 521814.73 | G184: 365974.83 | H184: 107227.56 | I184: 48612.34
A185: 920000 | B185: V08 | C185: ED | D185: AN | E185: OPER | F185: 26919.88 | G185: 26919.88
A186: 920000 | B186: V08 | C186: CD | D186: WA | E186: OPER | F186: 194.12 | G186: 150.86 | H186: 43.26
A187: 920000 | B187: V08 | C187: CD | D187: AA | E187: OPER | F187: 139593.86 | G187: 97904.18 | H187: 28685.19 | I187: 13004.49
A188: 920000 | B188: V19 | C188: CD | D188: AA | E188: OPER | F188: 131044.8 | G188: 91908.18 | H188: 26928.42 | I188: 12208.2
A189: 920000 | B189: V50 | C189: GD | D189: OR | E189: OPER | F189: 51184.73 | I189: 51184.73
A190: 920000 | B190: W01 | C190: CD | D190: AA | E190: OPER | F190: 213944.69 | G190: 150050.18 | H190: 43963.46 | I190: 19931.05
A191: 920000 | B191: W01 | C191: ED | D191: AN | E191: OPER | F191: 377902.49 | G191: 377902.49
A192: 920000 | B192: W09 | C192: CD | D192: WA | E192: OPER | F192: 709.34 | G192: 551.26 | H192: 158.08
A193: 920000 | B193: W09 | C193: CD | D193: AA | E193: OPER | F193: 366384.36 | G193: 256963.63 | H193: 75288.34 | I193: 34132.39
A194: 920000 | B194: W39 | C194: CD | D194: WA | E194: OPER | F194: 2561.36 | G194: 1990.56 | H194: 570.8
A195: 920000 | B195: W39 | C195: CD | D195: AA | E195: OPER | F195: 62445.61 | G195: 43796.22 | H195: 12831.9 | I195: 5817.49
A196: 920000 | B196: X02 | C196: CD | D196: AA | E196: OPER | F196: 466235.64 | G196: 326994.35 | H196: 95806.82 | I196: 43434.47
A197: 920000 | B197: X09 | C197: CD | D197: AA | E197: OPER | F197: 64598.7 | G197: 45306.31 | H197: 13274.39 | I197: 6018
A198: 920000 | B198: X19 | C198: CD | D198: AN | E198: OPER | F198: 100.39 | G198: 78.02 | H198: 22.37
A199: 920000 | B199: X19 | C199: CD | D199: AA | E199: OPER | F199: 214395.69 | G199: 150366.42 | H199: 44056.2 | I199: 19973.07
A200: 920000 | B200: X39 | C200: CD | D200: AA | E200: OPER | F200: 54001.48 | G200: 37873.94 | H200: 11096.73 | I200: 5030.81
... 1190 more rows

Sheet A&G functionalization
A1: paste from Discoverer SQL
A2: SELECT O100173.EXPENDITURE_ORGANIZATION, O100173.FERC_ACCT, O100173.JURISDICTION, O100173.REPORT_CATEGORY, O100173.SERVICE, SUM(O100173.NOT_ASSIGNED_AMT), SUM(O100173.GAS_SOUTH_AMT), SUM(O100173.GAS_NORTH_AMT), SUM(O100173.ELECTRIC_AMT), SUM(O100173.TRANSACTION_AMT)
A4: FROM AVAEXTRACT.SUBLEDGER_TRANSACTION_VIEW O100173
A6: WHERE ( O100173.STATIND = 'DL' ) AND ( ( ( O100173.FERC_ACCT BETWEEN '920000' AND '935999' AND O100173.REPORT_CATEGORY = 'OPER' OR O100173.FERC_ACCT = '926400' AND O100173.REPORT_CATEGORY = 'NONE' ) ) ) AND ( O100173.COMPANY = '001' ) AND ( O100173.ACCOUNTING_PERIOD BETWEEN '200710' AND '200809' )
A8: GROUP BY O100173.EXPENDITURE_ORGANIZATION, O100173.FERC_ACCT, O100173.JURISDICTION, O100173.REPORT_CATEGORY, O100173.SERVICE
A10: ORDER BY O100173.FERC_ACCT ASC, O100173.EXPENDITURE_ORGANIZATION ASC, O100173.SERVICE ASC, O100173.JURISDICTION ASC
A12: ;
A13: from Discoverer query 'Scott A&G Detail by Rollup'
A14: (FERC between 920-935 and Report Cat = OPER) or (FERC In 926200,926240 and Report Cat = OTHER and Org is either X54 or NULL)
A15: Accounting Period between 201801 and 201812
A16: Company = 001
A17: Statind = DL | L17: =77111740+30590407 -> 107702147 | M17: from 12-mo End F&O
L18: =SUM(L22:L1410) -> 107702146.7 | M18: =SUM(M22:M1410) -> 77111744.93 | N18: =SUM(N22:N1410) -> 20805108.99 | O18: =SUM(O22:O1410) -> 9785292.74 | P18: =SUM(P22:P1410) -> 0
L19: =L18-M19 -> 0 | M19: =SUM(M18:P18) -> 107702146.7 | S19: Functional dollars | AI19: Function % of Total
S20: ALL SVCS | AI20: ALL SVCS
A21: Ferc Acct | B21: Expenditure Organization | C21: Service | D21: Jurisdiction | E21: Report Category | F21: Transaction Amt SUM | G21: Electric Amt SUM | H21: Gas North Amt SUM | I21: Gas South Amt SUM | J21: Not Assigned Amt SUM | K21: FERC | L21: Total | M21: Electric | N21: GasN | O21: GasS | P21: None | Q21: A&G Function | T21: 920 | U21: 921 | V21: 922 | W21: 923 | X21: 924 | Y21: 925 | Z21: 926 | AA21: 927 | AB21: 928 | AC21: 930 | AD21: 931 | AE21: 935 | AG21: Total | AJ21: 920 | AK21: 921 | AL21: 922 | AM21: 923 | AN21: 924 | AO21: 925 | AP21: 926 | AQ21: 927 | AR21: 928 | AS21: 930 | AT21: 931 | AU21: 935
A22: ='12.2018 Data'!A2 -> 920000 | B22: ='12.2018 Data'!B2 -> 000 | C22: ='12.2018 Data'!C2 -> CD | D22: ='12.2018 Data'!D2 -> AN | E22: ='12.2018 Data'!E2 -> OPER | F22: ='12.2018 Data'!F2 -> 1.78 | G22: ='12.2018 Data'!G2 -> 1.38 | H22: ='12.2018 Data'!H2 -> 0.4 | I22: ='12.2018 Data'!I2 -> 0 | J22: ='12.2018 Data'!J2 -> 0 | K22: =LEFT(A22,3) -> 920 | L22: =IF(ISNUMBER(F22),F22,0) -> 1.78 | M22: =IF(ISNUMBER(G22),G22,0) -> 1.38 | N22: 0.4 | O22: 0 | P22: 0 | Q22: =IF(ISNUMBER(MATCH($B22,'Org functional rollups'!$A:$A,0)),INDEX('Org functional rollups'!$D:$D,MATCH($B22,'Org functional rollups'!$A:$A,0)),0) -> Common | S22: Production | T22: =SUMPRODUCT(--($Q$22:$Q$1410=$S22),--($K$22:$K$1410=T$21&""),$L$22:$L$1410) -> 1001139.57 | U22: =SUMPRODUCT(--($Q$22:$Q$1410=$S22),--($K$22:$K$1410=U$21&""),$L$22:$L$1410) -> 213525.76 | V22: 277.71 | W22: 116047.22 | X22: 0 | Y22: 0 | Z22: 62120.42 | AA22: 0 | AB22: 2239230 | AC22: 125751.74 | AD22: =SUMPRODUCT(--($Q$22:$Q$1410=$S22),--($K$22:$K$1410=AD$21&""),$L$22:$L$1410) -> 0 | AE22: 12943.04 | AG22: =SUM(T22:AF22) -> 3771035.46 | AH22: =AG22/AG$28 -> 0.03501411352 | AI22: Production | AJ22: =T22/T$28 -> 0.0209778945 | AK22: =U22/U$28 -> 0.03201759478 | AL22: -0.001974607757 | AM22: 0.009080667065 | AN22: 0 | AO22: 0 | AP22: 0.02552368992 | AQ22: 0 | AR22: 0.2758977162 | AS22: 0.02174371315 | AT22: 0 | AU22: 0.0007428809389
A23: ='12.2018 Data'!A3 -> 920000 | B23: ='12.2018 Data'!B3 -> 000 | C23: ='12.2018 Data'!C3 -> CD | D23: ='12.2018 Data'!D3 -> AA | E23: ='12.2018 Data'!E3 -> OPER | F23: ='12.2018 Data'!F3 -> 264093.08 | G23: ='12.2018 Data'!G3 -> 185221.67 | H23: ='12.2018 Data'!H3 -> 54268.47 | I23: ='12.2018 Data'!I3 -> 24602.94 | J23: ='12.2018 Data'!J3 -> 0 | K23: =LEFT(A23,3) -> 920 | L23: =IF(ISNUMBER(F23),F23,0) -> 264093.08 | M23: 185221.67 | N23: 54268.47 | O23: 24602.94 | P23: 0 | Q23: =IF(ISNUMBER(MATCH($B23,'Org functional rollups'!$A:$A,0)),INDEX('Org functional rollups'!$D:$D,MATCH($B23,'Org functional rollups'!$A:$A,0)),0) -> Common | S23: Transmission | T23: =SUMPRODUCT(--($Q$22:$Q$1410=$S23),--($K$22:$K$1410=T$21&""),$L$22:$L$1410) -> 192291.3 | U23: 19439.82 | V23: 0 | W23: 0 | X23: 0 | Y23: 0 | Z23: 9001.64 | AA23: 0 | AB23: 454358.08 | AC23: 969.96 | AD23: 0 | AE23: 796165.25 | AG23: =SUM(T23:AF23) -> 1472226.05 | AH23: =AG23/AG$28 -> 0.01366963811 | AI23: Transmission | AJ23: =T23/T$28 -> 0.004029274963 | AK23: 0.002914947028 | AL23: 0 | AM23: 0 | AN23: 0 | AO23: 0 | AP23: 0.00369854338 | AQ23: 0 | AR23: 0.05598190298 | AS23: 0.0001677156277 | AT23: 0 | AU23: 0.04569683695
A24: ='12.2018 Data'!A4 -> 920000 | B24: ='12.2018 Data'!B4 -> 000 | C24: ='12.2018 Data'!C4 -> ZZ | D24: ='12.2018 Data'!D4 -> ZZ | E24: ='12.2018 Data'!E4 -> OPER | F24: ='12.2018 Data'!F4 -> 0 | G24: ='12.2018 Data'!G4 -> 0 | H24: ='12.2018 Data'!H4 -> 0 | I24: ='12.2018 Data'!I4 -> 0 | J24: ='12.2018 Data'!J4 -> 0 | K24: 920 | L24: 0 | M24: 0 | N24: 0 | O24: 0 | P24: 0 | Q24: =IF(ISNUMBER(MATCH($B24,'Org functional rollups'!$A:$A,0)),INDEX('Org functional rollups'!$D:$D,MATCH($B24,'Org functional rollups'!$A:$A,0)),0) -> Common | S24: Distribution | T24: 2282349.83 | U24: 763992.04 | V24: 0 | W24: 575862.7 | X24: 0 | Y24: 85 | Z24: 598930.88 | AA24: 1200 | AB24: 177661.25 | AC24: 1121907.49 | AD24: 0 | AE24: 425614.11 | AG24: =SUM(T24:AF24) -> 5947603.3 | AH24: =AG24/AG$28 -> 0.05522357435 | AI24: Distribution | AJ24: =T24/T$28 -> 0.04782439469 | AK24: 0.1145584849 | AL24: 0 | AM24: 0.04506111783 | AN24: 0 | AO24: 1.848508592e-05 | AP24: 0.2460853624 | AQ24: 1 | AR24: 0.0218898162 | AS24: 0.1939888437 | AT24: 0 | AU24: 0.0244286203
A25: ='12.2018 Data'!A5 -> 920000 | B25: ='12.2018 Data'!B5 -> 000 | C25: ='12.2018 Data'!C5 -> ED | D25: ='12.2018 Data'!D5 -> AN | E25: ='12.2018 Data'!E5 -> OPER | F25: ='12.2018 Data'!F5 -> 2.62 | G25: ='12.2018 Data'!G5 -> 2.62 | H25: ='12.2018 Data'!H5 -> 0 | I25: ='12.2018 Data'!I5 -> 0 | J25: ='12.2018 Data'!J5 -> 0 | K25: 920 | L25: 2.62 | M25: 2.62 | N25: 0 | O25: 0 | P25: 0 | Q25: =IF(ISNUMBER(MATCH($B25,'Org functional rollups'!$A:$A,0)),INDEX('Org functional rollups'!$D:$D,MATCH($B25,'Org functional rollups'!$A:$A,0)),0) -> Common | S25: Customer | T25: 1369025.86 | U25: 220373.25 | V25: 0 | W25: 1561.94 | X25: 0 | Y25: 0 | Z25: 63900.31 | AA25: 0 | AB25: 3015.85 | AC25: 231008.3 | AD25: 0 | AE25: 3594.08 | AG25: =SUM(T25:AF25) -> 1892479.59 | AH25: =AG25/AG$28 -> 0.01757169772 | AI25: Customer | AJ25: =T25/T$28 -> 0.02868658968 | AK25: 0.03304435689 | AL25: 0 | AM25: 0.0001222214295 | AN25: 0 | AO25: 0 | AP25: 0.02625500115 | AQ25: 0 | AR25: 0.0003715858252 | AS25: 0.03994360801 | AT25: 0 | AU25: 0.0002062864308
A26: ='12.2018 Data'!A6 -> 920000 | B26: ='12.2018 Data'!B6 -> A01 | C26: ='12.2018 Data'!C6 -> ED | D26: ='12.2018 Data'!D6 -> AN | E26: ='12.2018 Data'!E6 -> OPER | F26: ='12.2018 Data'!F6 -> 113582.74 | G26: ='12.2018 Data'!G6 -> 113582.74 | H26: ='12.2018 Data'!H6 -> 0 | I26: ='12.2018 Data'!I6 -> 0 | J26: ='12.2018 Data'!J6 -> 0 | K26: 920 | L26: 113582.74 | M26: 113582.74 | N26: 0 | O26: 0 | P26: 0 | Q26: =IF(ISNUMBER(MATCH($B26,'Org functional rollups'!$A:$A,0)),INDEX('Org functional rollups'!$D:$D,MATCH($B26,'Org functional rollups'!$A:$A,0)),0) -> Production | S26: Common | T26: 42878742.16 | U26: 5451682.26 | V26: -140918.3 | W26: 12086120.12 | X26: 1729758.22 | Y26: 4598216.59 | Z26: 1699880.58 | AA26: 0 | AB26: 5241894.79 | AC26: 4303723.39 | AD26: 583548.1 | AE26: 16184448.49 | AG26: =SUM(T26:AF26) -> 94617096.4 | AH26: =AG26/AG$28 -> 0.8785209763 | AI26: Common | AJ26: =T26/T$28 -> 0.8984818462 | AK26: 0.8174646164 | AL26: 1.001974608 | AM26: 0.9457359937 | AN26: 1 | AO26: 0.9999815149 | AP26: 0.6984374032 | AQ26: 0 | AR26: 0.6458589788 | AS26: 0.7441561195 | AT26: 1 | AU26: 0.9289253754
A27: ='12.2018 Data'!A7 -> 920000 | B27: ='12.2018 Data'!B7 -> A02 | C27: ='12.2018 Data'!C7 -> CD | D27: ='12.2018 Data'!D7 -> AA | E27: ='12.2018 Data'!E7 -> OPER | F27: ='12.2018 Data'!F7 -> 237867.37 | G27: ='12.2018 Data'!G7 -> 166828.33 | H27: ='12.2018 Data'!H7 -> 48879.42 | I27: ='12.2018 Data'!I7 -> 22159.62 | J27: ='12.2018 Data'!J7 -> 0 | K27: 920 | L27: 237867.37 | M27: 166828.33 | N27: 48879.42 | O27: 22159.62 | P27: 0 | Q27: =IF(ISNUMBER(MATCH($B27,'Org functional rollups'!$A:$A,0)),INDEX('Org functional rollups'!$D:$D,MATCH($B27,'Org functional rollups'!$A:$A,0)),0) -> Common
A28: ='12.2018 Data'!A8 -> 920000 | B28: ='12.2018 Data'!B8 -> A04 | C28: ='12.2018 Data'!C8 -> CD | D28: ='12.2018 Data'!D8 -> AA | E28: ='12.2018 Data'!E8 -> OPER | F28: ='12.2018 Data'!F8 -> 1582.12 | G28: ='12.2018 Data'!G8 -> 1109.62 | H28: ='12.2018 Data'!H8 -> 325.11 | I28: ='12.2018 Data'!I8 -> 147.39 | J28: ='12.2018 Data'!J8 -> 0 | K28: 920 | L28: 1582.12 | M28: 1109.62 | N28: 325.11 | O28: 147.39 | P28: 0 | Q28: =IF(ISNUMBER(MATCH($B28,'Org functional rollups'!$A:$A,0)),INDEX('Org functional rollups'!$D:$D,MATCH($B28,'Org functional rollups'!$A:$A,0)),0) -> Production | S28: Total | T28: =SUM(T22:T27) -> 47723548.72 | U28: =SUM(U22:U27) -> 6669013.13 | V28: -140640.59 | W28: 12779591.98 | X28: 1729758.22 | Y28: 4598301.59 | Z28: 2433833.83 | AA28: 1200 | AB28: 8116159.97 | AC28: 5783360.88 | AD28: 583548.1 | AE28: 17422764.97 | AG28: 107700440.8 | AI28: Total | AJ28: =SUM(AJ22:AJ27) -> 1 | AK28: =SUM(AK22:AK27) -> 1 | AL28: 1 | AM28: 1 | AN28: 1 | AO28: 1 | AP28: 1 | AQ28: 1 | AR28: 1 | AS28: 1 | AT28: 1 | AU28: 1
A29: ='12.2018 Data'!A9 -> 920000 | B29: ='12.2018 Data'!B9 -> A07 | C29: ='12.2018 Data'!C9 -> CD | D29: ='12.2018 Data'!D9 -> AA | E29: ='12.2018 Data'!E9 -> OPER | F29: ='12.2018 Data'!F9 -> 1060.33 | G29: ='12.2018 Data'!G9 -> 743.66 | H29: ='12.2018 Data'!H9 -> 217.89 | I29: ='12.2018 Data'!I9 -> 98.78 | J29: ='12.2018 Data'!J9 -> 0 | K29: 920 | L29: 1060.33 | M29: 743.66 | N29: 217.89 | O29: 98.78 | P29: 0 | Q29: =IF(ISNUMBER(MATCH($B29,'Org functional rollups'!$A:$A,0)),INDEX('Org functional rollups'!$D:$D,MATCH($B29,'Org functional rollups'!$A:$A,0)),0) -> Production | AF29: check | AG29: =AG28-M19 -> -1705.86
A30: ='12.2018 Data'!A10 -> 920000 | B30: ='12.2018 Data'!B10 -> A19 | C30: ='12.2018 Data'!C10 -> CD | D30: ='12.2018 Data'!D10 -> WA | E30: ='12.2018 Data'!E10 -> OPER | F30: ='12.2018 Data'!F10 -> 14352.36 | G30: ='12.2018 Data'!G10 -> 11153.93 | H30: ='12.2018 Data'!H10 -> 3198.43 | I30: ='12.2018 Data'!I10 -> 0 | J30: ='12.2018 Data'!J10 -> 0 | K30: 920 | L30: 14352.36 | M30: 11153.93 | N30: 3198.43 | O30: 0 | P30: 0 | Q30: =IF(ISNUMBER(MATCH($B30,'Org functional rollups'!$A:$A,0)),INDEX('Org functional rollups'!$D:$D,MATCH($B30,'Org functional rollups'!$A:$A,0)),0) -> Common | X30: Tangible Plant | AB30: Separate Analysis
A31: ='12.2018 Data'!A11 -> 920000 | B31: ='12.2018 Data'!B11 -> A19 | C31: ='12.2018 Data'!C11 -> CD | D31: ='12.2018 Data'!D11 -> AA | E31: ='12.2018 Data'!E11 -> OPER | F31: ='12.2018 Data'!F11 -> 198058.83 | G31: ='12.2018 Data'!G11 -> 138908.54 | H31: ='12.2018 Data'!H11 -> 40699.05 | I31: ='12.2018 Data'!I11 -> 18451.24 | J31: ='12.2018 Data'!J11 -> 0 | K31: 920 | L31: 198058.83 | M31: 138908.54 | N31: 40699.05 | O31: 18451.24 | P31: 0 | Q31: =IF(ISNUMBER(MATCH($B31,'Org functional rollups'!$A:$A,0)),INDEX('Org functional rollups'!$D:$D,MATCH($B31,'Org functional rollups'!$A:$A,0)),0) -> Common | S31: ELECTRIC | AI31: ELECTRIC
A32: ='12.2018 Data'!A12 -> 920000 | B32: ='12.2018 Data'!B12 -> A19 | C32: ='12.2018 Data'!C12 -> CD | D32: ='12.2018 Data'!D12 -> AN | E32: ='12.2018 Data'!E12 -> OPER | F32: ='12.2018 Data'!F12 -> 40.63 | G32: ='12.2018 Data'!G12 -> 31.58 | H32: ='12.2018 Data'!H12 -> 9.05 | I32: ='12.2018 Data'!I12 -> 0 | J32: ='12.2018 Data'!J12 -> 0 | K32: 920 | L32: 40.63 | M32: 31.58 | N32: 9.05 | O32: 0 | P32: 0 | Q32: =IF(ISNUMBER(MATCH($B32,'Org functional rollups'!$A:$A,0)),INDEX('Org functional rollups'!$D:$D,MATCH($B32,'Org functional rollups'!$A:$A,0)),0) -> Common | T32: 920 | U32: 921 | V32: 922 | W32: 923 | X32: 924 | Y32: 925 | Z32: 926 | AA32: 927 | AB32: 928 | AC32: 930 | AD32: 931 | AE32: 935 | AG32: Total | AJ32: 920 | AK32: 921 | AL32: 922 | AM32: 923 | AN32: 924 | AO32: 925 | AP32: 926 | AQ32: 927 | AR32: 928 | AS32: 930 | AT32: 931 | AU32: 935
A33: ='12.2018 Data'!A13 -> 920000 | B33: ='12.2018 Data'!B13 -> A39 | C33: ='12.2018 Data'!C13 -> CD | D33: ='12.2018 Data'!D13 -> AA | E33: ='12.2018 Data'!E13 -> OPER | F33: ='12.2018 Data'!F13 -> 8125 | G33: ='12.2018 Data'!G13 -> 5698.49 | H33: ='12.2018 Data'!H13 -> 1669.62 | I33: ='12.2018 Data'!I13 -> 756.89 | J33: ='12.2018 Data'!J13 -> 0 | K33: 920 | L33: 8125 | M33: 5698.49 | N33: 1669.62 | O33: 756.89 | P33: 0 | Q33: =IF(ISNUMBER(MATCH($B33,'Org functional rollups'!$A:$A,0)),INDEX('Org functional rollups'!$D:$D,MATCH($B33,'Org functional rollups'!$A:$A,0)),0) -> Common | S33: Production | T33: =SUMPRODUCT(--($Q$22:$Q$1410=$S33),--($K$22:$K$1410=T$21&""),$M$22:$M$1410) -> 656444.21 | U33: =SUMPRODUCT(--($Q$22:$Q$1410=$S33),--($K$22:$K$1410=U$21&""),$M$22:$M$1410) -> 174601.47 | V33: 215.83 | W33: 115077.77 | X33: 0 | Y33: 0 | Z33: 49609.12 | AA33: 0 | AB33: 2230568.34 | AC33: 107152.65 | AD33: 0 | AE33: 12238.7 | AG33: =SUM(T33:AF33) -> 3345908.09 | AI33: Production | AJ33: =IF(T$39=0,0,T33/T$39) -> 0.01940062706 | AK33: =IF(U$39=0,0,U33/U$39) -> 0.03714221072 | AL33: -0.001783745396 | AM33: 0.01273782189 | AN33: 0 | AO33: 0 | AP33: 0.02921094572 | AQ33: 0 | AR33: 0.3613625725 | AS33: 0.0256782703 | AT33: 0 | AU33: 0.0009718139184
A34: ='12.2018 Data'!A14 -> 920000 | B34: ='12.2018 Data'!B14 -> A50 | C34: ='12.2018 Data'!C14 -> CD | D34: ='12.2018 Data'!D14 -> AA | E34: ='12.2018 Data'!E14 -> OPER | F34: ='12.2018 Data'!F14 -> 1083.14 | G34: ='12.2018 Data'!G14 -> 759.65 | H34: ='12.2018 Data'!H14 -> 222.57 | I34: ='12.2018 Data'!I14 -> 100.92 | J34: ='12.2018 Data'!J14 -> 0 | K34: 920 | L34: 1083.14 | M34: 759.65 | N34: 222.57 | O34: 100.92 | P34: 0 | Q34: =IF(ISNUMBER(MATCH($B34,'Org functional rollups'!$A:$A,0)),INDEX('Org functional rollups'!$D:$D,MATCH($B34,'Org functional rollups'!$A:$A,0)),0) -> Common | S34: Transmission | T34: =SUMPRODUCT(--($Q$22:$Q$1410=$S34),--($K$22:$K$1410=T$21&""),$M$22:$M$1410) -> 191441.23 | U34: 14230.25 | V34: 0 | W34: 0 | X34: 0 | Y34: 0 | Z34: 8133.13 | AA34: 0 | AB34: 453944.02 | AC34: 931.93 | AD34: 0 | AE34: 795984.32 | AG34: =SUM(T34:AF34) -> 1464664.88 | AI34: Transmission | AJ34: =IF(T$39=0,0,T34/T$39) -> 0.005657875949 | AK34: 0.003027139142 | AL34: 0 | AM34: 0 | AN34: 0 | AO34: 0 | AP34: 0.004788966605 | AQ34: 0 | AR34: 0.07354106838 | AS34: 0.0002233295251 | AT34: 0 | AU34: 0.06320513135
A35: ='12.2018 Data'!A15 -> 920000 | B35: ='12.2018 Data'!B15 -> A54 | C35: ='12.2018 Data'!C15 -> ED | D35: ='12.2018 Data'!D15 -> WA | E35: ='12.2018 Data'!E15 -> OPER | F35: ='12.2018 Data'!F15 -> 42768.18 | G35: ='12.2018 Data'!G15 -> 42768.18 | H35: ='12.2018 Data'!H15 -> 0 | I35: ='12.2018 Data'!I15 -> 0 | J35: ='12.2018 Data'!J15 -> 0 | K35: 920 | L35: 42768.18 | M35: 42768.18 | N35: 0 | O35: 0 | P35: 0 | Q35: =IF(ISNUMBER(MATCH($B35,'Org functional rollups'!$A:$A,0)),INDEX('Org functional rollups'!$D:$D,MATCH($B35,'Org functional rollups'!$A:$A,0)),0) -> Customer | S35: Distribution | T35: 1593312.01 | U35: 520216.14 | V35: 0 | W35: 408137.7 | X35: 0 | Y35: 85 | Z35: 401142.27 | AA35: 1200 | AB35: 94367.85 | AC35: 767633.73 | AD35: 0 | AE35: 327872.49 | AG35: =SUM(T35:AF35) -> 4113967.19 | AI35: Distribution | AJ35: =IF(T$39=0,0,T35/T$39) -> 0.04708892489 | AK35: 0.1106633151 | AL35: 0 | AM35: 0.045176278 | AN35: 0 | AO35: 2.558457003e-05 | AP35: 0.2362014298 | AQ35: 1 | AR35: 0.01528803598 | AS35: 0.1839572462 | AT35: 0 | AU35: 0.02603471359
A36: ='12.2018 Data'!A16 -> 920000 | B36: ='12.2018 Data'!B16 -> A54 | C36: ='12.2018 Data'!C16 -> CD | D36: ='12.2018 Data'!D16 -> AA | E36: ='12.2018 Data'!E16 -> OPER | F36: ='12.2018 Data'!F16 -> 374025.04 | G36: ='12.2018 Data'!G16 -> 262322.48 | H36: ='12.2018 Data'!H16 -> 76858.42 | I36: ='12.2018 Data'!I16 -> 34844.14 | J36: ='12.2018 Data'!J16 -> 0 | K36: 920 | L36: 374025.04 | M36: 262322.48 | N36: 76858.42 | O36: 34844.14 | P36: 0 | Q36: =IF(ISNUMBER(MATCH($B36,'Org functional rollups'!$A:$A,0)),INDEX('Org functional rollups'!$D:$D,MATCH($B36,'Org functional rollups'!$A:$A,0)),0) -> Customer | S36: Customer | T36: 978053.71 | U36: 154595.05 | V36: 0 | W36: 1206.74 | X36: 0 | Y36: 0 | Z36: 44816.87 | AA36: 0 | AB36: 2029.02 | AC36: 157095.77 | AD36: 0 | AE36: 2712.55 | AG36: =SUM(T36:AF36) -> 1340509.71 | AI36: Customer | AJ36: =IF(T$39=0,0,T36/T$39) -> 0.02890551091 | AK36: 0.03288633208 | AL36: 0 | AM36: 0.0001335726195 | AN36: 0 | AO36: 0 | AP36: 0.02638916306 | AQ36: 0 | AR36: 0.0003287107925 | AS36: 0.03764673711 | AT36: 0 | AU36: 0.0002153900205
A37: ='12.2018 Data'!A17 -> 920000 | B37: ='12.2018 Data'!B17 -> A56 | C37: ='12.2018 Data'!C17 -> CD | D37: ='12.2018 Data'!D17 -> AA | E37: ='12.2018 Data'!E17 -> OPER | F37: ='12.2018 Data'!F17 -> 286.05 | G37: ='12.2018 Data'!G17 -> 200.62 | H37: ='12.2018 Data'!H17 -> 58.78 | I37: ='12.2018 Data'!I17 -> 26.65 | J37: ='12.2018 Data'!J17 -> 0 | K37: 920 | L37: 286.05 | M37: 200.62 | N37: 58.78 | O37: 26.65 | P37: 0 | Q37: =IF(ISNUMBER(MATCH($B37,'Org functional rollups'!$A:$A,0)),INDEX('Org functional rollups'!$D:$D,MATCH($B37,'Org functional rollups'!$A:$A,0)),0) -> Transmission | S37: Common | T37: 30416985.57 | U37: 3837247.71 | V37: -121214.04 | W37: 8509914.35 | X37: 1281469.47 | Y37: 3322229.97 | Z37: 1194604.46 | AA37: 0 | AB37: 3391750.89 | AC37: 3140077.97 | AD37: 417574.26 | AE37: 11454858.04 | AG37: =SUM(T37:AF37) -> 66845498.65 | AI37: Common | AJ37: =IF(T$39=0,0,T37/T$39) -> 0.8989470612 | AK37: 0.8162810029 | AL37: 1.001783745 | AM37: 0.9419523275 | AN37: 1 | AO37: 0.9999744154 | AP37: 0.7034094948 | AQ37: 0 | AR37: 0.5494796124 | AS37: 0.7524944169 | AT37: 1 | AU37: 0.9095729511
A38: ='12.2018 Data'!A18 -> 920000 | B38: ='12.2018 Data'!B18 -> A57 | C38: ='12.2018 Data'!C18 -> CD | D38: ='12.2018 Data'!D18 -> AA | E38: ='12.2018 Data'!E18 -> OPER | F38: ='12.2018 Data'!F18 -> 373396.5 | G38: ='12.2018 Data'!G18 -> 261881.66 | H38: ='12.2018 Data'!H18 -> 76729.22 | I38: ='12.2018 Data'!I18 -> 34785.62 | J38: ='12.2018 Data'!J18 -> 0 | K38: 920 | L38: 373396.5 | M38: =IF(ISNUMBER(G38),G38,0) -> 261881.66 | N38: =IF(ISNUMBER(H38),H38,0) -> 76729.22 | O38: =IF(ISNUMBER(I38),I38,0) -> 34785.62 | P38: =IF(ISNUMBER(J38),J38,0) -> 0 | Q38: =IF(ISNUMBER(MATCH($B38,'Org functional rollups'!$A:$A,0)),INDEX('Org functional rollups'!$D:$D,MATCH($B38,'Org functional rollups'!$A:$A,0)),0) -> Common
A39: ='12.2018 Data'!A19 -> 920000 | B39: ='12.2018 Data'!B19 -> A57 | C39: ='12.2018 Data'!C19 -> ED | D39: ='12.2018 Data'!D19 -> AN | E39: ='12.2018 Data'!E19 -> OPER | F39: ='12.2018 Data'!F19 -> 46.85 | G39: ='12.2018 Data'!G19 -> 46.85 | H39: ='12.2018 Data'!H19 -> 0 | I39: ='12.2018 Data'!I19 -> 0 | J39: ='12.2018 Data'!J19 -> 0 | K39: 920 | L39: 46.85 | M39: 46.85 | N39: 0 | O39: 0 | P39: 0 | Q39: =IF(ISNUMBER(MATCH($B39,'Org functional rollups'!$A:$A,0)),INDEX('Org functional rollups'!$D:$D,MATCH($B39,'Org functional rollups'!$A:$A,0)),0) -> Common | S39: Total | T39: =SUM(T33:T38) -> 33836236.73 | U39: 4700890.62 | V39: -120998.21 | W39: 9034336.56 | X39: 1281469.47 | Y39: 3322314.97 | Z39: 1698305.85 | AA39: 1200 | AB39: 6172660.12 | AC39: 4172892.05 | AD39: 417574.26 | AE39: 12593666.1 | AG39: =SUM(AG33:AG38) -> 77110548.52 | AI39: Total | AJ39: =SUM(AJ33:AJ38) -> 1 | AK39: 1 | AL39: 1 | AM39: 1 | AN39: 1 | AO39: 1 | AP39: 1 | AQ39: 1 | AR39: 1 | AS39: 1 | AT39: 1 | AU39: 1
A40: ='12.2018 Data'!A20 -> 920000 | B40: ='12.2018 Data'!B20 -> A81 | C40: ='12.2018 Data'!C20 -> CD | D40: ='12.2018 Data'!D20 -> AA | E40: ='12.2018 Data'!E20 -> OPER | F40: ='12.2018 Data'!F20 -> 1240.09 | G40: ='12.2018 Data'!G20 -> 869.73 | H40: ='12.2018 Data'!H20 -> 254.83 | I40: ='12.2018 Data'!I20 -> 115.53 | J40: ='12.2018 Data'!J20 -> 0 | K40: 920 | L40: 1240.09 | M40: 869.73 | N40: 254.83 | O40: 115.53 | P40: 0 | Q40: =IF(ISNUMBER(MATCH($B40,'Org functional rollups'!$A:$A,0)),INDEX('Org functional rollups'!$D:$D,MATCH($B40,'Org functional rollups'!$A:$A,0)),0) -> Distribution | AF40: check | AG40: =AG39-M18 -> -1196.41
A41: ='12.2018 Data'!A21 -> 920000 | B41: ='12.2018 Data'!B21 -> A81 | C41: ='12.2018 Data'!C21 -> GD | D41: ='12.2018 Data'!D21 -> AA | E41: ='12.2018 Data'!E21 -> OPER | F41: ='12.2018 Data'!F21 -> 4451.32 | G41: ='12.2018 Data'!G21 -> 0 | H41: ='12.2018 Data'!H21 -> 3051.91 | I41: ='12.2018 Data'!I21 -> 1399.41 | J41: ='12.2018 Data'!J21 -> 0 | K41: 920 | L41: 4451.32 | M41: 0 | N41: 3051.91 | O41: 1399.41 | P41: 0 | Q41: =IF(ISNUMBER(MATCH($B41,'Org functional rollups'!$A:$A,0)),INDEX('Org functional rollups'!$D:$D,MATCH($B41,'Org functional rollups'!$A:$A,0)),0) -> Distribution
A42: ='12.2018 Data'!A22 -> 920000 | B42: ='12.2018 Data'!B22 -> A82 | C42: ='12.2018 Data'!C22 -> CD | D42: ='12.2018 Data'!D22 -> AA | E42: ='12.2018 Data'!E22 -> OPER | F42: ='12.2018 Data'!F22 -> 324.02 | G42: ='12.2018 Data'!G22 -> 227.26 | H42: ='12.2018 Data'!H22 -> 66.58 | I42: ='12.2018 Data'!I22 -> 30.18 | J42: ='12.2018 Data'!J22 -> 0 | K42: 920 | L42: 324.02 | M42: 227.26 | N42: 66.58 | O42: 30.18 | P42: 0 | Q42: =IF(ISNUMBER(MATCH($B42,'Org functional rollups'!$A:$A,0)),INDEX('Org functional rollups'!$D:$D,MATCH($B42,'Org functional rollups'!$A:$A,0)),0) -> Distribution | S42: GAS N | AI42: GAS N
A43: ='12.2018 Data'!A23 -> 920000 | B43: ='12.2018 Data'!B23 -> B02 | C43: ='12.2018 Data'!C23 -> CD | D43: ='12.2018 Data'!D23 -> AA | E43: ='12.2018 Data'!E23 -> OPER | F43: ='12.2018 Data'!F23 -> 260531.42 | G43: ='12.2018 Data'!G23 -> 182723.62 | H43: ='12.2018 Data'!H23 -> 53536.69 | I43: ='12.2018 Data'!I23 -> 24271.11 | J43: ='12.2018 Data'!J23 -> 0 | K43: 920 | L43: 260531.42 | M43: 182723.62 | N43: 53536.69 | O43: 24271.11 | P43: 0 | Q43: =IF(ISNUMBER(MATCH($B43,'Org functional rollups'!$A:$A,0)),INDEX('Org functional rollups'!$D:$D,MATCH($B43,'Org functional rollups'!$A:$A,0)),0) -> Common | T43: 920 | U43: 921 | V43: 922 | W43: 923 | X43: 924 | Y43: 925 | Z43: 926 | AA43: 927 | AB43: 928 | AC43: 930 | AD43: 931 | AE43: 935 | AG43: Total | AJ43: 920 | AK43: 921 | AL43: 922 | AM43: 923 | AN43: 924 | AO43: 925 | AP43: 926 | AQ43: 927 | AR43: 928 | AS43: 930 | AT43: 931 | AU43: 935
A44: ='12.2018 Data'!A24 -> 920000 | B44: ='12.2018 Data'!B24 -> B04 | C44: ='12.2018 Data'!C24 -> CD | D44: ='12.2018 Data'!D24 -> AA | E44: ='12.2018 Data'!E24 -> OPER | F44: ='12.2018 Data'!F24 -> 2183.59 | G44: ='12.2018 Data'!G24 -> 1531.46 | H44: ='12.2018 Data'!H24 -> 448.7 | I44: ='12.2018 Data'!I24 -> 203.43 | J44: ='12.2018 Data'!J24 -> 0 | K44: 920 | L44: 2183.59 | M44: 1531.46 | N44: 448.7 | O44: 203.43 | P44: 0 | Q44: =IF(ISNUMBER(MATCH($B44,'Org functional rollups'!$A:$A,0)),INDEX('Org functional rollups'!$D:$D,MATCH($B44,'Org functional rollups'!$A:$A,0)),0) -> Production | S44: Production | T44: =SUMPRODUCT(--($Q$22:$Q$1410=$S44),--($K$22:$K$1410=T$21&""),$N$22:$N$1410) -> 239672.34 | U44: =SUMPRODUCT(--($Q$22:$Q$1410=$S44),--($K$22:$K$1410=U$21&""),$N$22:$N$1410) -> 27520.28 | V44: 61.88 | W44: 667.04 | X44: 0 | Y44: 0 | Z44: 7793.89 | AA44: 0 | AB44: 3386.06 | AC44: 12761.59 | AD44: 0 | AE44: 504.4 | AF44: 0 | AG44: =SUM(T44:AF44) -> 292367.48 | AI44: Production | AJ44: =IF(T$50=0,0,T44/T$50) -> 0.02500902824 | AK44: =IF(U$50=0,0,U44/U$50) -> 0.0205736734 | AL44: -0.00315033107 | AM44: 0.0002569514924 | AN44: 0 | AO44: 0 | AP44: 0.01535799279 | AQ44: 0 | AR44: 0.003348526567 | AS44: 0.01153474464 | AT44: 0 | AU44: 0.0001485645688
A45: ='12.2018 Data'!A25 -> 920000 | B45: ='12.2018 Data'!B25 -> B07 | C45: ='12.2018 Data'!C25 -> CD | D45: ='12.2018 Data'!D25 -> AA | E45: ='12.2018 Data'!E25 -> OPER | F45: ='12.2018 Data'!F25 -> 3398.03 | G45: ='12.2018 Data'!G25 -> 2383.23 | H45: ='12.2018 Data'!H25 -> 698.27 | I45: ='12.2018 Data'!I25 -> 316.53 | J45: ='12.2018 Data'!J25 -> 0 | K45: 920 | L45: 3398.03 | M45: 2383.23 | N45: 698.27 | O45: 316.53 | P45: 0 | Q45: =IF(ISNUMBER(MATCH($B45,'Org functional rollups'!$A:$A,0)),INDEX('Org functional rollups'!$D:$D,MATCH($B45,'Org functional rollups'!$A:$A,0)),0) -> Production | S45: Transmission | T45: =SUMPRODUCT(--($Q$22:$Q$1410=$S45),--($K$22:$K$1410=T$21&""),$N$22:$N$1410) -> 584.91 | U45: 3870.25 | V45: 0 | W45: 0 | X45: 0 | Y45: 0 | Z45: 597.62 | AA45: 0 | AB45: 284.9 | AC45: 34.01 | AD45: 0 | AE45: 180.93 | AF45: 0 | AG45: =SUM(T45:AF45) -> 5552.62 | AI45: Transmission | AJ45: =IF(T$50=0,0,T45/T$50) -> 6.103345386e-05 | AK45: 0.002893330282 | AL45: 0 | AM45: 0 | AN45: 0 | AO45: 0 | AP45: 0.001177620373 | AQ45: 0 | AR45: 0.0002817419711 | AS45: 3.074042225e-05 | AT45: 0 | AU45: 5.329061743e-05
A46: ='12.2018 Data'!A26 -> 920000 | B46: ='12.2018 Data'!B26 -> B08 | C46: ='12.2018 Data'!C26 -> CD | D46: ='12.2018 Data'!D26 -> AA | E46: ='12.2018 Data'!E26 -> OPER | F46: ='12.2018 Data'!F26 -> 326811.32 | G46: ='12.2018 Data'!G26 -> 229209.08 | H46: ='12.2018 Data'!H26 -> 67156.31 | I46: ='12.2018 Data'!I26 -> 30445.93 | J46: ='12.2018 Data'!J26 -> 0 | K46: 920 | L46: 326811.32 | M46: 229209.08 | N46: 67156.31 | O46: 30445.93 | P46: 0 | Q46: =IF(ISNUMBER(MATCH($B46,'Org functional rollups'!$A:$A,0)),INDEX('Org functional rollups'!$D:$D,MATCH($B46,'Org functional rollups'!$A:$A,0)),0) -> Customer | S46: Distribution | T46: 459004.76 | U46: 153812.5 | V46: 0 | W46: 118993.54 | X46: 0 | Y46: 0 | Z46: 136275.48 | AA46: 0 | AB46: 39018.68 | AC46: 235356 | AD46: 0 | AE46: 85182.75 | AF46: 0 | AG46: =SUM(T46:AF46) -> 1227643.71 | AI46: Distribution | AJ46: =IF(T$50=0,0,T46/T$50) -> 0.04789565205 | AK46: 0.114987498 | AL46: 0 | AM46: 0.04583768244 | AN46: 0 | AO46: 0 | AP46: 0.2685331509 | AQ46: 0 | AR46: 0.03858616994 | AS46: 0.2127298683 | AT46: 0 | AU46: 0.02508948954
A47: ='12.2018 Data'!A27 -> 920000 | B47: ='12.2018 Data'!B27 -> B09 | C47: ='12.2018 Data'!C27 -> ED | D47: ='12.2018 Data'!D27 -> AN | E47: ='12.2018 Data'!E27 -> OPER | F47: ='12.2018 Data'!F27 -> 11141.32 | G47: ='12.2018 Data'!G27 -> 11141.32 | H47: ='12.2018 Data'!H27 -> 0 | I47: ='12.2018 Data'!I27 -> 0 | J47: ='12.2018 Data'!J27 -> 0 | K47: 920 | L47: 11141.32 | M47: 11141.32 | N47: 0 | O47: 0 | P47: 0 | Q47: =IF(ISNUMBER(MATCH($B47,'Org functional rollups'!$A:$A,0)),INDEX('Org functional rollups'!$D:$D,MATCH($B47,'Org functional rollups'!$A:$A,0)),0) -> Common | S47: Customer | T47: 274427.65 | U47: 45292.15 | V47: 0 | W47: 262.04 | X47: 0 | Y47: 0 | Z47: 13131.09 | AA47: 0 | AB47: 790.89 | AC47: 52286.65 | AD47: 0 | AE47: 615.98 | AF47: 0 | AG47: =SUM(T47:AF47) -> 386806.45 | AI47: Customer | AJ47: =IF(T$50=0,0,T47/T$50) -> 0.02863563166 | AK47: 0.03385960833 | AL47: 0 | AM47: 0.0001009408267 | AN47: 0 | AO47: 0 | AP47: 0.02587503616 | AQ47: 0 | AR47: 0.0007821232277 | AS47: 0.04726003232 | AT47: 0 | AU47: 0.0001814290307
A48: ='12.2018 Data'!A28 -> 920000 | B48: ='12.2018 Data'!B28 -> B09 | C48: ='12.2018 Data'!C28 -> CD | D48: ='12.2018 Data'!D28 -> AA | E48: ='12.2018 Data'!E28 -> OPER | F48: ='12.2018 Data'!F28 -> 808929.32 | G48: ='12.2018 Data'!G28 -> 567342.71 | H48: ='12.2018 Data'!H28 -> 166226.9 | I48: ='12.2018 Data'!I28 -> 75359.71 | J48: ='12.2018 Data'!J28 -> 0 | K48: 920 | L48: 808929.32 | M48: 567342.71 | N48: 166226.9 | O48: 75359.71 | P48: 0 | Q48: =IF(ISNUMBER(MATCH($B48,'Org functional rollups'!$A:$A,0)),INDEX('Org functional rollups'!$D:$D,MATCH($B48,'Org functional rollups'!$A:$A,0)),0) -> Common | S48: Common | T48: 8609743.08 | U48: 1107150.24 | V48: -19704.26 | W48: 2476053.74 | X48: 308423.02 | Y48: 839449.71 | Z48: 349682.95 | AA48: 0 | AB48: 967728.41 | AC48: 805922.61 | AD48: 139266 | AE48: 3308672.7 | AF48: 0 | AG48: =SUM(T48:AF48) -> 18892388.2 | AI48: Common | AJ48: =IF(T$50=0,0,T48/T$50) -> 0.8983986546 | AK48: 0.82768589 | AL48: 1.003150331 | AM48: 0.9538044252 | AN48: 1 | AO48: 1 | AP48: 0.6890561998 | AQ48: 0 | AR48: 0.9570014383 | AS48: 0.7284446144 | AT48: 1 | AU48: 0.9745272262
A49: ='12.2018 Data'!A29 -> 920000 | B49: ='12.2018 Data'!B29 -> B09 | C49: ='12.2018 Data'!C29 -> CD | D49: ='12.2018 Data'!D29 -> AN | E49: ='12.2018 Data'!E29 -> OPER | F49: ='12.2018 Data'!F29 -> 60428.77 | G49: ='12.2018 Data'!G29 -> 46962.23 | H49: ='12.2018 Data'!H29 -> 13466.54 | I49: ='12.2018 Data'!I29 -> 0 | J49: ='12.2018 Data'!J29 -> 0 | K49: 920 | L49: 60428.77 | M49: 46962.23 | N49: 13466.54 | O49: 0 | P49: 0 | Q49: =IF(ISNUMBER(MATCH($B49,'Org functional rollups'!$A:$A,0)),INDEX('Org functional rollups'!$D:$D,MATCH($B49,'Org functional rollups'!$A:$A,0)),0) -> Common
A50: ='12.2018 Data'!A30 -> 920000 | B50: ='12.2018 Data'!B30 -> B16 | C50: ='12.2018 Data'!C30 -> CD | D50: ='12.2018 Data'!D30 -> AA | E50: ='12.2018 Data'!E30 -> OPER | F50: ='12.2018 Data'!F30 -> 58977.54 | G50: ='12.2018 Data'!G30 -> 41363.84 | H50: ='12.2018 Data'!H30 -> 12119.28 | I50: ='12.2018 Data'!I30 -> 5494.42 | J50: ='12.2018 Data'!J30 -> 0 | K50: 920 | L50: 58977.54 | M50: 41363.84 | N50: 12119.28 | O50: 5494.42 | P50: 0 | Q50: =IF(ISNUMBER(MATCH($B50,'Org functional rollups'!$A:$A,0)),INDEX('Org functional rollups'!$D:$D,MATCH($B50,'Org functional rollups'!$A:$A,0)),0) -> Common | S50: Total | T50: =SUM(T44:T49) -> 9583432.74 | U50: 1337645.42 | V50: -19642.38 | W50: 2595976.36 | X50: 308423.02 | Y50: 839449.71 | Z50: 507481.03 | AA50: 0 | AB50: 1011208.94 | AC50: 1106360.86 | AD50: 139266 | AE50: 3395156.76 | AG50: =SUM(AG44:AG49) -> 20804758.46 | AI50: Total | AJ50: =SUM(AJ44:AJ49) -> 1 | AK50: 1 | AL50: 1 | AM50: 1 | AN50: 1 | AO50: 1 | AP50: 1 | AQ50: 0 | AR50: 1 | AS50: 1 | AT50: 1 | AU50: 1
A51: ='12.2018 Data'!A31 -> 920000 | B51: ='12.2018 Data'!B31 -> B50 | C51: ='12.2018 Data'!C31 -> ED | D51: ='12.2018 Data'!D31 -> AN | E51: ='12.2018 Data'!E31 -> OPER | F51: ='12.2018 Data'!F31 -> 1500 | G51: ='12.2018 Data'!G31 -> 1500 | H51: ='12.2018 Data'!H31 -> 0 | I51: ='12.2018 Data'!I31 -> 0 | J51: ='12.2018 Data'!J31 -> 0 | K51: 920 | L51: 1500 | M51: 1500 | N51: 0 | O51: 0 | P51: 0 | Q51: =IF(ISNUMBER(MATCH($B51,'Org functional rollups'!$A:$A,0)),INDEX('Org functional rollups'!$D:$D,MATCH($B51,'Org functional rollups'!$A:$A,0)),0) -> Distribution | AF51: check | AG51: =AG50-N18 -> -350.53
A52: ='12.2018 Data'!A32 -> 920000 | B52: ='12.2018 Data'!B32 -> B50 | C52: ='12.2018 Data'!C32 -> CD | D52: ='12.2018 Data'!D32 -> AA | E52: ='12.2018 Data'!E32 -> OPER | F52: ='12.2018 Data'!F32 -> 4137.99 | G52: ='12.2018 Data'!G32 -> 2902.19 | H52: ='12.2018 Data'!H32 -> 850.32 | I52: ='12.2018 Data'!I32 -> 385.48 | J52: ='12.2018 Data'!J32 -> 0 | K52: 920 | L52: 4137.99 | M52: 2902.19 | N52: 850.32 | O52: 385.48 | P52: 0 | Q52: =IF(ISNUMBER(MATCH($B52,'Org functional rollups'!$A:$A,0)),INDEX('Org functional rollups'!$D:$D,MATCH($B52,'Org functional rollups'!$A:$A,0)),0) -> Distribution
A53: ='12.2018 Data'!A33 -> 920000 | B53: ='12.2018 Data'!B33 -> B51 | C53: ='12.2018 Data'!C33 -> CD | D53: ='12.2018 Data'!D33 -> AA | E53: ='12.2018 Data'!E33 -> OPER | F53: ='12.2018 Data'!F33 -> 5651.02 | G53: ='12.2018 Data'!G33 -> 3963.34 | H53: ='12.2018 Data'!H33 -> 1161.23 | I53: ='12.2018 Data'!I33 -> 526.45 | J53: ='12.2018 Data'!J33 -> 0 | K53: 920 | L53: 5651.02 | M53: 3963.34 | N53: 1161.23 | O53: 526.45 | P53: 0 | Q53: =IF(ISNUMBER(MATCH($B53,'Org functional rollups'!$A:$A,0)),INDEX('Org functional rollups'!$D:$D,MATCH($B53,'Org functional rollups'!$A:$A,0)),0) -> Distribution | S53: GAS S | AI53: GAS S
A54: ='12.2018 Data'!A34 -> 920000 | B54: ='12.2018 Data'!B34 -> B51 | C54: ='12.2018 Data'!C34 -> GD | D54: ='12.2018 Data'!D34 -> AA | E54: ='12.2018 Data'!E34 -> OPER | F54: ='12.2018 Data'!F34 -> 4741.6 | G54: ='12.2018 Data'!G34 -> 0 | H54: ='12.2018 Data'!H34 -> 3250.93 | I54: ='12.2018 Data'!I34 -> 1490.67 | J54: ='12.2018 Data'!J34 -> 0 | K54: 920 | L54: 4741.6 | M54: 0 | N54: 3250.93 | O54: 1490.67 | P54: 0 | Q54: =IF(ISNUMBER(MATCH($B54,'Org functional rollups'!$A:$A,0)),INDEX('Org functional rollups'!$D:$D,MATCH($B54,'Org functional rollups'!$A:$A,0)),0) -> Distribution | T54: 920 | U54: 921 | V54: 922 | W54: 923 | X54: 924 | Y54: 925 | Z54: 926 | AA54: 927 | AB54: 928 | AC54: 930 | AD54: 931 | AE54: 935 | AG54: Total | AJ54: 920 | AK54: 921 | AL54: 922 | AM54: 923 | AN54: 924 | AO54: 925 | AP54: 926 | AQ54: 927 | AR54: 928 | AS54: 930 | AT54: 931 | AU54: 935
A55: ='12.2018 Data'!A35 -> 920000 | B55: ='12.2018 Data'!B35 -> B52 | C55: ='12.2018 Data'!C35 -> GD | D55: ='12.2018 Data'!D35 -> AA | E55: ='12.2018 Data'!E35 -> OPER | F55: ='12.2018 Data'!F35 -> 153.02 | G55: ='12.2018 Data'!G35 -> 0 | H55: ='12.2018 Data'!H35 -> 104.91 | I55: ='12.2018 Data'!I35 -> 48.11 | J55: ='12.2018 Data'!J35 -> 0 | K55: 920 | L55: 153.02 | M55: 0 | N55: 104.91 | O55: 48.11 | P55: 0 | Q55: =IF(ISNUMBER(MATCH($B55,'Org functional rollups'!$A:$A,0)),INDEX('Org functional rollups'!$D:$D,MATCH($B55,'Org functional rollups'!$A:$A,0)),0) -> Distribution | S55: Production | T55: =SUMPRODUCT(--($Q$22:$Q$1410=$S55),--($K$22:$K$1410=T$21&""),$O$22:$O$1410) -> 105023.02 | U55: =SUMPRODUCT(--($Q$22:$Q$1410=$S55),--($K$22:$K$1410=U$21&""),$O$22:$O$1410) -> 11404.01 | V55: 0 | W55: 302.41 | X55: 0 | Y55: 0 | Z55: 4717.41 | AA55: 0 | AB55: 5275.6 | AC55: 5837.5 | AD55: 0 | AE55: 199.94 | AG55: =SUM(T55:AF55) -> 132759.89 | AI55: Production | AJ55: =IF(T$61=0,0,T55/T$61) -> 0.0244019439 | AK55: =IF(U$61=0,0,U55/U$61) -> 0.01808790546 | AL55: 0 | AM55: 0.0002631301748 | AN55: 0 | AO55: 0 | AP55: 0.02068613503 | AQ55: 0 | AR55: 0.005658748727 | AS55: 0.01157986056 | AT55: 0 | AU55: 0.0001394338018
A56: ='12.2018 Data'!A36 -> 920000 | B56: ='12.2018 Data'!B36 -> B54 | C56: ='12.2018 Data'!C36 -> GD | D56: ='12.2018 Data'!D36 -> AA | E56: ='12.2018 Data'!E36 -> OPER | F56: ='12.2018 Data'!F36 -> 975.06 | G56: ='12.2018 Data'!G36 -> 0 | H56: ='12.2018 Data'!H36 -> 668.52 | I56: ='12.2018 Data'!I36 -> 306.54 | J56: ='12.2018 Data'!J36 -> 0 | K56: 920 | L56: 975.06 | M56: 0 | N56: 668.52 | O56: 306.54 | P56: 0 | Q56: =IF(ISNUMBER(MATCH($B56,'Org functional rollups'!$A:$A,0)),INDEX('Org functional rollups'!$D:$D,MATCH($B56,'Org functional rollups'!$A:$A,0)),0) -> Distribution | S56: Transmission | T56: =SUMPRODUCT(--($Q$22:$Q$1410=$S56),--($K$22:$K$1410=T$21&""),$O$22:$O$1410) -> 265.16 | U56: 1339.32 | V56: 0 | W56: 0 | X56: 0 | Y56: 0 | Z56: 270.89 | AA56: 0 | AB56: 129.16 | AC56: 4.02 | AD56: 0 | AE56: 0 | AG56: =SUM(T56:AF56) -> 2008.55 | AI56: Transmission | AJ56: =IF(T$61=0,0,T56/T$61) -> 6.160953517e-05 | AK56: 0.002124296063 | AL56: 0 | AM56: 0 | AN56: 0 | AO56: 0 | AP56: 0.001187869428 | AQ56: 0 | AR56: 0.0001385404476 | AS56: 7.974482133e-06 | AT56: 0 | AU56: 0
A57: ='12.2018 Data'!A37 -> 920000 | B57: ='12.2018 Data'!B37 -> B54 | C57: ='12.2018 Data'!C37 -> CD | D57: ='12.2018 Data'!D37 -> AA | E57: ='12.2018 Data'!E37 -> OPER | F57: ='12.2018 Data'!F37 -> 218.81 | G57: ='12.2018 Data'!G37 -> 153.46 | H57: ='12.2018 Data'!H37 -> 44.97 | I57: ='12.2018 Data'!I37 -> 20.38 | J57: ='12.2018 Data'!J37 -> 0 | K57: 920 | L57: 218.81 | M57: 153.46 | N57: 44.97 | O57: 20.38 | P57: 0 | Q57: =IF(ISNUMBER(MATCH($B57,'Org functional rollups'!$A:$A,0)),INDEX('Org functional rollups'!$D:$D,MATCH($B57,'Org functional rollups'!$A:$A,0)),0) -> Distribution | S57: Distribution | T57: 230033.06 | U57: 89963.4 | V57: 0 | W57: 48731.46 | X57: 0 | Y57: 0 | Z57: 61513.13 | AA57: 0 | AB57: 44274.72 | AC57: 118917.76 | AD57: 0 | AE57: 12558.87 | AG57: =SUM(T57:AF57) -> 605992.4 | AI57: Distribution | AJ57: =IF(T$61=0,0,T57/T$61) -> 0.05344784243 | AK57: 0.1426909898 | AL57: 0 | AM57: 0.04240176446 | AN57: 0 | AO57: 0 | AP57: 0.2697388849 | AQ57: 0 | AR57: 0.047490241 | AS57: 0.2358974011 | AT57: 0 | AU57: 0.008758282439
A58: ='12.2018 Data'!A38 -> 920000 | B58: ='12.2018 Data'!B38 -> C04 | C58: ='12.2018 Data'!C38 -> CD | D58: ='12.2018 Data'!D38 -> AA | E58: ='12.2018 Data'!E38 -> OPER | F58: ='12.2018 Data'!F38 -> 13770.94 | G58: ='12.2018 Data'!G38 -> 9658.24 | H58: ='12.2018 Data'!H38 -> 2829.8 | I58: ='12.2018 Data'!I38 -> 1282.9 | J58: ='12.2018 Data'!J38 -> 0 | K58: 920 | L58: 13770.94 | M58: 9658.24 | N58: 2829.8 | O58: 1282.9 | P58: 0 | Q58: =IF(ISNUMBER(MATCH($B58,'Org functional rollups'!$A:$A,0)),INDEX('Org functional rollups'!$D:$D,MATCH($B58,'Org functional rollups'!$A:$A,0)),0) -> Production | S58: Customer | T58: 116544.5 | U58: 20486.05 | V58: 0 | W58: 93.16 | X58: 0 | Y58: 0 | Z58: 5952.35 | AA58: 0 | AB58: 195.94 | AC58: 21625.88 | AD58: 0 | AE58: 265.55 | AG58: =SUM(T58:AF58) -> 165163.43 | AI58: Customer | AJ58: =IF(T$61=0,0,T58/T$61) -> 0.02707894279 | AK58: 0.03249293325 | AL58: 0 | AM58: 8.105951221e-05 | AN58: 0 | AO58: 0 | AP58: 0.02610142341 | AQ58: 0 | AR58: 0.0002101704499 | AS58: 0.04289930191 | AT58: 0 | AU58: 0.000185188787
A59: ='12.2018 Data'!A39 -> 920000 | B59: ='12.2018 Data'!B39 -> C07 | C59: ='12.2018 Data'!C39 -> CD | D59: ='12.2018 Data'!D39 -> AA | E59: ='12.2018 Data'!E39 -> OPER | F59: ='12.2018 Data'!F39 -> 6141.59 | G59: ='12.2018 Data'!G39 -> 4307.4 | H59: ='12.2018 Data'!H39 -> 1262.04 | I59: ='12.2018 Data'!I39 -> 572.15 | J59: ='12.2018 Data'!J39 -> 0 | K59: 920 | L59: 6141.59 | M59: 4307.4 | N59: 1262.04 | O59: 572.15 | P59: 0 | Q59: =IF(ISNUMBER(MATCH($B59,'Org functional rollups'!$A:$A,0)),INDEX('Org functional rollups'!$D:$D,MATCH($B59,'Org functional rollups'!$A:$A,0)),0) -> Production | S59: Common | T59: 3852013.51 | U59: 507284.31 | V59: 0 | W59: 1100152.03 | X59: 139865.73 | Y59: 436536.91 | Z59: 155593.17 | AA59: 0 | AB59: 882415.49 | AC59: 357722.81 | AD59: 26707.84 | AE59: 1420917.75 | AG59: =SUM(T59:AF59) -> 8879209.55 | AI59: Common | AJ59: =IF(T$61=0,0,T59/T$61) -> 0.8950096613 | AK59: 0.8046038755 | AL59: 0 | AM59: 0.9572540459 | AN59: 1 | AO59: 1 | AP59: 0.6822856872 | AQ59: 0 | AR59: 0.9465022994 | AS59: 0.7096154619 | AT59: 1 | AU59: 0.990917095
A60: ='12.2018 Data'!A40 -> 920000 | B60: ='12.2018 Data'!B40 -> C08 | C60: ='12.2018 Data'!C40 -> CD | D60: ='12.2018 Data'!D40 -> AA | E60: ='12.2018 Data'!E40 -> OPER | F60: ='12.2018 Data'!F40 -> 97999.69 | G60: ='12.2018 Data'!G40 -> 68732.06 | H60: ='12.2018 Data'!H40 -> 20138 | I60: ='12.2018 Data'!I40 -> 9129.63 | J60: ='12.2018 Data'!J40 -> 0 | K60: 920 | L60: 97999.69 | M60: 68732.06 | N60: 20138 | O60: 9129.63 | P60: 0 | Q60: =IF(ISNUMBER(MATCH($B60,'Org functional rollups'!$A:$A,0)),INDEX('Org functional rollups'!$D:$D,MATCH($B60,'Org functional rollups'!$A:$A,0)),0) -> Distribution
A61: ='12.2018 Data'!A41 -> 920000 | B61: ='12.2018 Data'!B41 -> C09 | C61: ='12.2018 Data'!C41 -> ED | D61: ='12.2018 Data'!D41 -> AN | E61: ='12.2018 Data'!E41 -> OPER | F61: ='12.2018 Data'!F41 -> 86583.6 | G61: ='12.2018 Data'!G41 -> 86583.6 | H61: ='12.2018 Data'!H41 -> 0 | I61: ='12.2018 Data'!I41 -> 0 | J61: ='12.2018 Data'!J41 -> 0 | K61: 920 | L61: 86583.6 | M61: 86583.6 | N61: 0 | O61: 0 | P61: 0 | Q61: =IF(ISNUMBER(MATCH($B61,'Org functional rollups'!$A:$A,0)),INDEX('Org functional rollups'!$D:$D,MATCH($B61,'Org functional rollups'!$A:$A,0)),0) -> Common | S61: Total | T61: =SUM(T55:T60) -> 4303879.25 | U61: 630477.09 | V61: 0 | W61: 1149279.06 | X61: 139865.73 | Y61: 436536.91 | Z61: 228046.95 | AA61: 0 | AB61: 932290.91 | AC61: 504107.97 | AD61: 26707.84 | AE61: 1433942.11 | AG61: =SUM(AG55:AG60) -> 9785133.82 | AI61: Total | AJ61: =SUM(AJ55:AJ60) -> 1 | AK61: 1 | AL61: 0 | AM61: 1 | AN61: 1 | AO61: 1 | AP61: 1 | AQ61: 0 | AR61: 1 | AS61: 1 | AT61: 1 | AU61: 1
A62: ='12.2018 Data'!A42 -> 920000 | B62: ='12.2018 Data'!B42 -> C09 | C62: ='12.2018 Data'!C42 -> CD | D62: ='12.2018 Data'!D42 -> AA | E62: ='12.2018 Data'!E42 -> OPER | F62: ='12.2018 Data'!F42 -> 192129.25 | G62: ='12.2018 Data'!G42 -> 134749.71 | H62: ='12.2018 Data'!H42 -> 39480.7 | I62: ='12.2018 Data'!I42 -> 17898.84 | J62: ='12.2018 Data'!J42 -> 0 | K62: 920 | L62: 192129.25 | M62: 134749.71 | N62: 39480.7 | O62: 17898.84 | P62: 0 | Q62: =IF(ISNUMBER(MATCH($B62,'Org functional rollups'!$A:$A,0)),INDEX('Org functional rollups'!$D:$D,MATCH($B62,'Org functional rollups'!$A:$A,0)),0) -> Common | AG62: =AG61-O18 -> -158.92
A63: ='12.2018 Data'!A43 -> 920000 | B63: ='12.2018 Data'!B43 -> C11 | C63: ='12.2018 Data'!C43 -> CD | D63: ='12.2018 Data'!D43 -> WA | E63: ='12.2018 Data'!E43 -> OPER | F63: ='12.2018 Data'!F43 -> 3692.94 | G63: ='12.2018 Data'!G43 -> 2869.96 | H63: ='12.2018 Data'!H43 -> 822.98 | I63: ='12.2018 Data'!I43 -> 0 | J63: ='12.2018 Data'!J43 -> 0 | K63: 920 | L63: 3692.94 | M63: 2869.96 | N63: 822.98 | O63: 0 | P63: 0 | Q63: =IF(ISNUMBER(MATCH($B63,'Org functional rollups'!$A:$A,0)),INDEX('Org functional rollups'!$D:$D,MATCH($B63,'Org functional rollups'!$A:$A,0)),0) -> Common
A64: ='12.2018 Data'!A44 -> 920000 | B64: ='12.2018 Data'!B44 -> C11 | C64: ='12.2018 Data'!C44 -> CD | D64: ='12.2018 Data'!D44 -> AA | E64: ='12.2018 Data'!E44 -> OPER | F64: ='12.2018 Data'!F44 -> 317035.92 | G64: ='12.2018 Data'!G44 -> 222353.17 | H64: ='12.2018 Data'!H44 -> 65147.7 | I64: ='12.2018 Data'!I44 -> 29535.05 | J64: ='12.2018 Data'!J44 -> 0 | K64: 920 | L64: 317035.92 | M64: 222353.17 | N64: 65147.7 | O64: 29535.05 | P64: 0 | Q64: =IF(ISNUMBER(MATCH($B64,'Org functional rollups'!$A:$A,0)),INDEX('Org functional rollups'!$D:$D,MATCH($B64,'Org functional rollups'!$A:$A,0)),0) -> Common
A65: ='12.2018 Data'!A45 -> 920000 | B65: ='12.2018 Data'!B45 -> C19 | C65: ='12.2018 Data'!C45 -> CD | D65: ='12.2018 Data'!D45 -> AN | E65: ='12.2018 Data'!E45 -> OPER | F65: ='12.2018 Data'!F45 -> 317.5 | G65: ='12.2018 Data'!G45 -> 246.74 | H65: ='12.2018 Data'!H45 -> 70.76 | I65: ='12.2018 Data'!I45 -> 0 | J65: ='12.2018 Data'!J45 -> 0 | K65: 920 | L65: 317.5 | M65: 246.74 | N65: 70.76 | O65: 0 | P65: 0 | Q65: =IF(ISNUMBER(MATCH($B65,'Org functional rollups'!$A:$A,0)),INDEX('Org functional rollups'!$D:$D,MATCH($B65,'Org functional rollups'!$A:$A,0)),0) -> Common | AF65: check | AG65: =AG29-AG40-AG51-AG62 -> 2.048909664e-08
A66: ='12.2018 Data'!A46 -> 920000 | B66: ='12.2018 Data'!B46 -> C19 | C66: ='12.2018 Data'!C46 -> ED | D66: ='12.2018 Data'!D46 -> AN | E66: ='12.2018 Data'!E46 -> OPER | F66: ='12.2018 Data'!F46 -> 2675.58 | G66: ='12.2018 Data'!G46 -> 2675.58 | H66: ='12.2018 Data'!H46 -> 0 | I66: ='12.2018 Data'!I46 -> 0 | J66: ='12.2018 Data'!J46 -> 0 | K66: 920 | L66: 2675.58 | M66: 2675.58 | N66: 0 | O66: 0 | P66: 0 | Q66: =IF(ISNUMBER(MATCH($B66,'Org functional rollups'!$A:$A,0)),INDEX('Org functional rollups'!$D:$D,MATCH($B66,'Org functional rollups'!$A:$A,0)),0) -> Common
A67: ='12.2018 Data'!A47 -> 920000 | B67: ='12.2018 Data'!B47 -> C19 | C67: ='12.2018 Data'!C47 -> CD | D67: ='12.2018 Data'!D47 -> AA | E67: ='12.2018 Data'!E47 -> OPER | F67: ='12.2018 Data'!F47 -> 455591.96 | G67: ='12.2018 Data'!G47 -> 319529.26 | H67: ='12.2018 Data'!H47 -> 93619.58 | I67: ='12.2018 Data'!I47 -> 42443.12 | J67: ='12.2018 Data'!J47 -> 0 | K67: 920 | L67: 455591.96 | M67: 319529.26 | N67: 93619.58 | O67: 42443.12 | P67: 0 | Q67: =IF(ISNUMBER(MATCH($B67,'Org functional rollups'!$A:$A,0)),INDEX('Org functional rollups'!$D:$D,MATCH($B67,'Org functional rollups'!$A:$A,0)),0) -> Common
A68: ='12.2018 Data'!A48 -> 920000 | B68: ='12.2018 Data'!B48 -> C50 | C68: ='12.2018 Data'!C48 -> CD | D68: ='12.2018 Data'!D48 -> AA | E68: ='12.2018 Data'!E48 -> OPER | F68: ='12.2018 Data'!F48 -> 2986.18 | G68: ='12.2018 Data'!G48 -> 2094.36 | H68: ='12.2018 Data'!H48 -> 613.63 | I68: ='12.2018 Data'!I48 -> 278.19 | J68: ='12.2018 Data'!J48 -> 0 | K68: 920 | L68: 2986.18 | M68: 2094.36 | N68: 613.63 | O68: 278.19 | P68: 0 | Q68: =IF(ISNUMBER(MATCH($B68,'Org functional rollups'!$A:$A,0)),INDEX('Org functional rollups'!$D:$D,MATCH($B68,'Org functional rollups'!$A:$A,0)),0) -> Customer
A69: ='12.2018 Data'!A49 -> 920000 | B69: ='12.2018 Data'!B49 -> C51 | C69: ='12.2018 Data'!C49 -> CD | D69: ='12.2018 Data'!D49 -> AA | E69: ='12.2018 Data'!E49 -> OPER | F69: ='12.2018 Data'!F49 -> 40433.22 | G69: ='12.2018 Data'!G49 -> 28357.81 | H69: ='12.2018 Data'!H49 -> 8308.63 | I69: ='12.2018 Data'!I49 -> 3766.78 | J69: ='12.2018 Data'!J49 -> 0 | K69: 920 | L69: 40433.22 | M69: 28357.81 | N69: 8308.63 | O69: 3766.78 | P69: 0 | Q69: =IF(ISNUMBER(MATCH($B69,'Org functional rollups'!$A:$A,0)),INDEX('Org functional rollups'!$D:$D,MATCH($B69,'Org functional rollups'!$A:$A,0)),0) -> Distribution
A70: ='12.2018 Data'!A50 -> 920000 | B70: ='12.2018 Data'!B50 -> C53 | C70: ='12.2018 Data'!C50 -> CD | D70: ='12.2018 Data'!D50 -> AA | E70: ='12.2018 Data'!E50 -> OPER | F70: ='12.2018 Data'!F50 -> 902.22 | G70: ='12.2018 Data'!G50 -> 632.77 | H70: ='12.2018 Data'!H50 -> 185.4 | I70: ='12.2018 Data'!I50 -> 84.05 | J70: ='12.2018 Data'!J50 -> 0 | K70: 920 | L70: 902.22 | M70: 632.77 | N70: 185.4 | O70: 84.05 | P70: 0 | Q70: =IF(ISNUMBER(MATCH($B70,'Org functional rollups'!$A:$A,0)),INDEX('Org functional rollups'!$D:$D,MATCH($B70,'Org functional rollups'!$A:$A,0)),0) -> Distribution
A71: ='12.2018 Data'!A51 -> 920000 | B71: ='12.2018 Data'!B51 -> C54 | C71: ='12.2018 Data'!C51 -> CD | D71: ='12.2018 Data'!D51 -> AA | E71: ='12.2018 Data'!E51 -> OPER | F71: ='12.2018 Data'!F51 -> 512940.11 | G71: ='12.2018 Data'!G51 -> 359750.53 | H71: ='12.2018 Data'!H51 -> 105404.05 | I71: ='12.2018 Data'!I51 -> 47785.53 | J71: ='12.2018 Data'!J51 -> 0 | K71: 920 | L71: 512940.11 | M71: 359750.53 | N71: 105404.05 | O71: 47785.53 | P71: 0 | Q71: =IF(ISNUMBER(MATCH($B71,'Org functional rollups'!$A:$A,0)),INDEX('Org functional rollups'!$D:$D,MATCH($B71,'Org functional rollups'!$A:$A,0)),0) -> Common
A72: ='12.2018 Data'!A52 -> 920000 | B72: ='12.2018 Data'!B52 -> C56 | C72: ='12.2018 Data'!C52 -> CD | D72: ='12.2018 Data'!D52 -> AA | E72: ='12.2018 Data'!E52 -> OPER | F72: ='12.2018 Data'!F52 -> 2098.65 | G72: ='12.2018 Data'!G52 -> 1471.9 | H72: ='12.2018 Data'!H52 -> 431.26 | I72: ='12.2018 Data'!I52 -> 195.49 | J72: ='12.2018 Data'!J52 -> 0 | K72: 920 | L72: 2098.65 | M72: 1471.9 | N72: 431.26 | O72: 195.49 | P72: 0 | Q72: =IF(ISNUMBER(MATCH($B72,'Org functional rollups'!$A:$A,0)),INDEX('Org functional rollups'!$D:$D,MATCH($B72,'Org functional rollups'!$A:$A,0)),0) -> Transmission
A73: ='12.2018 Data'!A53 -> 920000 | B73: ='12.2018 Data'!B53 -> C57 | C73: ='12.2018 Data'!C53 -> CD | D73: ='12.2018 Data'!D53 -> AA | E73: ='12.2018 Data'!E53 -> OPER | F73: ='12.2018 Data'!F53 -> 2355.92 | G73: ='12.2018 Data'!G53 -> 1652.33 | H73: ='12.2018 Data'!H53 -> 484.12 | I73: ='12.2018 Data'!I53 -> 219.47 | J73: ='12.2018 Data'!J53 -> 0 | K73: 920 | L73: 2355.92 | M73: 1652.33 | N73: 484.12 | O73: 219.47 | P73: 0 | Q73: =IF(ISNUMBER(MATCH($B73,'Org functional rollups'!$A:$A,0)),INDEX('Org functional rollups'!$D:$D,MATCH($B73,'Org functional rollups'!$A:$A,0)),0) -> Distribution
A74: ='12.2018 Data'!A54 -> 920000 | B74: ='12.2018 Data'!B54 -> C59 | C74: ='12.2018 Data'!C54 -> CD | D74: ='12.2018 Data'!D54 -> AA | E74: ='12.2018 Data'!E54 -> OPER | F74: ='12.2018 Data'!F54 -> 104515.35 | G74: ='12.2018 Data'!G54 -> 73301.91 | H74: ='12.2018 Data'!H54 -> 21476.87 | I74: ='12.2018 Data'!I54 -> 9736.57 | J74: ='12.2018 Data'!J54 -> 0 | K74: 920 | L74: 104515.35 | M74: 73301.91 | N74: 21476.87 | O74: 9736.57 | P74: 0 | Q74: =IF(ISNUMBER(MATCH($B74,'Org functional rollups'!$A:$A,0)),INDEX('Org functional rollups'!$D:$D,MATCH($B74,'Org functional rollups'!$A:$A,0)),0) -> Common
A75: ='12.2018 Data'!A55 -> 920000 | B75: ='12.2018 Data'!B55 -> D08 | C75: ='12.2018 Data'!C55 -> ED | D75: ='12.2018 Data'!D55 -> AN | E75: ='12.2018 Data'!E55 -> OPER | F75: ='12.2018 Data'!F55 -> -5919.49 | G75: ='12.2018 Data'!G55 -> -5919.49 | H75: ='12.2018 Data'!H55 -> 0 | I75: ='12.2018 Data'!I55 -> 0 | J75: ='12.2018 Data'!J55 -> 0 | K75: 920 | L75: -5919.49 | M75: -5919.49 | N75: 0 | O75: 0 | P75: 0 | Q75: =IF(ISNUMBER(MATCH($B75,'Org functional rollups'!$A:$A,0)),INDEX('Org functional rollups'!$D:$D,MATCH($B75,'Org functional rollups'!$A:$A,0)),0) -> Distribution
A76: ='12.2018 Data'!A56 -> 920000 | B76: ='12.2018 Data'!B56 -> D08 | C76: ='12.2018 Data'!C56 -> CD | D76: ='12.2018 Data'!D56 -> AA | E76: ='12.2018 Data'!E56 -> OPER | F76: ='12.2018 Data'!F56 -> 43095.19 | G76: ='12.2018 Data'!G56 -> 30224.85 | H76: ='12.2018 Data'!H56 -> 8855.67 | I76: ='12.2018 Data'!I56 -> 4014.67 | J76: ='12.2018 Data'!J56 -> 0 | K76: 920 | L76: 43095.19 | M76: 30224.85 | N76: 8855.67 | O76: 4014.67 | P76: 0 | Q76: =IF(ISNUMBER(MATCH($B76,'Org functional rollups'!$A:$A,0)),INDEX('Org functional rollups'!$D:$D,MATCH($B76,'Org functional rollups'!$A:$A,0)),0) -> Distribution
A77: ='12.2018 Data'!A57 -> 920000 | B77: ='12.2018 Data'!B57 -> D09 | C77: ='12.2018 Data'!C57 -> ED | D77: ='12.2018 Data'!D57 -> AN | E77: ='12.2018 Data'!E57 -> OPER | F77: ='12.2018 Data'!F57 -> 189444.9 | G77: ='12.2018 Data'!G57 -> 189444.9 | H77: ='12.2018 Data'!H57 -> 0 | I77: ='12.2018 Data'!I57 -> 0 | J77: ='12.2018 Data'!J57 -> 0 | K77: 920 | L77: 189444.9 | M77: 189444.9 | N77: 0 | O77: 0 | P77: 0 | Q77: =IF(ISNUMBER(MATCH($B77,'Org functional rollups'!$A:$A,0)),INDEX('Org functional rollups'!$D:$D,MATCH($B77,'Org functional rollups'!$A:$A,0)),0) -> Transmission
A78: ='12.2018 Data'!A58 -> 920000 | B78: ='12.2018 Data'!B58 -> D50 | C78: ='12.2018 Data'!C58 -> CD | D78: ='12.2018 Data'!D58 -> AA | E78: ='12.2018 Data'!E58 -> OPER | F78: ='12.2018 Data'!F58 -> 67936.76 | G78: ='12.2018 Data'!G58 -> 47647.44 | H78: ='12.2018 Data'!H58 -> 13960.33 | I78: ='12.2018 Data'!I58 -> 6328.99 | J78: ='12.2018 Data'!J58 -> 0 | K78: 920 | L78: 67936.76 | M78: 47647.44 | N78: 13960.33 | O78: 6328.99 | P78: 0 | Q78: =IF(ISNUMBER(MATCH($B78,'Org functional rollups'!$A:$A,0)),INDEX('Org functional rollups'!$D:$D,MATCH($B78,'Org functional rollups'!$A:$A,0)),0) -> Customer
A79: ='12.2018 Data'!A59 -> 920000 | B79: ='12.2018 Data'!B59 -> D50 | C79: ='12.2018 Data'!C59 -> CD | D79: ='12.2018 Data'!D59 -> AN | E79: ='12.2018 Data'!E59 -> OPER | F79: ='12.2018 Data'!F59 -> 297.25 | G79: ='12.2018 Data'!G59 -> 231 | H79: ='12.2018 Data'!H59 -> 66.25 | I79: ='12.2018 Data'!I59 -> 0 | J79: ='12.2018 Data'!J59 -> 0 | K79: 920 | L79: 297.25 | M79: 231 | N79: 66.25 | O79: 0 | P79: 0 | Q79: =IF(ISNUMBER(MATCH($B79,'Org functional rollups'!$A:$A,0)),INDEX('Org functional rollups'!$D:$D,MATCH($B79,'Org functional rollups'!$A:$A,0)),0) -> Customer
A80: ='12.2018 Data'!A60 -> 920000 | B80: ='12.2018 Data'!B60 -> D53 | C80: ='12.2018 Data'!C60 -> CD | D80: ='12.2018 Data'!D60 -> AA | E80: ='12.2018 Data'!E60 -> OPER | F80: ='12.2018 Data'!F60 -> 218.2 | G80: ='12.2018 Data'!G60 -> 153.04 | H80: ='12.2018 Data'!H60 -> 44.84 | I80: ='12.2018 Data'!I60 -> 20.32 | J80: ='12.2018 Data'!J60 -> 0 | K80: 920 | L80: 218.2 | M80: 153.04 | N80: 44.84 | O80: 20.32 | P80: 0 | Q80: =IF(ISNUMBER(MATCH($B80,'Org functional rollups'!$A:$A,0)),INDEX('Org functional rollups'!$D:$D,MATCH($B80,'Org functional rollups'!$A:$A,0)),0) -> Distribution
A81: ='12.2018 Data'!A61 -> 920000 | B81: ='12.2018 Data'!B61 -> D53 | C81: ='12.2018 Data'!C61 -> CD | D81: ='12.2018 Data'!D61 -> AN | E81: ='12.2018 Data'!E61 -> OPER | F81: ='12.2018 Data'!F61 -> 1250 | G81: ='12.2018 Data'!G61 -> 971.44 | H81: ='12.2018 Data'!H61 -> 278.56 | I81: ='12.2018 Data'!I61 -> 0 | J81: ='12.2018 Data'!J61 -> 0 | K81: 920 | L81: 1250 | M81: 971.44 | N81: 278.56 | O81: 0 | P81: 0 | Q81: =IF(ISNUMBER(MATCH($B81,'Org functional rollups'!$A:$A,0)),INDEX('Org functional rollups'!$D:$D,MATCH($B81,'Org functional rollups'!$A:$A,0)),0) -> Distribution
A82: ='12.2018 Data'!A62 -> 920000 | B82: ='12.2018 Data'!B62 -> D54 | C82: ='12.2018 Data'!C62 -> CD | D82: ='12.2018 Data'!D62 -> AA | E82: ='12.2018 Data'!E62 -> OPER | F82: ='12.2018 Data'!F62 -> 324306.4 | G82: ='12.2018 Data'!G62 -> 227452.28 | H82: ='12.2018 Data'!H62 -> 66641.67 | I82: ='12.2018 Data'!I62 -> 30212.45 | J82: ='12.2018 Data'!J62 -> 0 | K82: 920 | L82: 324306.4 | M82: 227452.28 | N82: 66641.67 | O82: 30212.45 | P82: 0 | Q82: =IF(ISNUMBER(MATCH($B82,'Org functional rollups'!$A:$A,0)),INDEX('Org functional rollups'!$D:$D,MATCH($B82,'Org functional rollups'!$A:$A,0)),0) -> Common
A83: ='12.2018 Data'!A63 -> 920000 | B83: ='12.2018 Data'!B63 -> E01 | C83: ='12.2018 Data'!C63 -> CD | D83: ='12.2018 Data'!D63 -> AA | E83: ='12.2018 Data'!E63 -> OPER | F83: ='12.2018 Data'!F63 -> 2569452.58 | G83: ='12.2018 Data'!G63 -> 1802085.53 | H83: ='12.2018 Data'!H63 -> 527996.87 | I83: ='12.2018 Data'!I63 -> 239370.18 | J83: ='12.2018 Data'!J63 -> 0 | K83: 920 | L83: 2569452.58 | M83: 1802085.53 | N83: 527996.87 | O83: 239370.18 | P83: 0 | Q83: =IF(ISNUMBER(MATCH($B83,'Org functional rollups'!$A:$A,0)),INDEX('Org functional rollups'!$D:$D,MATCH($B83,'Org functional rollups'!$A:$A,0)),0) -> Common
A84: ='12.2018 Data'!A64 -> 920000 | B84: ='12.2018 Data'!B64 -> E02 | C84: ='12.2018 Data'!C64 -> CD | D84: ='12.2018 Data'!D64 -> AA | E84: ='12.2018 Data'!E64 -> OPER | F84: ='12.2018 Data'!F64 -> 128433.26 | G84: ='12.2018 Data'!G64 -> 90076.67 | H84: ='12.2018 Data'!H64 -> 26391.75 | I84: ='12.2018 Data'!I64 -> 11964.84 | J84: ='12.2018 Data'!J64 -> 0 | K84: 920 | L84: 128433.26 | M84: 90076.67 | N84: 26391.75 | O84: 11964.84 | P84: 0 | Q84: =IF(ISNUMBER(MATCH($B84,'Org functional rollups'!$A:$A,0)),INDEX('Org functional rollups'!$D:$D,MATCH($B84,'Org functional rollups'!$A:$A,0)),0) -> Common
A85: ='12.2018 Data'!A65 -> 920000 | B85: ='12.2018 Data'!B65 -> E07 | C85: ='12.2018 Data'!C65 -> ED | D85: ='12.2018 Data'!D65 -> AN | E85: ='12.2018 Data'!E65 -> OPER | F85: ='12.2018 Data'!F65 -> 2996.37 | G85: ='12.2018 Data'!G65 -> 2996.37 | H85: ='12.2018 Data'!H65 -> 0 | I85: ='12.2018 Data'!I65 -> 0 | J85: ='12.2018 Data'!J65 -> 0 | K85: 920 | L85: 2996.37 | M85: 2996.37 | N85: 0 | O85: 0 | P85: 0 | Q85: =IF(ISNUMBER(MATCH($B85,'Org functional rollups'!$A:$A,0)),INDEX('Org functional rollups'!$D:$D,MATCH($B85,'Org functional rollups'!$A:$A,0)),0) -> Production
A86: ='12.2018 Data'!A66 -> 920000 | B86: ='12.2018 Data'!B66 -> E07 | C86: ='12.2018 Data'!C66 -> CD | D86: ='12.2018 Data'!D66 -> AA | E86: ='12.2018 Data'!E66 -> OPER | F86: ='12.2018 Data'!F66 -> 10556.29 | G86: ='12.2018 Data'!G66 -> 7403.62 | H86: ='12.2018 Data'!H66 -> 2169.18 | I86: ='12.2018 Data'!I66 -> 983.49 | J86: ='12.2018 Data'!J66 -> 0 | K86: 920 | L86: 10556.29 | M86: 7403.62 | N86: 2169.18 | O86: 983.49 | P86: 0 | Q86: =IF(ISNUMBER(MATCH($B86,'Org functional rollups'!$A:$A,0)),INDEX('Org functional rollups'!$D:$D,MATCH($B86,'Org functional rollups'!$A:$A,0)),0) -> Production
A87: ='12.2018 Data'!A67 -> 920000 | B87: ='12.2018 Data'!B67 -> E09 | C87: ='12.2018 Data'!C67 -> CD | D87: ='12.2018 Data'!D67 -> AA | E87: ='12.2018 Data'!E67 -> OPER | F87: ='12.2018 Data'!F67 -> 57551.34 | G87: ='12.2018 Data'!G67 -> 40363.64 | H87: ='12.2018 Data'!H67 -> 11826.2 | I87: ='12.2018 Data'!I67 -> 5361.5 | J87: ='12.2018 Data'!J67 -> 0 | K87: =LEFT(A87,3) -> 920 | L87: =IF(ISNUMBER(F87),F87,0) -> 57551.34 | M87: 40363.64 | N87: 11826.2 | O87: 5361.5 | P87: 0 | Q87: =IF(ISNUMBER(MATCH($B87,'Org functional rollups'!$A:$A,0)),INDEX('Org functional rollups'!$D:$D,MATCH($B87,'Org functional rollups'!$A:$A,0)),0) -> Common
A88: ='12.2018 Data'!A68 -> 920000 | B88: ='12.2018 Data'!B68 -> E14 | C88: ='12.2018 Data'!C68 -> CD | D88: ='12.2018 Data'!D68 -> AN | E88: ='12.2018 Data'!E68 -> OPER | F88: ='12.2018 Data'!F68 -> 42306.34 | G88: ='12.2018 Data'!G68 -> 32878.39 | H88: ='12.2018 Data'!H68 -> 9427.95 | I88: ='12.2018 Data'!I68 -> 0 | J88: ='12.2018 Data'!J68 -> 0 | K88: 920 | L88: 42306.34 | M88: 32878.39 | N88: 9427.95 | O88: 0 | P88: 0 | Q88: =IF(ISNUMBER(MATCH($B88,'Org functional rollups'!$A:$A,0)),INDEX('Org functional rollups'!$D:$D,MATCH($B88,'Org functional rollups'!$A:$A,0)),0) -> Production
A89: ='12.2018 Data'!A69 -> 920000 | B89: ='12.2018 Data'!B69 -> E14 | C89: ='12.2018 Data'!C69 -> CD | D89: ='12.2018 Data'!D69 -> AA | E89: ='12.2018 Data'!E69 -> OPER | F89: ='12.2018 Data'!F69 -> 264427.26 | G89: ='12.2018 Data'!G69 -> 185456.12 | H89: ='12.2018 Data'!H69 -> 54337.17 | I89: ='12.2018 Data'!I69 -> 24633.97 | J89: ='12.2018 Data'!J69 -> 0 | K89: 920 | L89: 264427.26 | M89: 185456.12 | N89: 54337.17 | O89: 24633.97 | P89: 0 | Q89: =IF(ISNUMBER(MATCH($B89,'Org functional rollups'!$A:$A,0)),INDEX('Org functional rollups'!$D:$D,MATCH($B89,'Org functional rollups'!$A:$A,0)),0) -> Production
A90: ='12.2018 Data'!A70 -> 920000 | B90: ='12.2018 Data'!B70 -> E14 | C90: ='12.2018 Data'!C70 -> ED | D90: ='12.2018 Data'!D70 -> AN | E90: ='12.2018 Data'!E70 -> OPER | F90: ='12.2018 Data'!F70 -> 33959.65 | G90: ='12.2018 Data'!G70 -> 33959.65 | H90: ='12.2018 Data'!H70 -> 0 | I90: ='12.2018 Data'!I70 -> 0 | J90: ='12.2018 Data'!J70 -> 0 | K90: 920 | L90: 33959.65 | M90: 33959.65 | N90: 0 | O90: 0 | P90: 0 | Q90: =IF(ISNUMBER(MATCH($B90,'Org functional rollups'!$A:$A,0)),INDEX('Org functional rollups'!$D:$D,MATCH($B90,'Org functional rollups'!$A:$A,0)),0) -> Production
A91: ='12.2018 Data'!A71 -> 920000 | B91: ='12.2018 Data'!B71 -> E19 | C91: ='12.2018 Data'!C71 -> CD | D91: ='12.2018 Data'!D71 -> AN | E91: ='12.2018 Data'!E71 -> OPER | F91: ='12.2018 Data'!F71 -> 180.25 | G91: ='12.2018 Data'!G71 -> 140.09 | H91: ='12.2018 Data'!H71 -> 40.16 | I91: ='12.2018 Data'!I71 -> 0 | J91: ='12.2018 Data'!J71 -> 0 | K91: 920 | L91: 180.25 | M91: 140.09 | N91: 40.16 | O91: 0 | P91: 0 | Q91: =IF(ISNUMBER(MATCH($B91,'Org functional rollups'!$A:$A,0)),INDEX('Org functional rollups'!$D:$D,MATCH($B91,'Org functional rollups'!$A:$A,0)),0) -> Common
A92: ='12.2018 Data'!A72 -> 920000 | B92: ='12.2018 Data'!B72 -> E19 | C92: ='12.2018 Data'!C72 -> CD | D92: ='12.2018 Data'!D72 -> AA | E92: ='12.2018 Data'!E72 -> OPER | F92: ='12.2018 Data'!F72 -> 458166.88 | G92: ='12.2018 Data'!G72 -> 321335.42 | H92: ='12.2018 Data'!H72 -> 94148.96 | I92: ='12.2018 Data'!I72 -> 42682.5 | J92: ='12.2018 Data'!J72 -> 0 | K92: 920 | L92: 458166.88 | M92: 321335.42 | N92: 94148.96 | O92: 42682.5 | P92: 0 | Q92: =IF(ISNUMBER(MATCH($B92,'Org functional rollups'!$A:$A,0)),INDEX('Org functional rollups'!$D:$D,MATCH($B92,'Org functional rollups'!$A:$A,0)),0) -> Common
A93: ='12.2018 Data'!A73 -> 920000 | B93: ='12.2018 Data'!B73 -> E50 | C93: ='12.2018 Data'!C73 -> CD | D93: ='12.2018 Data'!D73 -> AA | E93: ='12.2018 Data'!E73 -> OPER | F93: ='12.2018 Data'!F73 -> 10430.33 | G93: ='12.2018 Data'!G73 -> 7315.31 | H93: ='12.2018 Data'!H73 -> 2143.32 | I93: ='12.2018 Data'!I73 -> 971.7 | J93: ='12.2018 Data'!J73 -> 0 | K93: 920 | L93: 10430.33 | M93: 7315.31 | N93: 2143.32 | O93: 971.7 | P93: 0 | Q93: =IF(ISNUMBER(MATCH($B93,'Org functional rollups'!$A:$A,0)),INDEX('Org functional rollups'!$D:$D,MATCH($B93,'Org functional rollups'!$A:$A,0)),0) -> Customer
A94: ='12.2018 Data'!A74 -> 920000 | B94: ='12.2018 Data'!B74 -> E51 | C94: ='12.2018 Data'!C74 -> CD | D94: ='12.2018 Data'!D74 -> AA | E94: ='12.2018 Data'!E74 -> OPER | F94: ='12.2018 Data'!F74 -> 46349.91 | G94: ='12.2018 Data'!G74 -> 32507.5 | H94: ='12.2018 Data'!H74 -> 9524.44 | I94: ='12.2018 Data'!I74 -> 4317.97 | J94: ='12.2018 Data'!J74 -> 0 | K94: 920 | L94: 46349.91 | M94: 32507.5 | N94: 9524.44 | O94: 4317.97 | P94: 0 | Q94: =IF(ISNUMBER(MATCH($B94,'Org functional rollups'!$A:$A,0)),INDEX('Org functional rollups'!$D:$D,MATCH($B94,'Org functional rollups'!$A:$A,0)),0) -> Distribution
A95: ='12.2018 Data'!A75 -> 920000 | B95: ='12.2018 Data'!B75 -> E51 | C95: ='12.2018 Data'!C75 -> CD | D95: ='12.2018 Data'!D75 -> AN | E95: ='12.2018 Data'!E75 -> OPER | F95: ='12.2018 Data'!F75 -> 9123.05 | G95: ='12.2018 Data'!G75 -> 7089.98 | H95: ='12.2018 Data'!H75 -> 2033.07 | I95: ='12.2018 Data'!I75 -> 0 | J95: ='12.2018 Data'!J75 -> 0 | K95: 920 | L95: 9123.05 | M95: 7089.98 | N95: 2033.07 | O95: 0 | P95: 0 | Q95: =IF(ISNUMBER(MATCH($B95,'Org functional rollups'!$A:$A,0)),INDEX('Org functional rollups'!$D:$D,MATCH($B95,'Org functional rollups'!$A:$A,0)),0) -> Distribution
A96: ='12.2018 Data'!A76 -> 920000 | B96: ='12.2018 Data'!B76 -> E55 | C96: ='12.2018 Data'!C76 -> CD | D96: ='12.2018 Data'!D76 -> AA | E96: ='12.2018 Data'!E76 -> OPER | F96: ='12.2018 Data'!F76 -> 13435.01 | G96: ='12.2018 Data'!G76 -> 9422.65 | H96: ='12.2018 Data'!H76 -> 2760.74 | I96: ='12.2018 Data'!I76 -> 1251.62 | J96: ='12.2018 Data'!J76 -> 0 | K96: 920 | L96: 13435.01 | M96: 9422.65 | N96: 2760.74 | O96: 1251.62 | P96: 0 | Q96: =IF(ISNUMBER(MATCH($B96,'Org functional rollups'!$A:$A,0)),INDEX('Org functional rollups'!$D:$D,MATCH($B96,'Org functional rollups'!$A:$A,0)),0) -> Production
A97: ='12.2018 Data'!A77 -> 920000 | B97: ='12.2018 Data'!B77 -> F02 | C97: ='12.2018 Data'!C77 -> CD | D97: ='12.2018 Data'!D77 -> AA | E97: ='12.2018 Data'!E77 -> OPER | F97: ='12.2018 Data'!F77 -> 227595.27 | G97: ='12.2018 Data'!G77 -> 159623.99 | H97: ='12.2018 Data'!H77 -> 46768.69 | I97: ='12.2018 Data'!I77 -> 21202.59 | J97: ='12.2018 Data'!J77 -> 0 | K97: 920 | L97: 227595.27 | M97: 159623.99 | N97: 46768.69 | O97: 21202.59 | P97: 0 | Q97: =IF(ISNUMBER(MATCH($B97,'Org functional rollups'!$A:$A,0)),INDEX('Org functional rollups'!$D:$D,MATCH($B97,'Org functional rollups'!$A:$A,0)),0) -> Common
A98: ='12.2018 Data'!A78 -> 920000 | B98: ='12.2018 Data'!B78 -> F08 | C98: ='12.2018 Data'!C78 -> CD | D98: ='12.2018 Data'!D78 -> AA | E98: ='12.2018 Data'!E78 -> OPER | F98: ='12.2018 Data'!F78 -> 461.7 | G98: ='12.2018 Data'!G78 -> 323.81 | H98: ='12.2018 Data'!H78 -> 94.87 | I98: ='12.2018 Data'!I78 -> 43.02 | J98: ='12.2018 Data'!J78 -> 0 | K98: 920 | L98: 461.7 | M98: 323.81 | N98: 94.87 | O98: 43.02 | P98: 0 | Q98: =IF(ISNUMBER(MATCH($B98,'Org functional rollups'!$A:$A,0)),INDEX('Org functional rollups'!$D:$D,MATCH($B98,'Org functional rollups'!$A:$A,0)),0) -> Transmission
A99: ='12.2018 Data'!A79 -> 920000 | B99: ='12.2018 Data'!B79 -> F19 | C99: ='12.2018 Data'!C79 -> CD | D99: ='12.2018 Data'!D79 -> AA | E99: ='12.2018 Data'!E79 -> OPER | F99: ='12.2018 Data'!F79 -> 237705.74 | G99: ='12.2018 Data'!G79 -> 166714.91 | H99: ='12.2018 Data'!H79 -> 48846.16 | I99: ='12.2018 Data'!I79 -> 22144.67 | J99: ='12.2018 Data'!J79 -> 0 | K99: 920 | L99: 237705.74 | M99: 166714.91 | N99: 48846.16 | O99: 22144.67 | P99: 0 | Q99: =IF(ISNUMBER(MATCH($B99,'Org functional rollups'!$A:$A,0)),INDEX('Org functional rollups'!$D:$D,MATCH($B99,'Org functional rollups'!$A:$A,0)),0) -> Common
A100: ='12.2018 Data'!A80 -> 920000 | B100: ='12.2018 Data'!B80 -> F39 | C100: ='12.2018 Data'!C80 -> CD | D100: ='12.2018 Data'!D80 -> AA | E100: ='12.2018 Data'!E80 -> OPER | F100: ='12.2018 Data'!F80 -> 25656.73 | G100: ='12.2018 Data'!G80 -> 17994.29 | H100: ='12.2018 Data'!H80 -> 5272.2 | I100: ='12.2018 Data'!I80 -> 2390.24 | J100: ='12.2018 Data'!J80 -> 0 | K100: 920 | L100: 25656.73 | M100: 17994.29 | N100: 5272.2 | O100: 2390.24 | P100: 0 | Q100: =IF(ISNUMBER(MATCH($B100,'Org functional rollups'!$A:$A,0)),INDEX('Org functional rollups'!$D:$D,MATCH($B100,'Org functional rollups'!$A:$A,0)),0) -> Common
A101: ='12.2018 Data'!A81 -> 920000 | B101: ='12.2018 Data'!B81 -> F50 | C101: ='12.2018 Data'!C81 -> CD | D101: ='12.2018 Data'!D81 -> AA | E101: ='12.2018 Data'!E81 -> OPER | F101: ='12.2018 Data'!F81 -> 8501.49 | G101: ='12.2018 Data'!G81 -> 5962.51 | H101: ='12.2018 Data'!H81 -> 1746.97 | I101: ='12.2018 Data'!I81 -> 792.01 | J101: ='12.2018 Data'!J81 -> 0 | K101: 920 | L101: 8501.49 | M101: 5962.51 | N101: 1746.97 | O101: 792.01 | P101: 0 | Q101: =IF(ISNUMBER(MATCH($B101,'Org functional rollups'!$A:$A,0)),INDEX('Org functional rollups'!$D:$D,MATCH($B101,'Org functional rollups'!$A:$A,0)),0) -> Customer
A102: ='12.2018 Data'!A82 -> 920000 | B102: ='12.2018 Data'!B82 -> F52 | C102: ='12.2018 Data'!C82 -> GD | D102: ='12.2018 Data'!D82 -> AA | E102: ='12.2018 Data'!E82 -> OPER | F102: ='12.2018 Data'!F82 -> 1129.62 | G102: ='12.2018 Data'!G82 -> 0 | H102: ='12.2018 Data'!H82 -> 774.49 | I102: ='12.2018 Data'!I82 -> 355.13 | J102: ='12.2018 Data'!J82 -> 0 | K102: 920 | L102: 1129.62 | M102: =IF(ISNUMBER(G102),G102,0) -> 0 | N102: =IF(ISNUMBER(H102),H102,0) -> 774.49 | O102: =IF(ISNUMBER(I102),I102,0) -> 355.13 | P102: =IF(ISNUMBER(J102),J102,0) -> 0 | Q102: =IF(ISNUMBER(MATCH($B102,'Org functional rollups'!$A:$A,0)),INDEX('Org functional rollups'!$D:$D,MATCH($B102,'Org functional rollups'!$A:$A,0)),0) -> Customer
A103: ='12.2018 Data'!A83 -> 920000 | B103: ='12.2018 Data'!B83 -> F53 | C103: ='12.2018 Data'!C83 -> CD | D103: ='12.2018 Data'!D83 -> WA | E103: ='12.2018 Data'!E83 -> OPER | F103: ='12.2018 Data'!F83 -> 9674.76 | G103: ='12.2018 Data'!G83 -> 7518.65 | H103: ='12.2018 Data'!H83 -> 2156.11 | I103: ='12.2018 Data'!I83 -> 0 | J103: ='12.2018 Data'!J83 -> 0 | K103: 920 | L103: 9674.76 | M103: 7518.65 | N103: 2156.11 | O103: 0 | P103: 0 | Q103: =IF(ISNUMBER(MATCH($B103,'Org functional rollups'!$A:$A,0)),INDEX('Org functional rollups'!$D:$D,MATCH($B103,'Org functional rollups'!$A:$A,0)),0) -> Customer
A104: ='12.2018 Data'!A84 -> 920000 | B104: ='12.2018 Data'!B84 -> F53 | C104: ='12.2018 Data'!C84 -> CD | D104: ='12.2018 Data'!D84 -> ID | E104: ='12.2018 Data'!E84 -> OPER | F104: ='12.2018 Data'!F84 -> 22903.4 | G104: ='12.2018 Data'!G84 -> 17799.38 | H104: ='12.2018 Data'!H84 -> 5104.02 | I104: ='12.2018 Data'!I84 -> 0 | J104: ='12.2018 Data'!J84 -> 0 | K104: 920 | L104: 22903.4 | M104: 17799.38 | N104: 5104.02 | O104: 0 | P104: 0 | Q104: =IF(ISNUMBER(MATCH($B104,'Org functional rollups'!$A:$A,0)),INDEX('Org functional rollups'!$D:$D,MATCH($B104,'Org functional rollups'!$A:$A,0)),0) -> Customer
A105: ='12.2018 Data'!A85 -> 920000 | B105: ='12.2018 Data'!B85 -> F54 | C105: ='12.2018 Data'!C85 -> CD | D105: ='12.2018 Data'!D85 -> AA | E105: ='12.2018 Data'!E85 -> OPER | F105: ='12.2018 Data'!F85 -> 397803.85 | G105: ='12.2018 Data'!G85 -> 278999.77 | H105: ='12.2018 Data'!H85 -> 81744.85 | I105: ='12.2018 Data'!I85 -> 37059.23 | J105: ='12.2018 Data'!J85 -> 0 | K105: 920 | L105: 397803.85 | M105: 278999.77 | N105: 81744.85 | O105: 37059.23 | P105: 0 | Q105: =IF(ISNUMBER(MATCH($B105,'Org functional rollups'!$A:$A,0)),INDEX('Org functional rollups'!$D:$D,MATCH($B105,'Org functional rollups'!$A:$A,0)),0) -> Common
A106: ='12.2018 Data'!A86 -> 920000 | B106: ='12.2018 Data'!B86 -> F55 | C106: ='12.2018 Data'!C86 -> CD | D106: ='12.2018 Data'!D86 -> AA | E106: ='12.2018 Data'!E86 -> OPER | F106: ='12.2018 Data'!F86 -> 613489.41 | G106: ='12.2018 Data'!G86 -> 430270.77 | H106: ='12.2018 Data'!H86 -> 126066 | I106: ='12.2018 Data'!I86 -> 57152.64 | J106: ='12.2018 Data'!J86 -> 0 | K106: 920 | L106: 613489.41 | M106: 430270.77 | N106: 126066 | O106: 57152.64 | P106: 0 | Q106: =IF(ISNUMBER(MATCH($B106,'Org functional rollups'!$A:$A,0)),INDEX('Org functional rollups'!$D:$D,MATCH($B106,'Org functional rollups'!$A:$A,0)),0) -> Common
A107: ='12.2018 Data'!A87 -> 920000 | B107: ='12.2018 Data'!B87 -> F55 | C107: ='12.2018 Data'!C87 -> ED | D107: ='12.2018 Data'!D87 -> AN | E107: ='12.2018 Data'!E87 -> OPER | F107: ='12.2018 Data'!F87 -> 6484.33 | G107: ='12.2018 Data'!G87 -> 6484.33 | H107: ='12.2018 Data'!H87 -> 0 | I107: ='12.2018 Data'!I87 -> 0 | J107: ='12.2018 Data'!J87 -> 0 | K107: 920 | L107: 6484.33 | M107: 6484.33 | N107: 0 | O107: 0 | P107: 0 | Q107: =IF(ISNUMBER(MATCH($B107,'Org functional rollups'!$A:$A,0)),INDEX('Org functional rollups'!$D:$D,MATCH($B107,'Org functional rollups'!$A:$A,0)),0) -> Common
A108: ='12.2018 Data'!A88 -> 920000 | B108: ='12.2018 Data'!B88 -> F55 | C108: ='12.2018 Data'!C88 -> GD | D108: ='12.2018 Data'!D88 -> AA | E108: ='12.2018 Data'!E88 -> OPER | F108: ='12.2018 Data'!F88 -> 6484.33 | G108: ='12.2018 Data'!G88 -> 0 | H108: ='12.2018 Data'!H88 -> 4445.78 | I108: ='12.2018 Data'!I88 -> 2038.55 | J108: ='12.2018 Data'!J88 -> 0 | K108: 920 | L108: 6484.33 | M108: 0 | N108: 4445.78 | O108: 2038.55 | P108: 0 | Q108: =IF(ISNUMBER(MATCH($B108,'Org functional rollups'!$A:$A,0)),INDEX('Org functional rollups'!$D:$D,MATCH($B108,'Org functional rollups'!$A:$A,0)),0) -> Common
A109: ='12.2018 Data'!A89 -> 920000 | B109: ='12.2018 Data'!B89 -> G02 | C109: ='12.2018 Data'!C89 -> CD | D109: ='12.2018 Data'!D89 -> AA | E109: ='12.2018 Data'!E89 -> OPER | F109: ='12.2018 Data'!F89 -> 249291.62 | G109: ='12.2018 Data'!G89 -> 174840.63 | H109: ='12.2018 Data'!H89 -> 51226.97 | I109: ='12.2018 Data'!I89 -> 23224.02 | J109: ='12.2018 Data'!J89 -> 0 | K109: 920 | L109: 249291.62 | M109: 174840.63 | N109: 51226.97 | O109: 23224.02 | P109: 0 | Q109: =IF(ISNUMBER(MATCH($B109,'Org functional rollups'!$A:$A,0)),INDEX('Org functional rollups'!$D:$D,MATCH($B109,'Org functional rollups'!$A:$A,0)),0) -> Distribution
A110: ='12.2018 Data'!A90 -> 920000 | B110: ='12.2018 Data'!B90 -> G02 | C110: ='12.2018 Data'!C90 -> CD | D110: ='12.2018 Data'!D90 -> WA | E110: ='12.2018 Data'!E90 -> OPER | F110: ='12.2018 Data'!F90 -> 528.9 | G110: ='12.2018 Data'!G90 -> 411.03 | H110: ='12.2018 Data'!H90 -> 117.87 | I110: ='12.2018 Data'!I90 -> 0 | J110: ='12.2018 Data'!J90 -> 0 | K110: 920 | L110: 528.9 | M110: 411.03 | N110: 117.87 | O110: 0 | P110: 0 | Q110: =IF(ISNUMBER(MATCH($B110,'Org functional rollups'!$A:$A,0)),INDEX('Org functional rollups'!$D:$D,MATCH($B110,'Org functional rollups'!$A:$A,0)),0) -> Distribution
A111: ='12.2018 Data'!A91 -> 920000 | B111: ='12.2018 Data'!B91 -> G08 | C111: ='12.2018 Data'!C91 -> CD | D111: ='12.2018 Data'!D91 -> AA | E111: ='12.2018 Data'!E91 -> OPER | F111: ='12.2018 Data'!F91 -> 3570.9 | G111: ='12.2018 Data'!G91 -> 2504.46 | H111: ='12.2018 Data'!H91 -> 733.78 | I111: ='12.2018 Data'!I91 -> 332.66 | J111: ='12.2018 Data'!J91 -> 0 | K111: 920 | L111: 3570.9 | M111: 2504.46 | N111: 733.78 | O111: 332.66 | P111: 0 | Q111: =IF(ISNUMBER(MATCH($B111,'Org functional rollups'!$A:$A,0)),INDEX('Org functional rollups'!$D:$D,MATCH($B111,'Org functional rollups'!$A:$A,0)),0) -> Distribution
A112: ='12.2018 Data'!A92 -> 920000 | B112: ='12.2018 Data'!B92 -> G39 | C112: ='12.2018 Data'!C92 -> CD | D112: ='12.2018 Data'!D92 -> AA | E112: ='12.2018 Data'!E92 -> OPER | F112: ='12.2018 Data'!F92 -> 15814.67 | G112: ='12.2018 Data'!G92 -> 11091.65 | H112: ='12.2018 Data'!H92 -> 3249.77 | I112: ='12.2018 Data'!I92 -> 1473.25 | J112: ='12.2018 Data'!J92 -> 0 | K112: 920 | L112: 15814.67 | M112: 11091.65 | N112: 3249.77 | O112: 1473.25 | P112: 0 | Q112: =IF(ISNUMBER(MATCH($B112,'Org functional rollups'!$A:$A,0)),INDEX('Org functional rollups'!$D:$D,MATCH($B112,'Org functional rollups'!$A:$A,0)),0) -> Common
A113: ='12.2018 Data'!A93 -> 920000 | B113: ='12.2018 Data'!B93 -> G50 | C113: ='12.2018 Data'!C93 -> CD | D113: ='12.2018 Data'!D93 -> AA | E113: ='12.2018 Data'!E93 -> OPER | F113: ='12.2018 Data'!F93 -> 10900.58 | G113: ='12.2018 Data'!G93 -> 7645.14 | H113: ='12.2018 Data'!H93 -> 2239.96 | I113: ='12.2018 Data'!I93 -> 1015.48 | J113: ='12.2018 Data'!J93 -> 0 | K113: 920 | L113: 10900.58 | M113: 7645.14 | N113: 2239.96 | O113: 1015.48 | P113: 0 | Q113: =IF(ISNUMBER(MATCH($B113,'Org functional rollups'!$A:$A,0)),INDEX('Org functional rollups'!$D:$D,MATCH($B113,'Org functional rollups'!$A:$A,0)),0) -> Distribution
A114: ='12.2018 Data'!A94 -> 920000 | B114: ='12.2018 Data'!B94 -> G51 | C114: ='12.2018 Data'!C94 -> CD | D114: ='12.2018 Data'!D94 -> AA | E114: ='12.2018 Data'!E94 -> OPER | F114: ='12.2018 Data'!F94 -> 8501.99 | G114: ='12.2018 Data'!G94 -> 5962.88 | H114: ='12.2018 Data'!H94 -> 1747.07 | I114: ='12.2018 Data'!I94 -> 792.04 | J114: ='12.2018 Data'!J94 -> 0 | K114: 920 | L114: 8501.99 | M114: 5962.88 | N114: 1747.07 | O114: 792.04 | P114: 0 | Q114: =IF(ISNUMBER(MATCH($B114,'Org functional rollups'!$A:$A,0)),INDEX('Org functional rollups'!$D:$D,MATCH($B114,'Org functional rollups'!$A:$A,0)),0) -> Production
A115: ='12.2018 Data'!A95 -> 920000 | B115: ='12.2018 Data'!B95 -> G53 | C115: ='12.2018 Data'!C95 -> CD | D115: ='12.2018 Data'!D95 -> ID | E115: ='12.2018 Data'!E95 -> OPER | F115: ='12.2018 Data'!F95 -> 59189.42 | G115: ='12.2018 Data'!G95 -> 45999.03 | H115: ='12.2018 Data'!H95 -> 13190.39 | I115: ='12.2018 Data'!I95 -> 0 | J115: ='12.2018 Data'!J95 -> 0 | K115: 920 | L115: 59189.42 | M115: 45999.03 | N115: 13190.39 | O115: 0 | P115: 0 | Q115: =IF(ISNUMBER(MATCH($B115,'Org functional rollups'!$A:$A,0)),INDEX('Org functional rollups'!$D:$D,MATCH($B115,'Org functional rollups'!$A:$A,0)),0) -> Distribution
A116: ='12.2018 Data'!A96 -> 920000 | B116: ='12.2018 Data'!B96 -> G54 | C116: ='12.2018 Data'!C96 -> CD | D116: ='12.2018 Data'!D96 -> AA | E116: ='12.2018 Data'!E96 -> OPER | F116: ='12.2018 Data'!F96 -> 35870.19 | G116: ='12.2018 Data'!G96 -> 25157.55 | H116: ='12.2018 Data'!H96 -> 7370.98 | I116: ='12.2018 Data'!I96 -> 3341.66 | J116: ='12.2018 Data'!J96 -> 0 | K116: 920 | L116: 35870.19 | M116: 25157.55 | N116: 7370.98 | O116: 3341.66 | P116: 0 | Q116: =IF(ISNUMBER(MATCH($B116,'Org functional rollups'!$A:$A,0)),INDEX('Org functional rollups'!$D:$D,MATCH($B116,'Org functional rollups'!$A:$A,0)),0) -> Common
A117: ='12.2018 Data'!A97 -> 920000 | B117: ='12.2018 Data'!B97 -> H02 | C117: ='12.2018 Data'!C97 -> CD | D117: ='12.2018 Data'!D97 -> AA | E117: ='12.2018 Data'!E97 -> OPER | F117: ='12.2018 Data'!F97 -> 170016.92 | G117: ='12.2018 Data'!G97 -> 119241.31 | H117: ='12.2018 Data'!H97 -> 34936.91 | I117: ='12.2018 Data'!I97 -> 15838.7 | J117: ='12.2018 Data'!J97 -> 0 | K117: 920 | L117: 170016.92 | M117: 119241.31 | N117: 34936.91 | O117: 15838.7 | P117: 0 | Q117: =IF(ISNUMBER(MATCH($B117,'Org functional rollups'!$A:$A,0)),INDEX('Org functional rollups'!$D:$D,MATCH($B117,'Org functional rollups'!$A:$A,0)),0) -> Common
A118: ='12.2018 Data'!A98 -> 920000 | B118: ='12.2018 Data'!B98 -> H04 | C118: ='12.2018 Data'!C98 -> CD | D118: ='12.2018 Data'!D98 -> AA | E118: ='12.2018 Data'!E98 -> OPER | F118: ='12.2018 Data'!F98 -> 60.21 | G118: ='12.2018 Data'!G98 -> 42.23 | H118: ='12.2018 Data'!H98 -> 12.37 | I118: ='12.2018 Data'!I98 -> 5.61 | J118: ='12.2018 Data'!J98 -> 0 | K118: 920 | L118: 60.21 | M118: 42.23 | N118: 12.37 | O118: 5.61 | P118: 0 | Q118: =IF(ISNUMBER(MATCH($B118,'Org functional rollups'!$A:$A,0)),INDEX('Org functional rollups'!$D:$D,MATCH($B118,'Org functional rollups'!$A:$A,0)),0) -> Production
A119: ='12.2018 Data'!A99 -> 920000 | B119: ='12.2018 Data'!B99 -> H07 | C119: ='12.2018 Data'!C99 -> CD | D119: ='12.2018 Data'!D99 -> AA | E119: ='12.2018 Data'!E99 -> OPER | F119: ='12.2018 Data'!F99 -> 24621.69 | G119: ='12.2018 Data'!G99 -> 17268.43 | H119: ='12.2018 Data'!H99 -> 5059.51 | I119: ='12.2018 Data'!I99 -> 2293.75 | J119: ='12.2018 Data'!J99 -> 0 | K119: 920 | L119: 24621.69 | M119: 17268.43 | N119: 5059.51 | O119: 2293.75 | P119: 0 | Q119: =IF(ISNUMBER(MATCH($B119,'Org functional rollups'!$A:$A,0)),INDEX('Org functional rollups'!$D:$D,MATCH($B119,'Org functional rollups'!$A:$A,0)),0) -> Common
A120: ='12.2018 Data'!A100 -> 920000 | B120: ='12.2018 Data'!B100 -> H14 | C120: ='12.2018 Data'!C100 -> CD | D120: ='12.2018 Data'!D100 -> WA | E120: ='12.2018 Data'!E100 -> OPER | F120: ='12.2018 Data'!F100 -> 29962.56 | G120: ='12.2018 Data'!G100 -> 23285.45 | H120: ='12.2018 Data'!H100 -> 6677.11 | I120: ='12.2018 Data'!I100 -> 0 | J120: ='12.2018 Data'!J100 -> 0 | K120: 920 | L120: 29962.56 | M120: 23285.45 | N120: 6677.11 | O120: 0 | P120: 0 | Q120: =IF(ISNUMBER(MATCH($B120,'Org functional rollups'!$A:$A,0)),INDEX('Org functional rollups'!$D:$D,MATCH($B120,'Org functional rollups'!$A:$A,0)),0) -> Customer
A121: ='12.2018 Data'!A101 -> 920000 | B121: ='12.2018 Data'!B101 -> H14 | C121: ='12.2018 Data'!C101 -> CD | D121: ='12.2018 Data'!D101 -> AA | E121: ='12.2018 Data'!E101 -> OPER | F121: ='12.2018 Data'!F101 -> 129773.65 | G121: ='12.2018 Data'!G101 -> 91016.76 | H121: ='12.2018 Data'!H101 -> 26667.16 | I121: ='12.2018 Data'!I101 -> 12089.73 | J121: ='12.2018 Data'!J101 -> 0 | K121: 920 | L121: 129773.65 | M121: 91016.76 | N121: 26667.16 | O121: 12089.73 | P121: 0 | Q121: =IF(ISNUMBER(MATCH($B121,'Org functional rollups'!$A:$A,0)),INDEX('Org functional rollups'!$D:$D,MATCH($B121,'Org functional rollups'!$A:$A,0)),0) -> Customer
A122: ='12.2018 Data'!A102 -> 920000 | B122: ='12.2018 Data'!B102 -> H14 | C122: ='12.2018 Data'!C102 -> CD | D122: ='12.2018 Data'!D102 -> ID | E122: ='12.2018 Data'!E102 -> OPER | F122: ='12.2018 Data'!F102 -> 10213.05 | G122: ='12.2018 Data'!G102 -> 7937.17 | H122: ='12.2018 Data'!H102 -> 2275.88 | I122: ='12.2018 Data'!I102 -> 0 | J122: ='12.2018 Data'!J102 -> 0 | K122: 920 | L122: 10213.05 | M122: 7937.17 | N122: 2275.88 | O122: 0 | P122: 0 | Q122: =IF(ISNUMBER(MATCH($B122,'Org functional rollups'!$A:$A,0)),INDEX('Org functional rollups'!$D:$D,MATCH($B122,'Org functional rollups'!$A:$A,0)),0) -> Customer
A123: ='12.2018 Data'!A103 -> 920000 | B123: ='12.2018 Data'!B103 -> H51 | C123: ='12.2018 Data'!C103 -> CD | D123: ='12.2018 Data'!D103 -> AA | E123: ='12.2018 Data'!E103 -> OPER | F123: ='12.2018 Data'!F103 -> 716080.48 | G123: ='12.2018 Data'!G103 -> 502223.11 | H123: ='12.2018 Data'!H103 -> 147147.42 | I123: ='12.2018 Data'!I103 -> 66709.95 | J123: ='12.2018 Data'!J103 -> 0 | K123: 920 | L123: 716080.48 | M123: 502223.11 | N123: 147147.42 | O123: 66709.95 | P123: 0 | Q123: =IF(ISNUMBER(MATCH($B123,'Org functional rollups'!$A:$A,0)),INDEX('Org functional rollups'!$D:$D,MATCH($B123,'Org functional rollups'!$A:$A,0)),0) -> Common
A124: ='12.2018 Data'!A104 -> 920000 | B124: ='12.2018 Data'!B104 -> H54 | C124: ='12.2018 Data'!C104 -> CD | D124: ='12.2018 Data'!D104 -> AA | E124: ='12.2018 Data'!E104 -> OPER | F124: ='12.2018 Data'!F104 -> 238497.14 | G124: ='12.2018 Data'!G104 -> 167270.06 | H124: ='12.2018 Data'!H104 -> 49008.85 | I124: ='12.2018 Data'!I104 -> 22218.23 | J124: ='12.2018 Data'!J104 -> 0 | K124: 920 | L124: 238497.14 | M124: 167270.06 | N124: 49008.85 | O124: 22218.23 | P124: 0 | Q124: =IF(ISNUMBER(MATCH($B124,'Org functional rollups'!$A:$A,0)),INDEX('Org functional rollups'!$D:$D,MATCH($B124,'Org functional rollups'!$A:$A,0)),0) -> Customer
A125: ='12.2018 Data'!A105 -> 920000 | B125: ='12.2018 Data'!B105 -> I02 | C125: ='12.2018 Data'!C105 -> CD | D125: ='12.2018 Data'!D105 -> AA | E125: ='12.2018 Data'!E105 -> OPER | F125: ='12.2018 Data'!F105 -> 556475.47 | G125: ='12.2018 Data'!G105 -> 390283.99 | H125: ='12.2018 Data'!H105 -> 114350.17 | I125: ='12.2018 Data'!I105 -> 51841.31 | J125: ='12.2018 Data'!J105 -> 0 | K125: 920 | L125: 556475.47 | M125: 390283.99 | N125: 114350.17 | O125: 51841.31 | P125: 0 | Q125: =IF(ISNUMBER(MATCH($B125,'Org functional rollups'!$A:$A,0)),INDEX('Org functional rollups'!$D:$D,MATCH($B125,'Org functional rollups'!$A:$A,0)),0) -> Distribution
A126: ='12.2018 Data'!A106 -> 920000 | B126: ='12.2018 Data'!B106 -> I02 | C126: ='12.2018 Data'!C106 -> CD | D126: ='12.2018 Data'!D106 -> WA | E126: ='12.2018 Data'!E106 -> OPER | F126: ='12.2018 Data'!F106 -> 12614.16 | G126: ='12.2018 Data'!G106 -> 9803.09 | H126: ='12.2018 Data'!H106 -> 2811.07 | I126: ='12.2018 Data'!I106 -> 0 | J126: ='12.2018 Data'!J106 -> 0 | K126: 920 | L126: 12614.16 | M126: 9803.09 | N126: 2811.07 | O126: 0 | P126: 0 | Q126: =IF(ISNUMBER(MATCH($B126,'Org functional rollups'!$A:$A,0)),INDEX('Org functional rollups'!$D:$D,MATCH($B126,'Org functional rollups'!$A:$A,0)),0) -> Distribution
A127: ='12.2018 Data'!A107 -> 920000 | B127: ='12.2018 Data'!B107 -> I08 | C127: ='12.2018 Data'!C107 -> CD | D127: ='12.2018 Data'!D107 -> AA | E127: ='12.2018 Data'!E107 -> OPER | F127: ='12.2018 Data'!F107 -> 180734.49 | G127: ='12.2018 Data'!G107 -> 126758.12 | H127: ='12.2018 Data'!H107 -> 37139.12 | I127: ='12.2018 Data'!I107 -> 16837.25 | J127: ='12.2018 Data'!J107 -> 0 | K127: 920 | L127: 180734.49 | M127: 126758.12 | N127: 37139.12 | O127: 16837.25 | P127: 0 | Q127: =IF(ISNUMBER(MATCH($B127,'Org functional rollups'!$A:$A,0)),INDEX('Org functional rollups'!$D:$D,MATCH($B127,'Org functional rollups'!$A:$A,0)),0) -> Distribution
A128: ='12.2018 Data'!A108 -> 920000 | B128: ='12.2018 Data'!B108 -> I08 | C128: ='12.2018 Data'!C108 -> GD | D128: ='12.2018 Data'!D108 -> AA | E128: ='12.2018 Data'!E108 -> OPER | F128: ='12.2018 Data'!F108 -> 880.86 | G128: ='12.2018 Data'!G108 -> 0 | H128: ='12.2018 Data'!H108 -> 603.94 | I128: ='12.2018 Data'!I108 -> 276.92 | J128: ='12.2018 Data'!J108 -> 0 | K128: 920 | L128: 880.86 | M128: 0 | N128: 603.94 | O128: 276.92 | P128: 0 | Q128: =IF(ISNUMBER(MATCH($B128,'Org functional rollups'!$A:$A,0)),INDEX('Org functional rollups'!$D:$D,MATCH($B128,'Org functional rollups'!$A:$A,0)),0) -> Distribution
A129: ='12.2018 Data'!A109 -> 920000 | B129: ='12.2018 Data'!B109 -> I50 | C129: ='12.2018 Data'!C109 -> CD | D129: ='12.2018 Data'!D109 -> AA | E129: ='12.2018 Data'!E109 -> OPER | F129: ='12.2018 Data'!F109 -> 1632.12 | G129: ='12.2018 Data'!G109 -> 1144.68 | H129: ='12.2018 Data'!H109 -> 335.37 | I129: ='12.2018 Data'!I109 -> 152.07 | J129: ='12.2018 Data'!J109 -> 0 | K129: 920 | L129: 1632.12 | M129: 1144.68 | N129: 335.37 | O129: 152.07 | P129: 0 | Q129: =IF(ISNUMBER(MATCH($B129,'Org functional rollups'!$A:$A,0)),INDEX('Org functional rollups'!$D:$D,MATCH($B129,'Org functional rollups'!$A:$A,0)),0) -> Customer
A130: ='12.2018 Data'!A110 -> 920000 | B130: ='12.2018 Data'!B110 -> J02 | C130: ='12.2018 Data'!C110 -> CD | D130: ='12.2018 Data'!D110 -> AA | E130: ='12.2018 Data'!E110 -> OPER | F130: ='12.2018 Data'!F110 -> 750 | G130: ='12.2018 Data'!G110 -> 526.01 | H130: ='12.2018 Data'!H110 -> 154.12 | I130: ='12.2018 Data'!I110 -> 69.87 | J130: ='12.2018 Data'!J110 -> 0 | K130: 920 | L130: 750 | M130: 526.01 | N130: 154.12 | O130: 69.87 | P130: 0 | Q130: =IF(ISNUMBER(MATCH($B130,'Org functional rollups'!$A:$A,0)),INDEX('Org functional rollups'!$D:$D,MATCH($B130,'Org functional rollups'!$A:$A,0)),0) -> Customer
A131: ='12.2018 Data'!A111 -> 920000 | B131: ='12.2018 Data'!B111 -> J07 | C131: ='12.2018 Data'!C111 -> CD | D131: ='12.2018 Data'!D111 -> AA | E131: ='12.2018 Data'!E111 -> OPER | F131: ='12.2018 Data'!F111 -> 4996.78 | G131: ='12.2018 Data'!G111 -> 3504.5 | H131: ='12.2018 Data'!H111 -> 1026.8 | I131: ='12.2018 Data'!I111 -> 465.48 | J131: ='12.2018 Data'!J111 -> 0 | K131: 920 | L131: 4996.78 | M131: 3504.5 | N131: 1026.8 | O131: 465.48 | P131: 0 | Q131: =IF(ISNUMBER(MATCH($B131,'Org functional rollups'!$A:$A,0)),INDEX('Org functional rollups'!$D:$D,MATCH($B131,'Org functional rollups'!$A:$A,0)),0) -> Production
A132: ='12.2018 Data'!A112 -> 920000 | B132: ='12.2018 Data'!B112 -> J09 | C132: ='12.2018 Data'!C112 -> CD | D132: ='12.2018 Data'!D112 -> AA | E132: ='12.2018 Data'!E112 -> OPER | F132: ='12.2018 Data'!F112 -> 199616.61 | G132: ='12.2018 Data'!G112 -> 140001.16 | H132: ='12.2018 Data'!H112 -> 41019.27 | I132: ='12.2018 Data'!I112 -> 18596.18 | J132: ='12.2018 Data'!J112 -> 0 | K132: 920 | L132: 199616.61 | M132: 140001.16 | N132: 41019.27 | O132: 18596.18 | P132: 0 | Q132: =IF(ISNUMBER(MATCH($B132,'Org functional rollups'!$A:$A,0)),INDEX('Org functional rollups'!$D:$D,MATCH($B132,'Org functional rollups'!$A:$A,0)),0) -> Common
A133: ='12.2018 Data'!A113 -> 920000 | B133: ='12.2018 Data'!B113 -> J50 | C133: ='12.2018 Data'!C113 -> CD | D133: ='12.2018 Data'!D113 -> ID | E133: ='12.2018 Data'!E113 -> OPER | F133: ='12.2018 Data'!F113 -> 565.3 | G133: ='12.2018 Data'!G113 -> 439.32 | H133: ='12.2018 Data'!H113 -> 125.98 | I133: ='12.2018 Data'!I113 -> 0 | J133: ='12.2018 Data'!J113 -> 0 | K133: 920 | L133: 565.3 | M133: 439.32 | N133: 125.98 | O133: 0 | P133: 0 | Q133: =IF(ISNUMBER(MATCH($B133,'Org functional rollups'!$A:$A,0)),INDEX('Org functional rollups'!$D:$D,MATCH($B133,'Org functional rollups'!$A:$A,0)),0) -> Distribution
A134: ='12.2018 Data'!A114 -> 920000 | B134: ='12.2018 Data'!B114 -> J50 | C134: ='12.2018 Data'!C114 -> CD | D134: ='12.2018 Data'!D114 -> AA | E134: ='12.2018 Data'!E114 -> OPER | F134: ='12.2018 Data'!F114 -> 235929.73 | G134: ='12.2018 Data'!G114 -> 165469.37 | H134: ='12.2018 Data'!H114 -> 48481.19 | I134: ='12.2018 Data'!I114 -> 21979.17 | J134: ='12.2018 Data'!J114 -> 0 | K134: 920 | L134: 235929.73 | M134: 165469.37 | N134: 48481.19 | O134: 21979.17 | P134: 0 | Q134: =IF(ISNUMBER(MATCH($B134,'Org functional rollups'!$A:$A,0)),INDEX('Org functional rollups'!$D:$D,MATCH($B134,'Org functional rollups'!$A:$A,0)),0) -> Distribution
A135: ='12.2018 Data'!A115 -> 920000 | B135: ='12.2018 Data'!B115 -> J50 | C135: ='12.2018 Data'!C115 -> CD | D135: ='12.2018 Data'!D115 -> WA | E135: ='12.2018 Data'!E115 -> OPER | F135: ='12.2018 Data'!F115 -> 146897.96 | G135: ='12.2018 Data'!G115 -> 114161.78 | H135: ='12.2018 Data'!H115 -> 32736.18 | I135: ='12.2018 Data'!I115 -> 0 | J135: ='12.2018 Data'!J115 -> 0 | K135: 920 | L135: 146897.96 | M135: 114161.78 | N135: 32736.18 | O135: 0 | P135: 0 | Q135: =IF(ISNUMBER(MATCH($B135,'Org functional rollups'!$A:$A,0)),INDEX('Org functional rollups'!$D:$D,MATCH($B135,'Org functional rollups'!$A:$A,0)),0) -> Distribution
A136: ='12.2018 Data'!A116 -> 920000 | B136: ='12.2018 Data'!B116 -> J51 | C136: ='12.2018 Data'!C116 -> CD | D136: ='12.2018 Data'!D116 -> AA | E136: ='12.2018 Data'!E116 -> OPER | F136: ='12.2018 Data'!F116 -> 5075.49 | G136: ='12.2018 Data'!G116 -> 3559.66 | H136: ='12.2018 Data'!H116 -> 1042.95 | I136: ='12.2018 Data'!I116 -> 472.88 | J136: ='12.2018 Data'!J116 -> 0 | K136: 920 | L136: 5075.49 | M136: 3559.66 | N136: 1042.95 | O136: 472.88 | P136: 0 | Q136: =IF(ISNUMBER(MATCH($B136,'Org functional rollups'!$A:$A,0)),INDEX('Org functional rollups'!$D:$D,MATCH($B136,'Org functional rollups'!$A:$A,0)),0) -> Common
A137: ='12.2018 Data'!A117 -> 920000 | B137: ='12.2018 Data'!B117 -> J51 | C137: ='12.2018 Data'!C117 -> ED | D137: ='12.2018 Data'!D117 -> AN | E137: ='12.2018 Data'!E117 -> OPER | F137: ='12.2018 Data'!F117 -> 1122.86 | G137: ='12.2018 Data'!G117 -> 1122.86 | H137: ='12.2018 Data'!H117 -> 0 | I137: ='12.2018 Data'!I117 -> 0 | J137: ='12.2018 Data'!J117 -> 0 | K137: 920 | L137: 1122.86 | M137: 1122.86 | N137: 0 | O137: 0 | P137: 0 | Q137: =IF(ISNUMBER(MATCH($B137,'Org functional rollups'!$A:$A,0)),INDEX('Org functional rollups'!$D:$D,MATCH($B137,'Org functional rollups'!$A:$A,0)),0) -> Common
A138: ='12.2018 Data'!A118 -> 920000 | B138: ='12.2018 Data'!B118 -> J53 | C138: ='12.2018 Data'!C118 -> CD | D138: ='12.2018 Data'!D118 -> AA | E138: ='12.2018 Data'!E118 -> OPER | F138: ='12.2018 Data'!F118 -> 51595.68 | G138: ='12.2018 Data'!G118 -> 36186.64 | H138: ='12.2018 Data'!H118 -> 10602.42 | I138: ='12.2018 Data'!I118 -> 4806.62 | J138: ='12.2018 Data'!J118 -> 0 | K138: 920 | L138: 51595.68 | M138: 36186.64 | N138: 10602.42 | O138: 4806.62 | P138: 0 | Q138: =IF(ISNUMBER(MATCH($B138,'Org functional rollups'!$A:$A,0)),INDEX('Org functional rollups'!$D:$D,MATCH($B138,'Org functional rollups'!$A:$A,0)),0) -> Distribution
A139: ='12.2018 Data'!A119 -> 920000 | B139: ='12.2018 Data'!B119 -> J54 | C139: ='12.2018 Data'!C119 -> CD | D139: ='12.2018 Data'!D119 -> AA | E139: ='12.2018 Data'!E119 -> OPER | F139: ='12.2018 Data'!F119 -> 537236.52 | G139: ='12.2018 Data'!G119 -> 376790.95 | H139: ='12.2018 Data'!H119 -> 110396.81 | I139: ='12.2018 Data'!I119 -> 50048.76 | J139: ='12.2018 Data'!J119 -> 0 | K139: 920 | L139: 537236.52 | M139: 376790.95 | N139: 110396.81 | O139: 50048.76 | P139: 0 | Q139: =IF(ISNUMBER(MATCH($B139,'Org functional rollups'!$A:$A,0)),INDEX('Org functional rollups'!$D:$D,MATCH($B139,'Org functional rollups'!$A:$A,0)),0) -> Common
A140: ='12.2018 Data'!A120 -> 920000 | B140: ='12.2018 Data'!B120 -> K02 | C140: ='12.2018 Data'!C120 -> CD | D140: ='12.2018 Data'!D120 -> AA | E140: ='12.2018 Data'!E120 -> OPER | F140: ='12.2018 Data'!F120 -> 95418.63 | G140: ='12.2018 Data'!G120 -> 66921.89 | H140: ='12.2018 Data'!H120 -> 19607.58 | I140: ='12.2018 Data'!I120 -> 8889.16 | J140: ='12.2018 Data'!J120 -> 0 | K140: 920 | L140: 95418.63 | M140: 66921.89 | N140: 19607.58 | O140: 8889.16 | P140: 0 | Q140: =IF(ISNUMBER(MATCH($B140,'Org functional rollups'!$A:$A,0)),INDEX('Org functional rollups'!$D:$D,MATCH($B140,'Org functional rollups'!$A:$A,0)),0) -> Common
A141: ='12.2018 Data'!A121 -> 920000 | B141: ='12.2018 Data'!B121 -> K19 | C141: ='12.2018 Data'!C121 -> CD | D141: ='12.2018 Data'!D121 -> AA | E141: ='12.2018 Data'!E121 -> OPER | F141: ='12.2018 Data'!F121 -> 176826.8 | G141: ='12.2018 Data'!G121 -> 124017.45 | H141: ='12.2018 Data'!H121 -> 36336.16 | I141: ='12.2018 Data'!I121 -> 16473.19 | J141: ='12.2018 Data'!J121 -> 0 | K141: 920 | L141: 176826.8 | M141: 124017.45 | N141: 36336.16 | O141: 16473.19 | P141: 0 | Q141: =IF(ISNUMBER(MATCH($B141,'Org functional rollups'!$A:$A,0)),INDEX('Org functional rollups'!$D:$D,MATCH($B141,'Org functional rollups'!$A:$A,0)),0) -> Common
A142: ='12.2018 Data'!A122 -> 920000 | B142: ='12.2018 Data'!B122 -> K50 | C142: ='12.2018 Data'!C122 -> CD | D142: ='12.2018 Data'!D122 -> AA | E142: ='12.2018 Data'!E122 -> OPER | F142: ='12.2018 Data'!F122 -> 115721.17 | G142: ='12.2018 Data'!G122 -> 81161.04 | H142: ='12.2018 Data'!H122 -> 23779.51 | I142: ='12.2018 Data'!I122 -> 10780.62 | J142: ='12.2018 Data'!J122 -> 0 | K142: 920 | L142: 115721.17 | M142: 81161.04 | N142: 23779.51 | O142: 10780.62 | P142: 0 | Q142: =IF(ISNUMBER(MATCH($B142,'Org functional rollups'!$A:$A,0)),INDEX('Org functional rollups'!$D:$D,MATCH($B142,'Org functional rollups'!$A:$A,0)),0) -> Distribution
A143: ='12.2018 Data'!A123 -> 920000 | B143: ='12.2018 Data'!B123 -> K51 | C143: ='12.2018 Data'!C123 -> CD | D143: ='12.2018 Data'!D123 -> AA | E143: ='12.2018 Data'!E123 -> OPER | F143: ='12.2018 Data'!F123 -> 12161.55 | G143: ='12.2018 Data'!G123 -> 8529.5 | H143: ='12.2018 Data'!H123 -> 2499.08 | I143: ='12.2018 Data'!I123 -> 1132.97 | J143: ='12.2018 Data'!J123 -> 0 | K143: 920 | L143: 12161.55 | M143: 8529.5 | N143: 2499.08 | O143: 1132.97 | P143: 0 | Q143: =IF(ISNUMBER(MATCH($B143,'Org functional rollups'!$A:$A,0)),INDEX('Org functional rollups'!$D:$D,MATCH($B143,'Org functional rollups'!$A:$A,0)),0) -> Distribution
A144: ='12.2018 Data'!A124 -> 920000 | B144: ='12.2018 Data'!B124 -> K53 | C144: ='12.2018 Data'!C124 -> CD | D144: ='12.2018 Data'!D124 -> AA | E144: ='12.2018 Data'!E124 -> OPER | F144: ='12.2018 Data'!F124 -> 7235.12 | G144: ='12.2018 Data'!G124 -> 5074.35 | H144: ='12.2018 Data'!H124 -> 1486.75 | I144: ='12.2018 Data'!I124 -> 674.02 | J144: ='12.2018 Data'!J124 -> 0 | K144: 920 | L144: 7235.12 | M144: 5074.35 | N144: 1486.75 | O144: 674.02 | P144: 0 | Q144: =IF(ISNUMBER(MATCH($B144,'Org functional rollups'!$A:$A,0)),INDEX('Org functional rollups'!$D:$D,MATCH($B144,'Org functional rollups'!$A:$A,0)),0) -> Customer
A145: ='12.2018 Data'!A125 -> 920000 | B145: ='12.2018 Data'!B125 -> L39 | C145: ='12.2018 Data'!C125 -> CD | D145: ='12.2018 Data'!D125 -> AA | E145: ='12.2018 Data'!E125 -> OPER | F145: ='12.2018 Data'!F125 -> 41816.9 | G145: ='12.2018 Data'!G125 -> 29328.28 | H145: ='12.2018 Data'!H125 -> 8592.94 | I145: ='12.2018 Data'!I125 -> 3895.68 | J145: ='12.2018 Data'!J125 -> 0 | K145: 920 | L145: 41816.9 | M145: 29328.28 | N145: 8592.94 | O145: 3895.68 | P145: 0 | Q145: =IF(ISNUMBER(MATCH($B145,'Org functional rollups'!$A:$A,0)),INDEX('Org functional rollups'!$D:$D,MATCH($B145,'Org functional rollups'!$A:$A,0)),0) -> Common
A146: ='12.2018 Data'!A126 -> 920000 | B146: ='12.2018 Data'!B126 -> L50 | C146: ='12.2018 Data'!C126 -> CD | D146: ='12.2018 Data'!D126 -> AA | E146: ='12.2018 Data'!E126 -> OPER | F146: ='12.2018 Data'!F126 -> 1683.6 | G146: ='12.2018 Data'!G126 -> 1180.8 | H146: ='12.2018 Data'!H126 -> 345.97 | I146: ='12.2018 Data'!I126 -> 156.83 | J146: ='12.2018 Data'!J126 -> 0 | K146: 920 | L146: 1683.6 | M146: 1180.8 | N146: 345.97 | O146: 156.83 | P146: 0 | Q146: =IF(ISNUMBER(MATCH($B146,'Org functional rollups'!$A:$A,0)),INDEX('Org functional rollups'!$D:$D,MATCH($B146,'Org functional rollups'!$A:$A,0)),0) -> Distribution
A147: ='12.2018 Data'!A127 -> 920000 | B147: ='12.2018 Data'!B127 -> L51 | C147: ='12.2018 Data'!C127 -> CD | D147: ='12.2018 Data'!D127 -> AA | E147: ='12.2018 Data'!E127 -> OPER | F147: ='12.2018 Data'!F127 -> 29051.82 | G147: ='12.2018 Data'!G127 -> 20375.52 | H147: ='12.2018 Data'!H127 -> 5969.85 | I147: ='12.2018 Data'!I127 -> 2706.45 | J147: ='12.2018 Data'!J127 -> 0 | K147: 920 | L147: 29051.82 | M147: 20375.52 | N147: 5969.85 | O147: 2706.45 | P147: 0 | Q147: =IF(ISNUMBER(MATCH($B147,'Org functional rollups'!$A:$A,0)),INDEX('Org functional rollups'!$D:$D,MATCH($B147,'Org functional rollups'!$A:$A,0)),0) -> Common
A148: ='12.2018 Data'!A128 -> 920000 | B148: ='12.2018 Data'!B128 -> L51 | C148: ='12.2018 Data'!C128 -> CD | D148: ='12.2018 Data'!D128 -> AN | E148: ='12.2018 Data'!E128 -> OPER | F148: ='12.2018 Data'!F128 -> 229636.93 | G148: ='12.2018 Data'!G128 -> 178462.31 | H148: ='12.2018 Data'!H128 -> 51174.62 | I148: ='12.2018 Data'!I128 -> 0 | J148: ='12.2018 Data'!J128 -> 0 | K148: 920 | L148: 229636.93 | M148: 178462.31 | N148: 51174.62 | O148: 0 | P148: 0 | Q148: =IF(ISNUMBER(MATCH($B148,'Org functional rollups'!$A:$A,0)),INDEX('Org functional rollups'!$D:$D,MATCH($B148,'Org functional rollups'!$A:$A,0)),0) -> Common
A149: ='12.2018 Data'!A129 -> 920000 | B149: ='12.2018 Data'!B129 -> L53 | C149: ='12.2018 Data'!C129 -> CD | D149: ='12.2018 Data'!D129 -> AA | E149: ='12.2018 Data'!E129 -> OPER | F149: ='12.2018 Data'!F129 -> 14098.76 | G149: ='12.2018 Data'!G129 -> 9888.16 | H149: ='12.2018 Data'!H129 -> 2897.15 | I149: ='12.2018 Data'!I129 -> 1313.45 | J149: ='12.2018 Data'!J129 -> 0 | K149: 920 | L149: 14098.76 | M149: 9888.16 | N149: 2897.15 | O149: 1313.45 | P149: 0 | Q149: =IF(ISNUMBER(MATCH($B149,'Org functional rollups'!$A:$A,0)),INDEX('Org functional rollups'!$D:$D,MATCH($B149,'Org functional rollups'!$A:$A,0)),0) -> Distribution
A150: ='12.2018 Data'!A130 -> 920000 | B150: ='12.2018 Data'!B130 -> L54 | C150: ='12.2018 Data'!C130 -> CD | D150: ='12.2018 Data'!D130 -> AA | E150: ='12.2018 Data'!E130 -> OPER | F150: ='12.2018 Data'!F130 -> 150 | G150: ='12.2018 Data'!G130 -> 105.2 | H150: ='12.2018 Data'!H130 -> 30.82 | I150: ='12.2018 Data'!I130 -> 13.98 | J150: ='12.2018 Data'!J130 -> 0 | K150: 920 | L150: 150 | M150: 105.2 | N150: 30.82 | O150: 13.98 | P150: 0 | Q150: =IF(ISNUMBER(MATCH($B150,'Org functional rollups'!$A:$A,0)),INDEX('Org functional rollups'!$D:$D,MATCH($B150,'Org functional rollups'!$A:$A,0)),0) -> Common
A151: ='12.2018 Data'!A131 -> 920000 | B151: ='12.2018 Data'!B131 -> M02 | C151: ='12.2018 Data'!C131 -> CD | D151: ='12.2018 Data'!D131 -> AA | E151: ='12.2018 Data'!E131 -> OPER | F151: ='12.2018 Data'!F131 -> 151486.97 | G151: ='12.2018 Data'!G131 -> 106245.46 | H151: ='12.2018 Data'!H131 -> 31129.03 | I151: ='12.2018 Data'!I131 -> 14112.48 | J151: ='12.2018 Data'!J131 -> 0 | K151: =LEFT(A151,3) -> 920 | L151: =IF(ISNUMBER(F151),F151,0) -> 151486.97 | M151: 106245.46 | N151: 31129.03 | O151: 14112.48 | P151: 0 | Q151: =IF(ISNUMBER(MATCH($B151,'Org functional rollups'!$A:$A,0)),INDEX('Org functional rollups'!$D:$D,MATCH($B151,'Org functional rollups'!$A:$A,0)),0) -> Common
A152: ='12.2018 Data'!A132 -> 920000 | B152: ='12.2018 Data'!B132 -> M07 | C152: ='12.2018 Data'!C132 -> CD | D152: ='12.2018 Data'!D132 -> AA | E152: ='12.2018 Data'!E132 -> OPER | F152: ='12.2018 Data'!F132 -> 320.1 | G152: ='12.2018 Data'!G132 -> 224.5 | H152: ='12.2018 Data'!H132 -> 65.78 | I152: ='12.2018 Data'!I132 -> 29.82 | J152: ='12.2018 Data'!J132 -> 0 | K152: 920 | L152: 320.1 | M152: 224.5 | N152: 65.78 | O152: 29.82 | P152: 0 | Q152: =IF(ISNUMBER(MATCH($B152,'Org functional rollups'!$A:$A,0)),INDEX('Org functional rollups'!$D:$D,MATCH($B152,'Org functional rollups'!$A:$A,0)),0) -> Production
A153: ='12.2018 Data'!A133 -> 920000 | B153: ='12.2018 Data'!B133 -> M08 | C153: ='12.2018 Data'!C133 -> CD | D153: ='12.2018 Data'!D133 -> AA | E153: ='12.2018 Data'!E133 -> OPER | F153: ='12.2018 Data'!F133 -> 2756.97 | G153: ='12.2018 Data'!G133 -> 1933.6 | H153: ='12.2018 Data'!H133 -> 566.53 | I153: ='12.2018 Data'!I133 -> 256.84 | J153: ='12.2018 Data'!J133 -> 0 | K153: 920 | L153: 2756.97 | M153: 1933.6 | N153: 566.53 | O153: 256.84 | P153: 0 | Q153: =IF(ISNUMBER(MATCH($B153,'Org functional rollups'!$A:$A,0)),INDEX('Org functional rollups'!$D:$D,MATCH($B153,'Org functional rollups'!$A:$A,0)),0) -> Distribution
A154: ='12.2018 Data'!A134 -> 920000 | B154: ='12.2018 Data'!B134 -> M09 | C154: ='12.2018 Data'!C134 -> CD | D154: ='12.2018 Data'!D134 -> AA | E154: ='12.2018 Data'!E134 -> OPER | F154: ='12.2018 Data'!F134 -> 53565.89 | G154: ='12.2018 Data'!G134 -> 37568.45 | H154: ='12.2018 Data'!H134 -> 11007.33 | I154: ='12.2018 Data'!I134 -> 4990.11 | J154: ='12.2018 Data'!J134 -> 0 | K154: 920 | L154: 53565.89 | M154: 37568.45 | N154: 11007.33 | O154: 4990.11 | P154: 0 | Q154: =IF(ISNUMBER(MATCH($B154,'Org functional rollups'!$A:$A,0)),INDEX('Org functional rollups'!$D:$D,MATCH($B154,'Org functional rollups'!$A:$A,0)),0) -> Common
A155: ='12.2018 Data'!A135 -> 920000 | B155: ='12.2018 Data'!B135 -> M11 | C155: ='12.2018 Data'!C135 -> CD | D155: ='12.2018 Data'!D135 -> AA | E155: ='12.2018 Data'!E135 -> OPER | F155: ='12.2018 Data'!F135 -> 150576.25 | G155: ='12.2018 Data'!G135 -> 105606.63 | H155: ='12.2018 Data'!H135 -> 30941.94 | I155: ='12.2018 Data'!I135 -> 14027.68 | J155: ='12.2018 Data'!J135 -> 0 | K155: 920 | L155: 150576.25 | M155: 105606.63 | N155: 30941.94 | O155: 14027.68 | P155: 0 | Q155: =IF(ISNUMBER(MATCH($B155,'Org functional rollups'!$A:$A,0)),INDEX('Org functional rollups'!$D:$D,MATCH($B155,'Org functional rollups'!$A:$A,0)),0) -> Common
A156: ='12.2018 Data'!A136 -> 920000 | B156: ='12.2018 Data'!B136 -> M19 | C156: ='12.2018 Data'!C136 -> ED | D156: ='12.2018 Data'!D136 -> AN | E156: ='12.2018 Data'!E136 -> OPER | F156: ='12.2018 Data'!F136 -> 3621.5 | G156: ='12.2018 Data'!G136 -> 3621.5 | H156: ='12.2018 Data'!H136 -> 0 | I156: ='12.2018 Data'!I136 -> 0 | J156: ='12.2018 Data'!J136 -> 0 | K156: 920 | L156: 3621.5 | M156: 3621.5 | N156: 0 | O156: 0 | P156: 0 | Q156: =IF(ISNUMBER(MATCH($B156,'Org functional rollups'!$A:$A,0)),INDEX('Org functional rollups'!$D:$D,MATCH($B156,'Org functional rollups'!$A:$A,0)),0) -> Common
A157: ='12.2018 Data'!A137 -> 920000 | B157: ='12.2018 Data'!B137 -> M19 | C157: ='12.2018 Data'!C137 -> CD | D157: ='12.2018 Data'!D137 -> AN | E157: ='12.2018 Data'!E137 -> OPER | F157: ='12.2018 Data'!F137 -> 537.44 | G157: ='12.2018 Data'!G137 -> 417.66 | H157: ='12.2018 Data'!H137 -> 119.78 | I157: ='12.2018 Data'!I137 -> 0 | J157: ='12.2018 Data'!J137 -> 0 | K157: 920 | L157: 537.44 | M157: 417.66 | N157: 119.78 | O157: 0 | P157: 0 | Q157: =IF(ISNUMBER(MATCH($B157,'Org functional rollups'!$A:$A,0)),INDEX('Org functional rollups'!$D:$D,MATCH($B157,'Org functional rollups'!$A:$A,0)),0) -> Common
A158: ='12.2018 Data'!A138 -> 920000 | B158: ='12.2018 Data'!B138 -> M19 | C158: ='12.2018 Data'!C138 -> CD | D158: ='12.2018 Data'!D138 -> AA | E158: ='12.2018 Data'!E138 -> OPER | F158: ='12.2018 Data'!F138 -> 309168.94 | G158: ='12.2018 Data'!G138 -> 216835.59 | H158: ='12.2018 Data'!H138 -> 63531.17 | I158: ='12.2018 Data'!I138 -> 28802.18 | J158: ='12.2018 Data'!J138 -> 0 | K158: 920 | L158: 309168.94 | M158: 216835.59 | N158: 63531.17 | O158: 28802.18 | P158: 0 | Q158: =IF(ISNUMBER(MATCH($B158,'Org functional rollups'!$A:$A,0)),INDEX('Org functional rollups'!$D:$D,MATCH($B158,'Org functional rollups'!$A:$A,0)),0) -> Common
A159: ='12.2018 Data'!A139 -> 920000 | B159: ='12.2018 Data'!B139 -> M54 | C159: ='12.2018 Data'!C139 -> CD | D159: ='12.2018 Data'!D139 -> AA | E159: ='12.2018 Data'!E139 -> OPER | F159: ='12.2018 Data'!F139 -> 1623.36 | G159: ='12.2018 Data'!G139 -> 1138.55 | H159: ='12.2018 Data'!H139 -> 333.58 | I159: ='12.2018 Data'!I139 -> 151.23 | J159: ='12.2018 Data'!J139 -> 0 | K159: 920 | L159: 1623.36 | M159: 1138.55 | N159: 333.58 | O159: 151.23 | P159: 0 | Q159: =IF(ISNUMBER(MATCH($B159,'Org functional rollups'!$A:$A,0)),INDEX('Org functional rollups'!$D:$D,MATCH($B159,'Org functional rollups'!$A:$A,0)),0) -> Common
A160: ='12.2018 Data'!A140 -> 920000 | B160: ='12.2018 Data'!B140 -> N02 | C160: ='12.2018 Data'!C140 -> CD | D160: ='12.2018 Data'!D140 -> AA | E160: ='12.2018 Data'!E140 -> OPER | F160: ='12.2018 Data'!F140 -> 329095.22 | G160: ='12.2018 Data'!G140 -> 230810.98 | H160: ='12.2018 Data'!H140 -> 67625.78 | I160: ='12.2018 Data'!I140 -> 30658.46 | J160: ='12.2018 Data'!J140 -> 0 | K160: 920 | L160: 329095.22 | M160: 230810.98 | N160: 67625.78 | O160: 30658.46 | P160: 0 | Q160: =IF(ISNUMBER(MATCH($B160,'Org functional rollups'!$A:$A,0)),INDEX('Org functional rollups'!$D:$D,MATCH($B160,'Org functional rollups'!$A:$A,0)),0) -> Common
A161: ='12.2018 Data'!A141 -> 920000 | B161: ='12.2018 Data'!B141 -> N08 | C161: ='12.2018 Data'!C141 -> CD | D161: ='12.2018 Data'!D141 -> AA | E161: ='12.2018 Data'!E141 -> OPER | F161: ='12.2018 Data'!F141 -> 1846.54 | G161: ='12.2018 Data'!G141 -> 1295.08 | H161: ='12.2018 Data'!H141 -> 379.44 | I161: ='12.2018 Data'!I141 -> 172.02 | J161: ='12.2018 Data'!J141 -> 0 | K161: 920 | L161: 1846.54 | M161: 1295.08 | N161: 379.44 | O161: 172.02 | P161: 0 | Q161: =IF(ISNUMBER(MATCH($B161,'Org functional rollups'!$A:$A,0)),INDEX('Org functional rollups'!$D:$D,MATCH($B161,'Org functional rollups'!$A:$A,0)),0) -> Distribution
A162: ='12.2018 Data'!A142 -> 920000 | B162: ='12.2018 Data'!B142 -> N09 | C162: ='12.2018 Data'!C142 -> CD | D162: ='12.2018 Data'!D142 -> AA | E162: ='12.2018 Data'!E142 -> OPER | F162: ='12.2018 Data'!F142 -> 671537.5 | G162: ='12.2018 Data'!G142 -> 470982.78 | H162: ='12.2018 Data'!H142 -> 137994.11 | I162: ='12.2018 Data'!I142 -> 62560.61 | J162: ='12.2018 Data'!J142 -> 0 | K162: 920 | L162: 671537.5 | M162: 470982.78 | N162: 137994.11 | O162: 62560.61 | P162: 0 | Q162: =IF(ISNUMBER(MATCH($B162,'Org functional rollups'!$A:$A,0)),INDEX('Org functional rollups'!$D:$D,MATCH($B162,'Org functional rollups'!$A:$A,0)),0) -> Common
A163: ='12.2018 Data'!A143 -> 920000 | B163: ='12.2018 Data'!B143 -> N50 | C163: ='12.2018 Data'!C143 -> CD | D163: ='12.2018 Data'!D143 -> AA | E163: ='12.2018 Data'!E143 -> OPER | F163: ='12.2018 Data'!F143 -> 45048.91 | G163: ='12.2018 Data'!G143 -> 31595.12 | H163: ='12.2018 Data'!H143 -> 9257.06 | I163: ='12.2018 Data'!I143 -> 4196.73 | J163: ='12.2018 Data'!J143 -> 0 | K163: 920 | L163: 45048.91 | M163: 31595.12 | N163: 9257.06 | O163: 4196.73 | P163: 0 | Q163: =IF(ISNUMBER(MATCH($B163,'Org functional rollups'!$A:$A,0)),INDEX('Org functional rollups'!$D:$D,MATCH($B163,'Org functional rollups'!$A:$A,0)),0) -> Customer
A164: ='12.2018 Data'!A144 -> 920000 | B164: ='12.2018 Data'!B144 -> P03 | C164: ='12.2018 Data'!C144 -> CD | D164: ='12.2018 Data'!D144 -> AA | E164: ='12.2018 Data'!E144 -> OPER | F164: ='12.2018 Data'!F144 -> 31021.68 | G164: ='12.2018 Data'!G144 -> 21757.06 | H164: ='12.2018 Data'!H144 -> 6374.67 | I164: ='12.2018 Data'!I144 -> 2889.95 | J164: ='12.2018 Data'!J144 -> 0 | K164: 920 | L164: 31021.68 | M164: 21757.06 | N164: 6374.67 | O164: 2889.95 | P164: 0 | Q164: =IF(ISNUMBER(MATCH($B164,'Org functional rollups'!$A:$A,0)),INDEX('Org functional rollups'!$D:$D,MATCH($B164,'Org functional rollups'!$A:$A,0)),0) -> Distribution
A165: ='12.2018 Data'!A145 -> 920000 | B165: ='12.2018 Data'!B145 -> P07 | C165: ='12.2018 Data'!C145 -> ED | D165: ='12.2018 Data'!D145 -> AN | E165: ='12.2018 Data'!E145 -> OPER | F165: ='12.2018 Data'!F145 -> 6342.84 | G165: ='12.2018 Data'!G145 -> 6342.84 | H165: ='12.2018 Data'!H145 -> 0 | I165: ='12.2018 Data'!I145 -> 0 | J165: ='12.2018 Data'!J145 -> 0 | K165: 920 | L165: 6342.84 | M165: 6342.84 | N165: 0 | O165: 0 | P165: 0 | Q165: =IF(ISNUMBER(MATCH($B165,'Org functional rollups'!$A:$A,0)),INDEX('Org functional rollups'!$D:$D,MATCH($B165,'Org functional rollups'!$A:$A,0)),0) -> Production
A166: ='12.2018 Data'!A146 -> 920000 | B166: ='12.2018 Data'!B146 -> P07 | C166: ='12.2018 Data'!C146 -> CD | D166: ='12.2018 Data'!D146 -> AA | E166: ='12.2018 Data'!E146 -> OPER | F166: ='12.2018 Data'!F146 -> 6719.12 | G166: ='12.2018 Data'!G146 -> 4712.45 | H166: ='12.2018 Data'!H146 -> 1380.71 | I166: ='12.2018 Data'!I146 -> 625.96 | J166: ='12.2018 Data'!J146 -> 0 | K166: 920 | L166: 6719.12 | M166: =IF(ISNUMBER(G166),G166,0) -> 4712.45 | N166: =IF(ISNUMBER(H166),H166,0) -> 1380.71 | O166: =IF(ISNUMBER(I166),I166,0) -> 625.96 | P166: =IF(ISNUMBER(J166),J166,0) -> 0 | Q166: =IF(ISNUMBER(MATCH($B166,'Org functional rollups'!$A:$A,0)),INDEX('Org functional rollups'!$D:$D,MATCH($B166,'Org functional rollups'!$A:$A,0)),0) -> Production
A167: ='12.2018 Data'!A147 -> 920000 | B167: ='12.2018 Data'!B147 -> P08 | C167: ='12.2018 Data'!C147 -> ED | D167: ='12.2018 Data'!D147 -> AN | E167: ='12.2018 Data'!E147 -> OPER | F167: ='12.2018 Data'!F147 -> 51747.9 | G167: ='12.2018 Data'!G147 -> 51747.9 | H167: ='12.2018 Data'!H147 -> 0 | I167: ='12.2018 Data'!I147 -> 0 | J167: ='12.2018 Data'!J147 -> 0 | K167: 920 | L167: 51747.9 | M167: 51747.9 | N167: 0 | O167: 0 | P167: 0 | Q167: =IF(ISNUMBER(MATCH($B167,'Org functional rollups'!$A:$A,0)),INDEX('Org functional rollups'!$D:$D,MATCH($B167,'Org functional rollups'!$A:$A,0)),0) -> Distribution
A168: ='12.2018 Data'!A148 -> 920000 | B168: ='12.2018 Data'!B148 -> P08 | C168: ='12.2018 Data'!C148 -> CD | D168: ='12.2018 Data'!D148 -> WA | E168: ='12.2018 Data'!E148 -> OPER | F168: ='12.2018 Data'!F148 -> 3860.8 | G168: ='12.2018 Data'!G148 -> 3000.42 | H168: ='12.2018 Data'!H148 -> 860.38 | I168: ='12.2018 Data'!I148 -> 0 | J168: ='12.2018 Data'!J148 -> 0 | K168: 920 | L168: 3860.8 | M168: 3000.42 | N168: 860.38 | O168: 0 | P168: 0 | Q168: =IF(ISNUMBER(MATCH($B168,'Org functional rollups'!$A:$A,0)),INDEX('Org functional rollups'!$D:$D,MATCH($B168,'Org functional rollups'!$A:$A,0)),0) -> Distribution
A169: ='12.2018 Data'!A149 -> 920000 | B169: ='12.2018 Data'!B149 -> P08 | C169: ='12.2018 Data'!C149 -> CD | D169: ='12.2018 Data'!D149 -> AA | E169: ='12.2018 Data'!E149 -> OPER | F169: ='12.2018 Data'!F149 -> 25332.22 | G169: ='12.2018 Data'!G149 -> 17766.74 | H169: ='12.2018 Data'!H149 -> 5205.51 | I169: ='12.2018 Data'!I149 -> 2359.97 | J169: ='12.2018 Data'!J149 -> 0 | K169: 920 | L169: 25332.22 | M169: 17766.74 | N169: 5205.51 | O169: 2359.97 | P169: 0 | Q169: =IF(ISNUMBER(MATCH($B169,'Org functional rollups'!$A:$A,0)),INDEX('Org functional rollups'!$D:$D,MATCH($B169,'Org functional rollups'!$A:$A,0)),0) -> Distribution
A170: ='12.2018 Data'!A150 -> 920000 | B170: ='12.2018 Data'!B150 -> P09 | C170: ='12.2018 Data'!C150 -> CD | D170: ='12.2018 Data'!D150 -> AA | E170: ='12.2018 Data'!E150 -> OPER | F170: ='12.2018 Data'!F150 -> 280317.18 | G170: ='12.2018 Data'!G150 -> 196600.55 | H170: ='12.2018 Data'!H150 -> 57602.46 | I170: ='12.2018 Data'!I150 -> 26114.17 | J170: ='12.2018 Data'!J150 -> 0 | K170: 920 | L170: 280317.18 | M170: 196600.55 | N170: 57602.46 | O170: 26114.17 | P170: 0 | Q170: =IF(ISNUMBER(MATCH($B170,'Org functional rollups'!$A:$A,0)),INDEX('Org functional rollups'!$D:$D,MATCH($B170,'Org functional rollups'!$A:$A,0)),0) -> Common
A171: ='12.2018 Data'!A151 -> 920000 | B171: ='12.2018 Data'!B151 -> P50 | C171: ='12.2018 Data'!C151 -> CD | D171: ='12.2018 Data'!D151 -> AA | E171: ='12.2018 Data'!E151 -> OPER | F171: ='12.2018 Data'!F151 -> 108.54 | G171: ='12.2018 Data'!G151 -> 76.12 | H171: ='12.2018 Data'!H151 -> 22.3 | I171: ='12.2018 Data'!I151 -> 10.12 | J171: ='12.2018 Data'!J151 -> 0 | K171: 920 | L171: 108.54 | M171: 76.12 | N171: 22.3 | O171: 10.12 | P171: 0 | Q171: =IF(ISNUMBER(MATCH($B171,'Org functional rollups'!$A:$A,0)),INDEX('Org functional rollups'!$D:$D,MATCH($B171,'Org functional rollups'!$A:$A,0)),0) -> Distribution
A172: ='12.2018 Data'!A152 -> 920000 | B172: ='12.2018 Data'!B152 -> P53 | C172: ='12.2018 Data'!C152 -> CD | D172: ='12.2018 Data'!D152 -> ID | E172: ='12.2018 Data'!E152 -> OPER | F172: ='12.2018 Data'!F152 -> 22207.15 | G172: ='12.2018 Data'!G152 -> 17258.38 | H172: ='12.2018 Data'!H152 -> 4948.77 | I172: ='12.2018 Data'!I152 -> 0 | J172: ='12.2018 Data'!J152 -> 0 | K172: 920 | L172: 22207.15 | M172: 17258.38 | N172: 4948.77 | O172: 0 | P172: 0 | Q172: =IF(ISNUMBER(MATCH($B172,'Org functional rollups'!$A:$A,0)),INDEX('Org functional rollups'!$D:$D,MATCH($B172,'Org functional rollups'!$A:$A,0)),0) -> Distribution
A173: ='12.2018 Data'!A153 -> 920000 | B173: ='12.2018 Data'!B153 -> P53 | C173: ='12.2018 Data'!C153 -> CD | D173: ='12.2018 Data'!D153 -> WA | E173: ='12.2018 Data'!E153 -> OPER | F173: ='12.2018 Data'!F153 -> 32965.79 | G173: ='12.2018 Data'!G153 -> 25619.42 | H173: ='12.2018 Data'!H153 -> 7346.37 | I173: ='12.2018 Data'!I153 -> 0 | J173: ='12.2018 Data'!J153 -> 0 | K173: 920 | L173: 32965.79 | M173: 25619.42 | N173: 7346.37 | O173: 0 | P173: 0 | Q173: =IF(ISNUMBER(MATCH($B173,'Org functional rollups'!$A:$A,0)),INDEX('Org functional rollups'!$D:$D,MATCH($B173,'Org functional rollups'!$A:$A,0)),0) -> Distribution
A174: ='12.2018 Data'!A154 -> 920000 | B174: ='12.2018 Data'!B154 -> P59 | C174: ='12.2018 Data'!C154 -> CD | D174: ='12.2018 Data'!D154 -> AA | E174: ='12.2018 Data'!E154 -> OPER | F174: ='12.2018 Data'!F154 -> 347334.45 | G174: ='12.2018 Data'!G154 -> 243603.06 | H174: ='12.2018 Data'!H154 -> 71373.84 | I174: ='12.2018 Data'!I154 -> 32357.55 | J174: ='12.2018 Data'!J154 -> 0 | K174: 920 | L174: 347334.45 | M174: 243603.06 | N174: 71373.84 | O174: 32357.55 | P174: 0 | Q174: =IF(ISNUMBER(MATCH($B174,'Org functional rollups'!$A:$A,0)),INDEX('Org functional rollups'!$D:$D,MATCH($B174,'Org functional rollups'!$A:$A,0)),0) -> Common
A175: ='12.2018 Data'!A155 -> 920000 | B175: ='12.2018 Data'!B155 -> P99 | C175: ='12.2018 Data'!C155 -> ED | D175: ='12.2018 Data'!D155 -> AN | E175: ='12.2018 Data'!E155 -> OPER | F175: ='12.2018 Data'!F155 -> 1764.02 | G175: ='12.2018 Data'!G155 -> 1764.02 | H175: ='12.2018 Data'!H155 -> 0 | I175: ='12.2018 Data'!I155 -> 0 | J175: ='12.2018 Data'!J155 -> 0 | K175: 920 | L175: 1764.02 | M175: 1764.02 | N175: 0 | O175: 0 | P175: 0 | Q175: =IF(ISNUMBER(MATCH($B175,'Org functional rollups'!$A:$A,0)),INDEX('Org functional rollups'!$D:$D,MATCH($B175,'Org functional rollups'!$A:$A,0)),0) -> Common
A176: ='12.2018 Data'!A156 -> 920000 | B176: ='12.2018 Data'!B156 -> P99 | C176: ='12.2018 Data'!C156 -> CD | D176: ='12.2018 Data'!D156 -> AA | E176: ='12.2018 Data'!E156 -> OPER | F176: ='12.2018 Data'!F156 -> 654200.73 | G176: ='12.2018 Data'!G156 -> 458823.74 | H176: ='12.2018 Data'!H156 -> 134431.8 | I176: ='12.2018 Data'!I156 -> 60945.19 | J176: ='12.2018 Data'!J156 -> 0 | K176: 920 | L176: 654200.73 | M176: 458823.74 | N176: 134431.8 | O176: 60945.19 | P176: 0 | Q176: =IF(ISNUMBER(MATCH($B176,'Org functional rollups'!$A:$A,0)),INDEX('Org functional rollups'!$D:$D,MATCH($B176,'Org functional rollups'!$A:$A,0)),0) -> Common
A177: ='12.2018 Data'!A157 -> 920000 | B177: ='12.2018 Data'!B157 -> Q19 | C177: ='12.2018 Data'!C157 -> CD | D177: ='12.2018 Data'!D157 -> AA | E177: ='12.2018 Data'!E157 -> OPER | F177: ='12.2018 Data'!F157 -> 4146.75 | G177: ='12.2018 Data'!G157 -> 2908.35 | H177: ='12.2018 Data'!H157 -> 852.1 | I177: ='12.2018 Data'!I157 -> 386.3 | J177: ='12.2018 Data'!J157 -> 0 | K177: 920 | L177: 4146.75 | M177: 2908.35 | N177: 852.1 | O177: 386.3 | P177: 0 | Q177: =IF(ISNUMBER(MATCH($B177,'Org functional rollups'!$A:$A,0)),INDEX('Org functional rollups'!$D:$D,MATCH($B177,'Org functional rollups'!$A:$A,0)),0) -> Common
A178: ='12.2018 Data'!A158 -> 920000 | B178: ='12.2018 Data'!B158 -> R07 | C178: ='12.2018 Data'!C158 -> CD | D178: ='12.2018 Data'!D158 -> AA | E178: ='12.2018 Data'!E158 -> OPER | F178: ='12.2018 Data'!F158 -> 6760.4 | G178: ='12.2018 Data'!G158 -> 4741.4 | H178: ='12.2018 Data'!H158 -> 1389.2 | I178: ='12.2018 Data'!I158 -> 629.8 | J178: ='12.2018 Data'!J158 -> 0 | K178: 920 | L178: 6760.4 | M178: 4741.4 | N178: 1389.2 | O178: 629.8 | P178: 0 | Q178: =IF(ISNUMBER(MATCH($B178,'Org functional rollups'!$A:$A,0)),INDEX('Org functional rollups'!$D:$D,MATCH($B178,'Org functional rollups'!$A:$A,0)),0) -> Production
A179: ='12.2018 Data'!A159 -> 920000 | B179: ='12.2018 Data'!B159 -> R08 | C179: ='12.2018 Data'!C159 -> CD | D179: ='12.2018 Data'!D159 -> AA | E179: ='12.2018 Data'!E159 -> OPER | F179: ='12.2018 Data'!F159 -> 4789.59 | G179: ='12.2018 Data'!G159 -> 3359.17 | H179: ='12.2018 Data'!H159 -> 984.22 | I179: ='12.2018 Data'!I159 -> 446.2 | J179: ='12.2018 Data'!J159 -> 0 | K179: 920 | L179: 4789.59 | M179: 3359.17 | N179: 984.22 | O179: 446.2 | P179: 0 | Q179: =IF(ISNUMBER(MATCH($B179,'Org functional rollups'!$A:$A,0)),INDEX('Org functional rollups'!$D:$D,MATCH($B179,'Org functional rollups'!$A:$A,0)),0) -> Distribution
A180: ='12.2018 Data'!A160 -> 920000 | B180: ='12.2018 Data'!B160 -> R09 | C180: ='12.2018 Data'!C160 -> CD | D180: ='12.2018 Data'!D160 -> AA | E180: ='12.2018 Data'!E160 -> OPER | F180: ='12.2018 Data'!F160 -> 62995.38 | G180: ='12.2018 Data'!G160 -> 44181.82 | H180: ='12.2018 Data'!H160 -> 12944.89 | I180: ='12.2018 Data'!I160 -> 5868.67 | J180: ='12.2018 Data'!J160 -> 0 | K180: 920 | L180: 62995.38 | M180: 44181.82 | N180: 12944.89 | O180: 5868.67 | P180: 0 | Q180: =IF(ISNUMBER(MATCH($B180,'Org functional rollups'!$A:$A,0)),INDEX('Org functional rollups'!$D:$D,MATCH($B180,'Org functional rollups'!$A:$A,0)),0) -> Common
A181: ='12.2018 Data'!A161 -> 920000 | B181: ='12.2018 Data'!B161 -> R11 | C181: ='12.2018 Data'!C161 -> CD | D181: ='12.2018 Data'!D161 -> AA | E181: ='12.2018 Data'!E161 -> OPER | F181: ='12.2018 Data'!F161 -> 20949.45 | G181: ='12.2018 Data'!G161 -> 14692.9 | H181: ='12.2018 Data'!H161 -> 4304.93 | I181: ='12.2018 Data'!I161 -> 1951.62 | J181: ='12.2018 Data'!J161 -> 0 | K181: 920 | L181: 20949.45 | M181: 14692.9 | N181: 4304.93 | O181: 1951.62 | P181: 0 | Q181: =IF(ISNUMBER(MATCH($B181,'Org functional rollups'!$A:$A,0)),INDEX('Org functional rollups'!$D:$D,MATCH($B181,'Org functional rollups'!$A:$A,0)),0) -> Common
A182: ='12.2018 Data'!A162 -> 920000 | B182: ='12.2018 Data'!B162 -> R11 | C182: ='12.2018 Data'!C162 -> CD | D182: ='12.2018 Data'!D162 -> WA | E182: ='12.2018 Data'!E162 -> OPER | F182: ='12.2018 Data'!F162 -> 16194.83 | G182: ='12.2018 Data'!G162 -> 12585.82 | H182: ='12.2018 Data'!H162 -> 3609.01 | I182: ='12.2018 Data'!I162 -> 0 | J182: ='12.2018 Data'!J162 -> 0 | K182: 920 | L182: 16194.83 | M182: 12585.82 | N182: 3609.01 | O182: 0 | P182: 0 | Q182: =IF(ISNUMBER(MATCH($B182,'Org functional rollups'!$A:$A,0)),INDEX('Org functional rollups'!$D:$D,MATCH($B182,'Org functional rollups'!$A:$A,0)),0) -> Common
A183: ='12.2018 Data'!A163 -> 920000 | B183: ='12.2018 Data'!B163 -> R19 | C183: ='12.2018 Data'!C163 -> CD | D183: ='12.2018 Data'!D163 -> AN | E183: ='12.2018 Data'!E163 -> OPER | F183: ='12.2018 Data'!F163 -> 109.38 | G183: ='12.2018 Data'!G163 -> 85 | H183: ='12.2018 Data'!H163 -> 24.38 | I183: ='12.2018 Data'!I163 -> 0 | J183: ='12.2018 Data'!J163 -> 0 | K183: 920 | L183: 109.38 | M183: 85 | N183: 24.38 | O183: 0 | P183: 0 | Q183: =IF(ISNUMBER(MATCH($B183,'Org functional rollups'!$A:$A,0)),INDEX('Org functional rollups'!$D:$D,MATCH($B183,'Org functional rollups'!$A:$A,0)),0) -> Common
A184: ='12.2018 Data'!A164 -> 920000 | B184: ='12.2018 Data'!B164 -> R19 | C184: ='12.2018 Data'!C164 -> ED | D184: ='12.2018 Data'!D164 -> AN | E184: ='12.2018 Data'!E164 -> OPER | F184: ='12.2018 Data'!F164 -> 850 | G184: ='12.2018 Data'!G164 -> 850 | H184: ='12.2018 Data'!H164 -> 0 | I184: ='12.2018 Data'!I164 -> 0 | J184: ='12.2018 Data'!J164 -> 0 | K184: 920 | L184: 850 | M184: 850 | N184: 0 | O184: 0 | P184: 0 | Q184: =IF(ISNUMBER(MATCH($B184,'Org functional rollups'!$A:$A,0)),INDEX('Org functional rollups'!$D:$D,MATCH($B184,'Org functional rollups'!$A:$A,0)),0) -> Common
A185: ='12.2018 Data'!A165 -> 920000 | B185: ='12.2018 Data'!B165 -> R19 | C185: ='12.2018 Data'!C165 -> CD | D185: ='12.2018 Data'!D165 -> AA | E185: ='12.2018 Data'!E165 -> OPER | F185: ='12.2018 Data'!F165 -> 36484.45 | G185: ='12.2018 Data'!G165 -> 25588.38 | H185: ='12.2018 Data'!H165 -> 7497.18 | I185: ='12.2018 Data'!I165 -> 3398.89 | J185: ='12.2018 Data'!J165 -> 0 | K185: 920 | L185: 36484.45 | M185: 25588.38 | N185: 7497.18 | O185: 3398.89 | P185: 0 | Q185: =IF(ISNUMBER(MATCH($B185,'Org functional rollups'!$A:$A,0)),INDEX('Org functional rollups'!$D:$D,MATCH($B185,'Org functional rollups'!$A:$A,0)),0) -> Common
A186: ='12.2018 Data'!A166 -> 920000 | B186: ='12.2018 Data'!B166 -> R51 | C186: ='12.2018 Data'!C166 -> CD | D186: ='12.2018 Data'!D166 -> AA | E186: ='12.2018 Data'!E166 -> OPER | F186: ='12.2018 Data'!F166 -> 3808.8 | G186: ='12.2018 Data'!G166 -> 2671.33 | H186: ='12.2018 Data'!H166 -> 782.64 | I186: ='12.2018 Data'!I166 -> 354.83 | J186: ='12.2018 Data'!J166 -> 0 | K186: 920 | L186: 3808.8 | M186: 2671.33 | N186: 782.64 | O186: 354.83 | P186: 0 | Q186: =IF(ISNUMBER(MATCH($B186,'Org functional rollups'!$A:$A,0)),INDEX('Org functional rollups'!$D:$D,MATCH($B186,'Org functional rollups'!$A:$A,0)),0) -> Distribution
A187: ='12.2018 Data'!A167 -> 920000 | B187: ='12.2018 Data'!B167 -> R54 | C187: ='12.2018 Data'!C167 -> CD | D187: ='12.2018 Data'!D167 -> AA | E187: ='12.2018 Data'!E167 -> OPER | F187: ='12.2018 Data'!F167 -> 568987.6 | G187: ='12.2018 Data'!G167 -> 399059.42 | H187: ='12.2018 Data'!H167 -> 116921.29 | I187: ='12.2018 Data'!I167 -> 53006.89 | J187: ='12.2018 Data'!J167 -> 0 | K187: 920 | L187: 568987.6 | M187: 399059.42 | N187: 116921.29 | O187: 53006.89 | P187: 0 | Q187: =IF(ISNUMBER(MATCH($B187,'Org functional rollups'!$A:$A,0)),INDEX('Org functional rollups'!$D:$D,MATCH($B187,'Org functional rollups'!$A:$A,0)),0) -> Common
A188: ='12.2018 Data'!A168 -> 920000 | B188: ='12.2018 Data'!B168 -> S03 | C188: ='12.2018 Data'!C168 -> CD | D188: ='12.2018 Data'!D168 -> AA | E188: ='12.2018 Data'!E168 -> OPER | F188: ='12.2018 Data'!F168 -> 1634.6 | G188: ='12.2018 Data'!G168 -> 1146.43 | H188: ='12.2018 Data'!H168 -> 335.89 | I188: ='12.2018 Data'!I168 -> 152.28 | J188: ='12.2018 Data'!J168 -> 0 | K188: 920 | L188: 1634.6 | M188: 1146.43 | N188: 335.89 | O188: 152.28 | P188: 0 | Q188: =IF(ISNUMBER(MATCH($B188,'Org functional rollups'!$A:$A,0)),INDEX('Org functional rollups'!$D:$D,MATCH($B188,'Org functional rollups'!$A:$A,0)),0) -> None
A189: ='12.2018 Data'!A169 -> 920000 | B189: ='12.2018 Data'!B169 -> S19 | C189: ='12.2018 Data'!C169 -> CD | D189: ='12.2018 Data'!D169 -> AA | E189: ='12.2018 Data'!E169 -> OPER | F189: ='12.2018 Data'!F169 -> 45606.27 | G189: ='12.2018 Data'!G169 -> 31985.94 | H189: ='12.2018 Data'!H169 -> 9371.63 | I189: ='12.2018 Data'!I169 -> 4248.7 | J189: ='12.2018 Data'!J169 -> 0 | K189: 920 | L189: 45606.27 | M189: 31985.94 | N189: 9371.63 | O189: 4248.7 | P189: 0 | Q189: =IF(ISNUMBER(MATCH($B189,'Org functional rollups'!$A:$A,0)),INDEX('Org functional rollups'!$D:$D,MATCH($B189,'Org functional rollups'!$A:$A,0)),0) -> Common
A190: ='12.2018 Data'!A170 -> 920000 | B190: ='12.2018 Data'!B170 -> S39 | C190: ='12.2018 Data'!C170 -> CD | D190: ='12.2018 Data'!D170 -> AA | E190: ='12.2018 Data'!E170 -> OPER | F190: ='12.2018 Data'!F170 -> 959.42 | G190: ='12.2018 Data'!G170 -> 672.9 | H190: ='12.2018 Data'!H170 -> 197.15 | I190: ='12.2018 Data'!I170 -> 89.37 | J190: ='12.2018 Data'!J170 -> 0 | K190: 920 | L190: 959.42 | M190: 672.9 | N190: 197.15 | O190: 89.37 | P190: 0 | Q190: =IF(ISNUMBER(MATCH($B190,'Org functional rollups'!$A:$A,0)),INDEX('Org functional rollups'!$D:$D,MATCH($B190,'Org functional rollups'!$A:$A,0)),0) -> Common
A191: ='12.2018 Data'!A171 -> 920000 | B191: ='12.2018 Data'!B171 -> S50 | C191: ='12.2018 Data'!C171 -> CD | D191: ='12.2018 Data'!D171 -> AA | E191: ='12.2018 Data'!E171 -> OPER | F191: ='12.2018 Data'!F171 -> 69488.02 | G191: ='12.2018 Data'!G171 -> 48735.46 | H191: ='12.2018 Data'!H171 -> 14279.11 | I191: ='12.2018 Data'!I171 -> 6473.45 | J191: ='12.2018 Data'!J171 -> 0 | K191: 920 | L191: 69488.02 | M191: 48735.46 | N191: 14279.11 | O191: 6473.45 | P191: 0 | Q191: =IF(ISNUMBER(MATCH($B191,'Org functional rollups'!$A:$A,0)),INDEX('Org functional rollups'!$D:$D,MATCH($B191,'Org functional rollups'!$A:$A,0)),0) -> Distribution
A192: ='12.2018 Data'!A172 -> 920000 | B192: ='12.2018 Data'!B172 -> S51 | C192: ='12.2018 Data'!C172 -> ED | D192: ='12.2018 Data'!D172 -> AN | E192: ='12.2018 Data'!E172 -> OPER | F192: ='12.2018 Data'!F172 -> 1249.98 | G192: ='12.2018 Data'!G172 -> 1249.98 | H192: ='12.2018 Data'!H172 -> 0 | I192: ='12.2018 Data'!I172 -> 0 | J192: ='12.2018 Data'!J172 -> 0 | K192: 920 | L192: 1249.98 | M192: 1249.98 | N192: 0 | O192: 0 | P192: 0 | Q192: =IF(ISNUMBER(MATCH($B192,'Org functional rollups'!$A:$A,0)),INDEX('Org functional rollups'!$D:$D,MATCH($B192,'Org functional rollups'!$A:$A,0)),0) -> Common
A193: ='12.2018 Data'!A173 -> 920000 | B193: ='12.2018 Data'!B173 -> S51 | C193: ='12.2018 Data'!C173 -> CD | D193: ='12.2018 Data'!D173 -> WA | E193: ='12.2018 Data'!E173 -> OPER | F193: ='12.2018 Data'!F173 -> 37.02 | G193: ='12.2018 Data'!G173 -> 28.77 | H193: ='12.2018 Data'!H173 -> 8.25 | I193: ='12.2018 Data'!I173 -> 0 | J193: ='12.2018 Data'!J173 -> 0 | K193: 920 | L193: 37.02 | M193: 28.77 | N193: 8.25 | O193: 0 | P193: 0 | Q193: =IF(ISNUMBER(MATCH($B193,'Org functional rollups'!$A:$A,0)),INDEX('Org functional rollups'!$D:$D,MATCH($B193,'Org functional rollups'!$A:$A,0)),0) -> Common
A194: ='12.2018 Data'!A174 -> 920000 | B194: ='12.2018 Data'!B174 -> S51 | C194: ='12.2018 Data'!C174 -> CD | D194: ='12.2018 Data'!D174 -> AA | E194: ='12.2018 Data'!E174 -> OPER | F194: ='12.2018 Data'!F174 -> 16627.91 | G194: ='12.2018 Data'!G174 -> 11661.99 | H194: ='12.2018 Data'!H174 -> 3416.89 | I194: ='12.2018 Data'!I174 -> 1549.03 | J194: ='12.2018 Data'!J174 -> 0 | K194: 920 | L194: 16627.91 | M194: 11661.99 | N194: 3416.89 | O194: 1549.03 | P194: 0 | Q194: =IF(ISNUMBER(MATCH($B194,'Org functional rollups'!$A:$A,0)),INDEX('Org functional rollups'!$D:$D,MATCH($B194,'Org functional rollups'!$A:$A,0)),0) -> Common
A195: ='12.2018 Data'!A175 -> 920000 | B195: ='12.2018 Data'!B175 -> S51 | C195: ='12.2018 Data'!C175 -> CD | D195: ='12.2018 Data'!D175 -> AN | E195: ='12.2018 Data'!E175 -> OPER | F195: ='12.2018 Data'!F175 -> 3946.91 | G195: ='12.2018 Data'!G175 -> 3067.37 | H195: ='12.2018 Data'!H175 -> 879.54 | I195: ='12.2018 Data'!I175 -> 0 | J195: ='12.2018 Data'!J175 -> 0 | K195: 920 | L195: 3946.91 | M195: 3067.37 | N195: 879.54 | O195: 0 | P195: 0 | Q195: =IF(ISNUMBER(MATCH($B195,'Org functional rollups'!$A:$A,0)),INDEX('Org functional rollups'!$D:$D,MATCH($B195,'Org functional rollups'!$A:$A,0)),0) -> Common
A196: ='12.2018 Data'!A176 -> 920000 | B196: ='12.2018 Data'!B176 -> S52 | C196: ='12.2018 Data'!C176 -> CD | D196: ='12.2018 Data'!D176 -> AA | E196: ='12.2018 Data'!E176 -> OPER | F196: ='12.2018 Data'!F176 -> 31089.47 | G196: ='12.2018 Data'!G176 -> 21804.63 | H196: ='12.2018 Data'!H176 -> 6388.57 | I196: ='12.2018 Data'!I176 -> 2896.27 | J196: ='12.2018 Data'!J176 -> 0 | K196: 920 | L196: 31089.47 | M196: 21804.63 | N196: 6388.57 | O196: 2896.27 | P196: 0 | Q196: =IF(ISNUMBER(MATCH($B196,'Org functional rollups'!$A:$A,0)),INDEX('Org functional rollups'!$D:$D,MATCH($B196,'Org functional rollups'!$A:$A,0)),0) -> Common
A197: ='12.2018 Data'!A177 -> 920000 | B197: ='12.2018 Data'!B177 -> S54 | C197: ='12.2018 Data'!C177 -> CD | D197: ='12.2018 Data'!D177 -> AA | E197: ='12.2018 Data'!E177 -> OPER | F197: ='12.2018 Data'!F177 -> 558050 | G197: ='12.2018 Data'!G177 -> 391388.48 | H197: ='12.2018 Data'!H177 -> 114673.65 | I197: ='12.2018 Data'!I177 -> 51987.87 | J197: ='12.2018 Data'!J177 -> 0 | K197: 920 | L197: 558050 | M197: 391388.48 | N197: 114673.65 | O197: 51987.87 | P197: 0 | Q197: =IF(ISNUMBER(MATCH($B197,'Org functional rollups'!$A:$A,0)),INDEX('Org functional rollups'!$D:$D,MATCH($B197,'Org functional rollups'!$A:$A,0)),0) -> Common
A198: ='12.2018 Data'!A178 -> 920000 | B198: ='12.2018 Data'!B178 -> T08 | C198: ='12.2018 Data'!C178 -> CD | D198: ='12.2018 Data'!D178 -> AA | E198: ='12.2018 Data'!E178 -> OPER | F198: ='12.2018 Data'!F178 -> 10370.34 | G198: ='12.2018 Data'!G178 -> 7273.26 | H198: ='12.2018 Data'!H178 -> 2131 | I198: ='12.2018 Data'!I178 -> 966.08 | J198: ='12.2018 Data'!J178 -> 0 | K198: 920 | L198: 10370.34 | M198: 7273.26 | N198: 2131 | O198: 966.08 | P198: 0 | Q198: =IF(ISNUMBER(MATCH($B198,'Org functional rollups'!$A:$A,0)),INDEX('Org functional rollups'!$D:$D,MATCH($B198,'Org functional rollups'!$A:$A,0)),0) -> Distribution
A199: ='12.2018 Data'!A179 -> 920000 | B199: ='12.2018 Data'!B179 -> T19 | C199: ='12.2018 Data'!C179 -> CD | D199: ='12.2018 Data'!D179 -> AA | E199: ='12.2018 Data'!E179 -> OPER | F199: ='12.2018 Data'!F179 -> 259682.7 | G199: ='12.2018 Data'!G179 -> 182128.53 | H199: ='12.2018 Data'!H179 -> 53362.21 | I199: ='12.2018 Data'!I179 -> 24191.96 | J199: ='12.2018 Data'!J179 -> 0 | K199: 920 | L199: 259682.7 | M199: 182128.53 | N199: 53362.21 | O199: 24191.96 | P199: 0 | Q199: =IF(ISNUMBER(MATCH($B199,'Org functional rollups'!$A:$A,0)),INDEX('Org functional rollups'!$D:$D,MATCH($B199,'Org functional rollups'!$A:$A,0)),0) -> Common
A200: ='12.2018 Data'!A180 -> 920000 | B200: ='12.2018 Data'!B180 -> T51 | C200: ='12.2018 Data'!C180 -> CD | D200: ='12.2018 Data'!D180 -> AA | E200: ='12.2018 Data'!E180 -> OPER | F200: ='12.2018 Data'!F180 -> 9794.77 | G200: ='12.2018 Data'!G180 -> 6869.58 | H200: ='12.2018 Data'!H180 -> 2012.73 | I200: ='12.2018 Data'!I180 -> 912.46 | J200: ='12.2018 Data'!J180 -> 0 | K200: 920 | L200: 9794.77 | M200: 6869.58 | N200: 2012.73 | O200: 912.46 | P200: 0 | Q200: =IF(ISNUMBER(MATCH($B200,'Org functional rollups'!$A:$A,0)),INDEX('Org functional rollups'!$D:$D,MATCH($B200,'Org functional rollups'!$A:$A,0)),0) -> Distribution
A201: ='12.2018 Data'!A181 -> 920000 | B201: ='12.2018 Data'!B181 -> T52 | C201: ='12.2018 Data'!C181 -> CD | D201: ='12.2018 Data'!D181 -> AA | E201: ='12.2018 Data'!E181 -> OPER | F201: ='12.2018 Data'!F181 -> 33574.23 | G201: ='12.2018 Data'!G181 -> 23547.31 | H201: ='12.2018 Data'!H181 -> 6899.16 | I201: ='12.2018 Data'!I181 -> 3127.76 | J201: ='12.2018 Data'!J181 -> 0 | K201: 920 | L201: 33574.23 | M201: 23547.31 | N201: 6899.16 | O201: 3127.76 | P201: 0 | Q201: =IF(ISNUMBER(MATCH($B201,'Org functional rollups'!$A:$A,0)),INDEX('Org functional rollups'!$D:$D,MATCH($B201,'Org functional rollups'!$A:$A,0)),0) -> Customer
A202: ='12.2018 Data'!A182 -> 920000 | B202: ='12.2018 Data'!B182 -> T52 | C202: ='12.2018 Data'!C182 -> CD | D202: ='12.2018 Data'!D182 -> WA | E202: ='12.2018 Data'!E182 -> OPER | F202: ='12.2018 Data'!F182 -> 4874.75 | G202: ='12.2018 Data'!G182 -> 3788.41 | H202: ='12.2018 Data'!H182 -> 1086.34 | I202: ='12.2018 Data'!I182 -> 0 | J202: ='12.2018 Data'!J182 -> 0 | K202: 920 | L202: 4874.75 | M202: 3788.41 | N202: 1086.34 | O202: 0 | P202: 0 | Q202: =IF(ISNUMBER(MATCH($B202,'Org functional rollups'!$A:$A,0)),INDEX('Org functional rollups'!$D:$D,MATCH($B202,'Org functional rollups'!$A:$A,0)),0) -> Customer
A203: ='12.2018 Data'!A183 -> 920000 | B203: ='12.2018 Data'!B183 -> T54 | C203: ='12.2018 Data'!C183 -> CD | D203: ='12.2018 Data'!D183 -> AA | E203: ='12.2018 Data'!E183 -> OPER | F203: ='12.2018 Data'!F183 -> 332877.46 | G203: ='12.2018 Data'!G183 -> 233463.6 | H203: ='12.2018 Data'!H183 -> 68402.96 | I203: ='12.2018 Data'!I183 -> 31010.9 | J203: ='12.2018 Data'!J183 -> 0 | K203: 920 | L203: 332877.46 | M203: 233463.6 | N203: 68402.96 | O203: 31010.9 | P203: 0 | Q203: =IF(ISNUMBER(MATCH($B203,'Org functional rollups'!$A:$A,0)),INDEX('Org functional rollups'!$D:$D,MATCH($B203,'Org functional rollups'!$A:$A,0)),0) -> Common
A204: ='12.2018 Data'!A184 -> 920000 | B204: ='12.2018 Data'!B184 -> U01 | C204: ='12.2018 Data'!C184 -> CD | D204: ='12.2018 Data'!D184 -> AA | E204: ='12.2018 Data'!E184 -> OPER | F204: ='12.2018 Data'!F184 -> 521814.73 | G204: ='12.2018 Data'!G184 -> 365974.83 | H204: ='12.2018 Data'!H184 -> 107227.56 | I204: ='12.2018 Data'!I184 -> 48612.34 | J204: ='12.2018 Data'!J184 -> 0 | K204: 920 | L204: 521814.73 | M204: 365974.83 | N204: 107227.56 | O204: 48612.34 | P204: 0 | Q204: =IF(ISNUMBER(MATCH($B204,'Org functional rollups'!$A:$A,0)),INDEX('Org functional rollups'!$D:$D,MATCH($B204,'Org functional rollups'!$A:$A,0)),0) -> Common
A205: ='12.2018 Data'!A185 -> 920000 | B205: ='12.2018 Data'!B185 -> V08 | C205: ='12.2018 Data'!C185 -> ED | D205: ='12.2018 Data'!D185 -> AN | E205: ='12.2018 Data'!E185 -> OPER | F205: ='12.2018 Data'!F185 -> 26919.88 | G205: ='12.2018 Data'!G185 -> 26919.88 | H205: ='12.2018 Data'!H185 -> 0 | I205: ='12.2018 Data'!I185 -> 0 | J205: ='12.2018 Data'!J185 -> 0 | K205: 920 | L205: 26919.88 | M205: 26919.88 | N205: 0 | O205: 0 | P205: 0 | Q205: =IF(ISNUMBER(MATCH($B205,'Org functional rollups'!$A:$A,0)),INDEX('Org functional rollups'!$D:$D,MATCH($B205,'Org functional rollups'!$A:$A,0)),0) -> Common
... 1206 more rows

Sheet Org functional rollups
A1: Org data from AVANET, file as of 11/3/2008 | G1: COS A&G function table
A2: Checked against 2/12/2010 Expenditure Organization Descriptions on Discoverer | G2: Any Org that rolls to ENGR will get assigned to Distribution.
A3: Updated 1/15/2014 to Expenditure Org and Org Structure on Discoverer | G3: If there is an Org that rolls to ENGR that should not roll to Distribution,
G4: it should be overridden at the Org level.
C6: Sum | G6: Unique
A7: Org | B7: Org Name | C7: Ctr - 1 | D7: COS A&G function lookup | E7: Notes | G7: Ctr - 1 | H7: COS A&G function
A8: 000 | B8: Direct GL Transactions | C8: SUPP | D8: =INDEX($H:$H,MATCH($C8,$G:$G,0)) -> Common | G8: 0004 | H8: Production
A9: 028 | B9: Washington State Expense | C9: GENL | D9: Common | G9: 0007 | H9: Production
A10: 038 | B10: Idaho State Expense | C10: GENL | D10: Common | G10: 0055 | H10: Production
A11: 048 | B11: Montana State Expense | C11: GENL | D11: Common | G11: AAA | H11: None
A12: 068 | B12: Oregon State Expense | C12: GENL | D12: Common | G12: ACCT | H12: Common
A13: 078 | B13: California State Expense | C13: GENL | D13: Common | G13: AVIS | H13: None
A14: 092 | B14: Oregon/California Allocated Expense | C14: GENL | D14: Common | G14: BSPA | H14: Distribution
A15: 098 | B15: Washington/Idaho Common Expense | C15: GENL | D15: Common | G15: CCOM | H15: Common
A16: 099 | B16: WAID/OREG Common Expense | C16: GENL | D16: Common | G16: CEXO | H16: None
A17: A01 | B17: Native American Relations | C17: VPPS | D17: Production | G17: CNST | H17: Distribution
A18: A02 | B18: HRIS/Payroll | C18: VPHR | D18: Common | G18: COCR | H18: Distribution
A19: A04 | B19: Environmental Affairs | C19: 0004 | D19: Production | G19: COMD | H19: Customer
A20: A07 | B20: Production & Generation | C20: 0007 | D20: Production | G20: CUST | H20: Customer
A21: A08 | B21: Relay & Protection Design | C21: ENGR | D21: Distribution | G21: ENGR | H21: Distribution
A22: A09 | B22: IS/IT Shared Services | C22: INFO | D22: Common | G22: ESOL | H22: Customer
A23: A19 | B23: Operating Tech Ops | C23: INFO | D23: Common | G23: EXEC | H23: Common
A24: A39 | B24: COTS Development | C24: INFO | D24: Common | G24: GEGR | H24: Distribution
A25: A50 | B25: Director of Operations Washington & Idaho | C25: INFO | D25: Common | G25: GENL | H25: Common
A26: A51 | B26: Director of Operations South | C26: CNST | D26: Distribution | G26: INFO | H26: Common
A27: A52 | B27: Service Development & Marketing | C27: CUST | D27: Customer | G27: MNTC | H27: Distribution
A28: A56 | B28: System Operations | C28: TRAN | D28: Transmission | G28: OREG | H28: Distribution
A29: A57 | B29: Energy Delivery Utility Accounting | C29: VPCC | D29: Common | G29: RSRC | H29: Production
A30: A80 | B30: Director of OREG | C30: OREG | D30: Distribution | G30: SPOW | H30: Distribution
A31: A81 | B31: Medford Construction | C31: OREG | D31: Distribution | G31: TRAN | H31: Transmission
A32: A82 | B32: Roseburg | C32: OREG | D32: Distribution | G32: VPCC | H32: Common
A33: A83 | B33: Klamath Falls | C33: OREG | D33: Distribution | G33: VPCS | H33: Customer
A34: B02 | B34: Benefits | C34: VPHR | D34: Common
A35: B04 | B35: Clark Fork Licensing | C35: 0004 | D35: Production | G35: VPFO | H35: Common
A36: B07 | B36: Project Delivery | C36: 0007 | D36: Production | G36: VPGC | H36: Common
A37: B08 | B37: B08 - Business Process Improvement | C37: CUST | D37: Customer | G37: VPHR | H37: Common
A38: B09 | B38: Telecommunications Shop | C38: INFO | D38: Common | G38: VPOP | H38: Distribution
A39: B16 | B39: Government Relations | C39: SUPP | D39: Common | G39: VPPS | H39: Production
A40: B50 | B40: Spokane Electric | C40: CNST | D40: =INDEX($H:$H,MATCH($C40,$G:$G,0)) -> Distribution | G40: VPRR | H40: Common
A41: B51 | B41: Gas Engineering | C41: GEGR | D41: Distribution | G41: VPTR | H41: Common
A42: B52 | B42: Gas Engineering Cathodic Protection | C42: GEGR | D42: Distribution | G42: VPUP | H42: Common
A43: B53 | B43: Pullman | C43: CNST | D43: Distribution | G43: SUPP | H43: Common
A44: B54 | B44: Gas Compliance | C44: GEGR | D44: Distribution | G44: NGAS | H44: Production
A45: B56 | B45: Misc Transmission Expense | C45: TRAN | D45: Transmission | G45: OPER | H45: Distribution
A46: B81 | B46: Medford Customer Service/Call Center | C46: CUST | D46: Customer | G46: AMPI | H46: Distribution
A47: C02 | B47: Employee Engagement | C47: VPHR | D47: Common | G47: CSOL | H47: Customer
A48: C04 | B48: Spokane River Licensing | C48: 0004 | D48: Production
A49: C06 | B49: Joint Project - CS2 | C49: RSRC | D49: Production
A50: C07 | B50: Hydro Spokane River | C50: 0007 | D50: Production
A51: C08 | B51: Technical Services - GIS | C51: ENGR | D51: Distribution
A52: C09 | B52: Security Systems | C52: INFO | D52: Common
A53: C11 | B53: CC&B Technology | C53: INFO | D53: Common
A54: C19 | B54: Security Operations | C54: INFO | D54: Common
A55: C29 | B55: Security Products & Serv | C55: INFO | D55: Common
A56: C50 | B56: C50 - Spokane Call Center | C56: CUST | D56: Customer
A57: C51 | B57: Electric Distribution Design | C57: ENGR | D57: Distribution
A58: C52 | B58: Customer Solutions | C58: ESOL | D58: Customer
A59: C53 | B59: C53 - Coeur d Alene Gas | C59: OPER | D59: Distribution
A60: C54 | B60: Tax Services | C60: SUPP | D60: Common
A61: C55 | B61: Gas Resource Costs | C61: RSRC | D61: Production
A62: C56 | B62: System Planning | C62: TRAN | D62: Transmission
A63: C57 | B63: Spokane Electric Network | C63: ENGR | D63: Distribution
A64: C59 | B64: Enterprise Business Continuity | C64: INFO | D64: Common
A65: C81 | B65: Medford Tech Service | C65: OREG | D65: Distribution
A66: C83 | B66: LaGrande | C66: OREG | D66: Distribution
A67: D01 | B67: Contracts | C67: VPHR | D67: Common
A68: D02 | B68: SR. VP HR and Corp. Services | C68: VPHR | D68: Common
A69: D08 | B69: Energy Delivery General Manager | C69: VPOP | D69: Distribution
A70: D09 | B70: SCADA | C70: TRAN | D70: Transmission
A71: D50 | B71: Meter Reading/Billing | C71: CUST | D71: Customer
A72: D51 | B72: Vegetation Management | C72: MNTC | D72: =INDEX($H:$H,MATCH($C72,$G:$G,0)) -> Distribution
A73: D52 | B73: DSM Policy, Planning & Analysis | C73: RSRC | D73: Production
A74: D53 | B74: Clarkston | C74: CNST | D74: Distribution
A75: D54 | B75: Corporate & Subsidiary Accounting | C75: VPCC | D75: Common
A76: D55 | B76: Natural Gas Resources | C76: 0055 | D76: Production
A77: D56 | B77: Director Transmission | C77: TRAN | D77: Transmission
A78: D83 | B78: Goldendale Construction | C78: CNST | D78: Distribution
A79: E01 | B79: Executive Administration | C79: EXEC | D79: Common
A80: E02 | B80: Corporate Organizational Development | C80: VPHR | D80: Common
A81: E07 | B81: Generation Engineers | C81: 0007 | D81: Production
A82: E08 | B82: Old RC for Conversion | C82: OPER | D82: Distribution
A83: E09 | B83: Distributed Systems | C83: INFO | D83: Common
A84: E14 | B84: Corp Environmental Compliance | C84: 0004 | D84: Production
A85: E19 | B85: Distributed Systems Ops | C85: INFO | D85: Common
A86: E29 | B86: Distributed Syst Prod & Serv | C86: INFO | D86: Common
A87: E50 | B87: Spokane Customer Service | C87: CUST | D87: Customer
A88: E51 | B88: Asset Management | C88: AMPI | D88: Distribution
A89: E52 | B89: Oregon DSM | C89: ESOL | D89: Customer
A90: E53 | B90: Lewiston Call Center | C90: CUST | D90: Customer
A91: E54 | B91: Accounts Payable | C91: SUPP | D91: Common
A92: E55 | B92: Power Supply | C92: 0055 | D92: Production
A93: E56 | B93: Transmission Services | C93: TRAN | D93: Transmission
A94: F02 | B94: HR Analytics and Compl | C94: VPHR | D94: Common
A95: F08 | B95: Electric Shop | C95: 0007 | D95: Transmission | E95: Production by default
A96: F14 | B96: External Projects | C96: VPCS | D96: =INDEX($H:$H,MATCH($C96,$G:$G,0)) -> Customer
A97: F19 | B97: Back Office Tech Ops | C97: INFO | D97: Common
A98: F39 | B98: Oracle Fin Services Dev | C98: INFO | D98: Common
A99: F50 | B99: Credit and Collections | C99: CUST | D99: Customer
A100: F51 | B100: GIS | C100: OPER | D100: Distribution
A101: F52 | B101: Market Services | C101: ESOL | D101: Customer
A102: F53 | B102: AM Lewiston/Clarkston | C102: ESOL | D102: Customer
A103: F54 | B103: Treasury & Trust Management Services | C103: VPFO | D103: Common
A104: F55 | B104: Analysis, Budget, Forecasting | C104: VPFO | D104: Common
A105: FIN | B105: Financial Information Summary | C105: GENL | D105: Common
A106: G01 | B106: Officer Support Team | C106: EXEC | D106: Common
A107: G02 | B107: Employee Safety | C107: VPHR | D107: Distribution | E107: Common by default
A108: G08 | B108: Gas Construction Management | C108: OPER | D108: =INDEX($H:$H,MATCH($C108,$G:$G,0)) -> Distribution
A109: G10 | B109: Credit Union | C109: VPFO | D109: Common
A110: G39 | B110: GIS Development | C110: INFO | D110: Common
A111: G50 | B111: Colville | C111: SPOW | D111: Distribution
A112: G51 | B112: Director of Natural Gas | C112: NGAS | D112: Production
A113: G53 | B113: AM Coeur d'Alene | C113: OPER | D113: Distribution
A114: G54 | B114: Finance Administration | C114: VPCC | D114: Common
A115: G55 | B115: Power Purchases | C115: RSRC | D115: Production
A116: H02 | B116: Occupational Health | C116: VPHR | D116: Common
A117: H03 | B117: Fac. Lease Management | C117: CUST | D117: Common | E117: Customer by default
A118: H04 | B118: Hydro Compliance | C118: 0004 | D118: =INDEX($H:$H,MATCH($C118,$G:$G,0)) -> Production
A119: H07 | B119: Facilities Management | C119: CUST | D119: Common | E119: Customer by default
A120: H08 | B120: Energy Delivery Strategic Projects | C120: VPOP | D120: =INDEX($H:$H,MATCH($C120,$G:$G,0)) -> Distribution
A121: H14 | B121: Consumer Affairs | C121: COMD | D121: =INDEX($H:$H,MATCH($C121,$G:$G,0)) -> Customer
A122: H50 | B122: Othello | C122: SPOW | D122: =INDEX($H:$H,MATCH($C122,$G:$G,0)) -> Distribution
A123: H51 | B123: Supply Chain Management | C123: SUPP | D123: =INDEX($H:$H,MATCH($C123,$G:$G,0)) -> Common
A124: H53 | B124: Kellogg/St Maries | C124: COCR | D124: =INDEX($H:$H,MATCH($C124,$G:$G,0)) -> Distribution
A125: H54 | B125: Remittance Services | C125: VPFO | D125: Customer | E125: Common by default
A126: H55 | B126: Fuels Management | C126: RSRC | D126: =INDEX($H:$H,MATCH($C126,$G:$G,0)) -> Production
A127: I02 | B127: Craft Training | C127: VPHR | D127: Distribution | E127: Common by Default
A128: I08 | B128: Energy Delivery Operations Support | C128: VPOP | D128: =INDEX($H:$H,MATCH($C128,$G:$G,0)) -> Distribution
A129: I50 | B129: Contact Center - IT | C129: CUST | D129: =INDEX($H:$H,MATCH($C129,$G:$G,0)) -> Customer
A130: I54 | B130: Taxes Other Than Income | C130: ACCT | D130: =INDEX($H:$H,MATCH($C130,$G:$G,0)) -> Common
A131: J01 | B131: Executive VP & CFO | C131: VPFO | D131: =INDEX($H:$H,MATCH($C131,$G:$G,0)) -> Common
A132: J02 | B132: Public Safety | C132: VPHR | D132: Customer | E132: Common by default
A133: J06 | B133: Joint Project-Jackson Prairie | C133: RSRC | D133: =INDEX($H:$H,MATCH($C133,$G:$G,0)) -> Production
A134: J08 | B134: Gas Construction Quality Control | C134: GEGR | D134: Distribution
A135: J09 | B135: Network System | C135: INFO | D135: Common
A136: J10 | B136: Utility Finance Centralization | C136: VPFO | D136: Common
A137: J11 | B137: Planning and Analysis | C137: VPHR | D137: Common
A138: J29 | B138: Ntwk Sys Prod & Serv | C138: INFO | D138: Common
A139: J50 | B139: Reg Bus Mgr - Spokane | C139: OPER | D139: Distribution
A140: J51 | B140: Warehousing | C140: SUPP | D140: Common
A141: J53 | B141: Sandpoint/Bonners Ferry | C141: COCR | D141: Distribution
A142: J54 | B142: Internal Auditing | C142: EXEC | D142: Common
A143: K02 | B143: Compensation | C143: VPHR | D143: Common
A144: K07 | B144: Thermal O&M | C144: 0007 | D144: Production
A145: K08 | B145: GIS Editing | C145: OPER | D145: Distribution
A146: K14 | B146: Public Affairs | C146: VPCS | D146: Customer
A147: K19 | B147: Customers Tech Ops | C147: INFO | D147: Common
A148: K39 | B148: Gen Custom App Dev | C148: INFO | D148: Common
A149: K50 | B149: Old RC for Conversion | C149: OPER | D149: Distribution
A150: K51 | B150: Fleet Management | C150: CNST | D150: Distribution
A151: K53 | B151: Coeur d'Alene Call Center | C151: CUST | D151: Customer
A152: K54 | B152: Financial Systems Project | C152: VPFO | D152: Common
A153: L02 | B153: Smart Grid Workforce Training | C153: VPHR | D153: Distribution | E153: Common by Default
A154: L07 | B154: Hydro O&M | C154: 0007 | D154: =INDEX($H:$H,MATCH($C154,$G:$G,0)) -> Production
A155: L08 | B155: Transmission Design | C155: ENGR | D155: Transmission | E155: Distribution by default
A156: L39 | B156: Nucleus Development | C156: INFO | D156: =INDEX($H:$H,MATCH($C156,$G:$G,0)) -> Common
A157: L50 | B157: Spokane Gas | C157: SPOW | D157: =INDEX($H:$H,MATCH($C157,$G:$G,0)) -> Distribution
A158: L51 | B158: Claims | C158: VPGC | D158: =INDEX($H:$H,MATCH($C158,$G:$G,0)) -> Common
A159: L52 | B159: Claims Accrual | C159: VPGC | D159: =INDEX($H:$H,MATCH($C159,$G:$G,0)) -> Common
A160: L53 | B160: Coeur d'Alene | C160: COCR | D160: =INDEX($H:$H,MATCH($C160,$G:$G,0)) -> Distribution
A161: L54 | B161: Travel & Flight Operations | C161: CUST | D161: Common | E161: Customer by default
A162: M07 | B162: Mechanical/Structural Shop | C162: 0007 | D162: =INDEX($H:$H,MATCH($C162,$G:$G,0)) -> Production
A163: M08 | B163: Substation Design | C163: ENGR | D163: Distribution
A164: M09 | B164: Central Systems | C164: INFO | D164: Common
A165: M11 | B165: EAM Technology | C165: INFO | D165: Common
A166: M19 | B166: Central Systems Ops | C166: INFO | D166: Common
A167: M29 | B167: Cntrl Syst Prod & Serv | C167: INFO | D167: Common
A168: M50 | B168: Deer Park | C168: OPER | D168: Distribution
A169: M51 | B169: Asset Maintenance | C169: MNTC | D169: Distribution
A170: M53 | B170: Business Entrepreeurial Network | C170: ESOL | D170: Customer
A171: M54 | B171: Business Development | C171: SUPP | D171: Common
A172: N06 | B172: Joint Project-Colstrip | C172: RSRC | D172: Production
A173: N07 | B173: Utility Environ Compliance | C173: 0004 | D173: Production
A174: N08 | B174: Drafting & Survey | C174: ENGR | D174: Distribution
A175: N09 | B175: Office of CIO | C175: INFO | D175: Common
A176: N50 | B176: Director of Customer Service | C176: CUST | D176: Customer
A177: N51 | B177: Write-Off Accrual | C177: CUST | D177: Customer
A178: N52 | B178: CSS Replacement Project | C178: CUST | D178: Customer
A179: N53 | B179: AM Spokane West | C179: BSPA | D179: Distribution
A180: N54 | B180: N54 - Contracts | C180: CUST | D180: Customer
A181: P01 | B181: Legal Expenses | C181: VPGC | D181: Common
A182: P03 | B182: Energy Deliver Tech Proj | C182: VPOP | D182: Distribution
A183: P07 | B183: Contract and Projection Management | C183: 0007 | D183: Production
A184: P08 | B184: Distribution Oper Sys | C184: ENGR | D184: Distribution
A185: P09 | B185: Project Management | C185: INFO | D185: Common
A186: P50 | B186: Davenport | C186: SPOW | D186: Distribution
A187: P51 | B187: Distribution Dispatch | C187: TRAN | D187: Distribution | E187: Transmission by default
A188: P53 | B188: AM Moscow/Pullman | C188: BSPA | D188: =INDEX($H:$H,MATCH($C188,$G:$G,0)) -> Distribution
A189: P59 | B189: Tech Service Center | C189: INFO | D189: Common
A190: P99 | B190: IT Director | C190: INFO | D190: Common
A191: PET | B191: Petty Cash Advance | C191: GENL | D191: Common
A192: PRN | B192: Property Removal Notice | C192: GENL | D192: Common
A193: PRT | B193: Financial Information Summary | C193: GENL | D193: Common
A194: Q19 | B194: Qlty Assur & Rel Mgmt | C194: INFO | D194: Common
A195: R09 | B195: Communicated Systems | C195: INFO | D195: Common
A196: R11 | B196: Rates & Regulations | C196: VPRR | D196: Common
A197: R19 | B197: Comm Systems Ops | C197: INFO | D197: Common
A198: R29 | B198: Comm Sys Prod & Serv | C198: INFO | D198: Common
A199: R50 | B199: Spokane Construction Engineering/Mapping | C199: SPOW | D199: Distribution
A200: R51 | B200: Joint Use Projects - Distribution | C200: CNST | D200: Distribution
A201: R53 | B201: Grangeville | C201: CNST | D201: Distribution
... 124 more rows

Sheet Org Pivot
A5: Link Org | B5: Organization Desc | C5: Organization | D5: Org Structure Desc
A6: 000 | B6: #N/A | C6: 000 | D6: GL Direct
C7: ACCT | D7: Accounting Items
C8: AVA
C9: CEXO | D9: CEO & President
C10: CORP | D10: Accounting Items
C11: SUPP | D11: Support
C12: VPCC | D12: VP Corporate Controller
A13: 028 | B13: #N/A | C13: 028 | D13: Washington State Expense
C14: AVA
C15: GENL | D15: General Corporate
C16: SUPP | D16: Support
A17: 038 | B17: #N/A | C17: 038 | D17: Idaho State Expense
C18: AVA
C19: GENL | D19: General Corporate
C20: SUPP | D20: Support
A21: 048 | B21: #N/A | C21: 048 | D21: Montana State Expense
C22: AVA
C23: GENL | D23: General Corporate
C24: SUPP | D24: Support
A25: 068 | B25: #N/A | C25: 068 | D25: Oregon State Expense
C26: AVA
C27: GENL | D27: General Corporate
C28: SUPP | D28: Support
A29: 078 | B29: #N/A | C29: 078 | D29: California State Expense
C30: AVA
C31: GENL | D31: General Corporate
C32: SUPP | D32: Support
A33: 092 | B33: #N/A | C33: 092 | D33: Oregon/California Allocated Expense
C34: AVA
C35: GENL | D35: General Corporate
C36: SUPP | D36: Support
A37: 098 | B37: #N/A | C37: 098 | D37: Washington/Idaho Common Expense
C38: AVA
C39: GENL | D39: General Corporate
A40: 099 | B40: #N/A | C40: 099 | D40: WAID/OREG Common Expense
C41: AVA
C42: CORP | D42: Sr. VP & CFO
C43: GENL | D43: General Corporate RCs
C44: SUPP | D44: Support
A45: 10A | B45: N54 - Strategic Initiatives | C45: 10A | D45: AA - Account Management
C46: AVA
C47: AVIS | D47: Avista Subsidiaries
D48: Avista Subsidiary
C49: CORP | D49: Finance & Risk Management
C50: SUPP | D50: Support
A51: 11E | B51: 11E - AE Finance | C51: 11E | D51: AE - Finance
C52: AVA
C53: AVIS | D53: Avista Subsidiaries
D54: Avista Subsidiary
C55: CORP | D55: Finance & Risk Management
C56: SUPP | D56: Support
A57: 20A | B57: N54 - Strategic Initiatives | C57: 20A | D57: AA - Implementation
C58: AVA
C59: AVIS | D59: Avista Subsidiaries
C60: SUPP | D60: Support
A61: 20E | B61: 20E - AE - Marketing Spokane | C61: 20E | D61: AE - Marketing Spokane
C62: AVA
C63: AVIS | D63: Avista Subsidiaries
D64: Avista Subsidiary
C65: CORP | D65: Finance & Risk Management
C66: SUPP | D66: Support
A67: 21E | B67: N54 - Strategic Initiatives | C67: 21E | D67: AE - Marketing Houston
C68: AVA
C69: AVIS | D69: Avista Subsidiaries
C70: SUPP | D70: Support
A71: 260 | B71: 260 - Development | C71: 260 | D71: Avista Development
C72: AVA
C73: AVIS | D73: Avista Subsidiaries
A74: 30E | B74: N54 - Strategic Initiatives | C74: 30E | D74: AE - IS
C75: AVA
C76: AVIS | D76: Avista Subsidiaries
C77: SUPP | D77: Support
A78: 35E | B78: N54 - Strategic Initiatives | C78: 35E | D78: AE - Credit/Contracts
C79: AVA
C80: AVIS | D80: Avista Subsidiaries
C81: SUPP | D81: Support
A82: 40A | B82: N54 - Strategic Initiatives | C82: 40A | D82: AA - Training
C83: AVA
C84: AVIS | D84: Avista Subsidiaries
C85: SUPP | D85: Support
A86: 40E | B86: 40E - AE - Risk | C86: 40E | D86: AE - Risk
C87: AVA
C88: AVIS | D88: Avista Subsidiaries
D89: Avista Subsidiary
C90: CORP | D90: Finance & Risk Management
C91: SUPP | D91: Support
A92: 50A | B92: N54 - Strategic Initiatives | C92: 50A | D92: AA - Administration
C93: AVA
C94: AVIS | D94: Avista Subsidiaries
C95: SUPP | D95: Support
A96: 50E | B96: 50E - AE - Trading Spokane | C96: 50E | D96: AE - Trading Spokane
C97: AVA
C98: AVIS | D98: Avista Subsidiaries
D99: Avista Subsidiary
C100: CORP | D100: Finance & Risk Management
C101: SUPP | D101: Support
A102: 52E | B102: N54 - Strategic Initiatives | C102: 52E | D102: AE - Trading Houston
C103: AVA
C104: AVIS | D104: Avista Subsidiaries
C105: SUPP | D105: Support
A106: 60A | B106: N54 - Strategic Initiatives | C106: 60A | D106: AA - Data Entry
C107: AVA
C108: AVIS | D108: Avista Subsidiaries
D109: Avista Subsidiary
C110: CORP | D110: Finance & Risk Management
C111: SUPP | D111: Support
A112: A01 | B112: A01 - Native American Relations | C112: A01 | D112: Native American Relations
C113: AVA
C114: CEXO | D114: CEO & President
C115: OPER | D115: Sr. VP Energy Resources
C116: SUPP | D116: Support
C117: VPPS | D117: Sr. VP Energy Resources
C118: VPUP | D118: President & COO Avista Corp
A119: A02 | B119: A02 - HRIS/Payroll | C119: A02 | D119: HRIS/Payroll
C120: AVA
C121: CEXO | D121: CEO & President
C122: CORP | D122: Sr. VP Human Resources
C123: SUPP | D123: Support
C124: VPHR | D124: Sr. VP Human Resources
A125: A03 | B125: N54 - Strategic Initiatives | C125: A03 | D125: Avista Power
C126: AVA
C127: AVIS | D127: Avista Subsidiaries
C128: CORP | D128: Finance & Risk Management
C129: SUPP | D129: Support
A130: A04 | B130: A04 - Environmental Affairs | C130: 0004 | D130: Environmental Affairs
C131: A04 | D131: Environmental Affairs
C132: AVA
C133: CEXO | D133: CEO & President
C134: CORP | D134: Sr. VP & General Counsel
C135: SUPP | D135: Support
C136: VPGC | D136: Sr. VP & General Counsel
A137: A07 | B137: A07 - Gen Mgmt & Admin Support | C137: 0007 | D137: Gen Prod Sub Support
C138: A07 | D138: Generation and Central Support
C139: AVA
C140: CEXO | D140: CEO & President
C141: OPER | D141: Sr. VP Energy Resources
C142: SUPP | D142: Support
C143: VPPS | D143: Sr. VP Energy Resources
C144: VPUP | D144: President & COO Avista Corp
A145: A08 | B145: A08 - Relay & Protection | C145: A08 | D145: Relay & Protection Design
C146: AVA
C147: CEXO | D147: CEO & President
C148: ENGR | D148: Electric Engineering
C149: OPER | D149: VP Energy Delivery
C150: SUPP | D150: Support
C151: VPOP | D151: VP Energy Delivery
C152: VPUP | D152: President & COO Avista Corp
A153: A09 | B153: A09 - ET Shared Services | C153: A09 | D153: ET Shared Services
C154: AVA
C155: CEXO | D155: CEO & President
C156: INFO | D156: VP Info & Security
C157: OPER | D157: VP Info & Security
C158: SUPP | D158: Support
C159: VPUP | D159: President & COO Avista Corp
A160: A50 | B160: A50 - Director of Ops WA & ID | C160: A50 | D160: West Ops and Asset Maint
C161: AVA
C162: CEXO | D162: CEO & President
C163: ELEC | D163: Electric
C164: OPER | D164: VP Energy Delivery
C165: VPOP | D165: VP Energy Delivery
C166: VPUP | D166: President & COO Avista Corp
C167: WEST | D167: Director of Operations - West
A168: A51 | B168: A51 - Dir Operations East & South | C168: A51 | D168: East and South Ops
C169: AVA
C170: CEXO | D170: CEO & President
C171: EAST | D171: Director Operations - East
C172: ELEC | D172: Electric
C173: OPER | D173: VP Energy Delivery
C174: VPOP | D174: VP Energy Delivery
C175: VPUP | D175: President & COO Avista Corp
A176: A52 | B176: A52 - Svc Develop & Marketng | C176: A52 | D176: Svc Develop & Marketing
C177: AVA
C178: CEXO | D178: CEO & President
C179: OPER | D179: VP Customer Solutions
C180: SUPP | D180: Support
C181: VPCS | D181: VP Customer Solutions
C182: VPUP | D182: President & COO Avista Corp
C183: CSOL | D183: Customer Solutions
A184: A56 | B184: A56 - System Operations | C184: A56 | D184: System Operations
C185: AVA
C186: CEXO | D186: CEO & President
C187: OPER | D187: VP Energy Delivery
C188: SUPP | D188: Support
C189: TRAN | D189: Transmission
C190: VPOP | D190: VP Energy Delivery
C191: VPUP | D191: President & COO Avista Corp
A192: A57 | B192: A57 - Ed Utility Accounting | C192: A57 | D192: Energy Delivery Utility Accounting
C193: AVA
C194: CEXO | D194: CEO & President
C195: CORP | D195: Sr. VP & CFO
C196: SUPP | D196: Support
C197: VPCC | D197: VP Corporate Controller
C198: VPFO | D198: Sr. VP & CFO
A199: A80 | B199: A80 - Director of ORCA | C199: A80 | D199: Director of OREG
C200: AVA
C201: CEXO | D201: CEO & President
C202: GAS | D202: Gas
C203: NGAS | D203: Natural Gas Operations
C204: OPER | D204: Natural Gas Operations
... 1918 more rows

Sheet 2016 update ORG
A1: Org Structure Tables Organization Table | D1: Org Structure Tables Org Structure Table
A2: 2016-02-03 | D2: 2017-04-11
A3: Expenditure Organization | B3: Organization Desc | D3: Link Org | E3: Organization | F3: Org Level1 | G3: Org Level2 | H3: Org Level3 | I3: Org Level4 | J3: Org Level5 | K3: Org Structure Desc | L3: Organization | M3: Contact Reference Name | N3: Organization Desc
A4: 099 | B4: 099 - Common to All | D4: J01 | E4: CEXO | F4: NULL | G4: NULL | H4: NULL | I4: NULL | J4: NULL | K4: CEO & President | L4: J01 | N4: =VLOOKUP(L4,Table1,2) -> J01 - SR VP & CFO
A5: 11E | B5: 11E - AE Finance | D5: J01 | E5: J01 | F5: NULL | G5: NULL | H5: NULL | I5: NULL | J5: NULL | K5: Executive VP & CFO | L5: J01 | M5: Mark Thies | N5: J01 - SR VP & CFO
A6: 200 | B6: 200 - Capital | D6: J01 | E6: SUPP | F6: NULL | G6: NULL | H6: NULL | I6: NULL | J6: NULL | K6: Support | L6: J01 | M6: NULL | N6: J01 - SR VP & CFO
A7: 20E | B7: 20E - AE - Marketing Spokane | D7: 028 | E7: 028 | F7: NULL | G7: NULL | H7: NULL | I7: NULL | J7: NULL | K7: Washington State Expense | L7: 028 | M7: NULL
A8: 250 | B8: 250 - Pentzer | D8: 028 | E8: AVA | F8: GENL | G8: 028 | H8: NULL | I8: NULL | J8: NULL | K8: Total Company | L8: 028 | M8: NULL
A9: 260 | B9: 260 - Development | D9: 028 | E9: GENL | F9: 028 | G9: NULL | H9: NULL | I9: NULL | J9: NULL | K9: General Corporate | L9: 028 | M9: NULL
A10: 290 | B10: 290 - Ventures | D10: 038 | E10: 038 | F10: NULL | G10: NULL | H10: NULL | I10: NULL | J10: NULL | K10: Idaho State Expense | L10: 038 | M10: NULL
A11: 400 | B11: 400 - Salix LNG Inc | D11: 038 | E11: AVA | F11: GENL | G11: 038 | H11: NULL | I11: NULL | J11: NULL | K11: Total Company | L11: 038 | M11: NULL
A12: 40E | B12: 40E - AE - Risk | D12: 038 | E12: GENL | F12: 038 | G12: NULL | H12: NULL | I12: NULL | J12: NULL | K12: General Corporate | L12: 038 | M12: NULL
A13: 50E | B13: 50E - AE - Trading Spokane | D13: 048 | E13: 048 | F13: NULL | G13: NULL | H13: NULL | I13: NULL | J13: NULL | K13: Montana State Expense | L13: 048 | M13: Jason Thackston
A14: A01 | B14: A01 - Native American Relations | D14: 048 | E14: AVA | F14: GENL | G14: 048 | H14: NULL | I14: NULL | J14: NULL | K14: Total Company | L14: 048 | M14: NULL
A15: A02 | B15: A02 - HRIS/Payroll | D15: 048 | E15: GENL | F15: 048 | G15: NULL | H15: NULL | I15: NULL | J15: NULL | K15: General Corporate | L15: 048 | M15: NULL
A16: A04 | B16: A04 - Environmental Affairs | D16: 068 | E16: 068 | F16: NULL | G16: NULL | H16: NULL | I16: NULL | J16: NULL | K16: Oregon State Expense | L16: 068 | M16: NULL
A17: A07 | B17: A07 - Gen Mgmt & Admin Support | D17: 068 | E17: AVA | F17: GENL | G17: 068 | H17: NULL | I17: NULL | J17: NULL | K17: Total Company | L17: 068 | M17: NULL
A18: A08 | B18: A08 - Relay & Protection | D18: 068 | E18: GENL | F18: 068 | G18: NULL | H18: NULL | I18: NULL | J18: NULL | K18: General Corporate | L18: 068 | M18: NULL
A19: A09 | B19: A09 - ET Shared Services | D19: 078 | E19: 078 | F19: NULL | G19: NULL | H19: NULL | I19: NULL | J19: NULL | K19: California State Expense | L19: 078 | M19: NULL
A20: A19 | B20: A19 - Operating Tech Ops | D20: 078 | E20: AVA | F20: GENL | G20: 078 | H20: NULL | I20: NULL | J20: NULL | K20: Total Company | L20: 078 | M20: NULL
A21: A39 | B21: A39 - COTS Development | D21: 078 | E21: GENL | F21: 078 | G21: NULL | H21: NULL | I21: NULL | J21: NULL | K21: General Corporate | L21: 078 | M21: NULL
A22: A50 | B22: A50 - Director of Ops WA & ID | D22: 092 | E22: 092 | F22: NULL | G22: NULL | H22: NULL | I22: NULL | J22: NULL | K22: Oregon/California Allocated Expense | L22: 092 | M22: NULL
A23: A51 | B23: A51 - Dir Operations East & South | D23: 092 | E23: AVA | F23: GENL | G23: 092 | H23: NULL | I23: NULL | J23: NULL | K23: Total Company | L23: 092 | M23: NULL | N23: =VLOOKUP(L23,Table1,2) -> 
A24: A52 | B24: A52 - Svc Develop & Marketng | D24: 092 | E24: GENL | F24: 092 | G24: NULL | H24: NULL | I24: NULL | J24: NULL | K24: General Corporate | L24: 092 | M24: NULL
A25: A54 | B25: A54 - Dir of Customer Solution | D25: 098 | E25: 098 | F25: NULL | G25: NULL | H25: NULL | I25: NULL | J25: NULL | K25: Washington/Idaho Common Expense | L25: 098 | M25: NULL
A26: A56 | B26: A56 - System Operations | D26: 098 | E26: AVA | F26: GENL | G26: 098 | H26: NULL | I26: NULL | J26: NULL | K26: Total Company | L26: 098 | M26: NULL
A27: A57 | B27: A57 - Ed Utility Accounting | D27: 098 | E27: GENL | F27: 098 | G27: NULL | H27: NULL | I27: NULL | J27: NULL | K27: General Corporate | L27: 098 | M27: NULL
A28: A80 | B28: A80 - Director of ORCA | D28: J01 | E28: VPFO | F28: NULL | G28: NULL | H28: NULL | I28: NULL | J28: NULL | K28: Sr. VP & CFO | L28: J01 | M28: Marian Durkin | N28: J01 - SR VP & CFO
A29: A81 | B29: A81 - Medford Construction | D29: J02 | E29: AVA | F29: NULL | G29: NULL | H29: NULL | I29: NULL | J29: NULL | K29: Total Company | L29: J02 | N29: J02 - Public Safety
A30: A82 | B30: A82 - Roseburg | D30: J02 | E30: CEXO | F30: NULL | G30: NULL | H30: NULL | I30: NULL | J30: NULL | K30: CEO & President | L30: J02 | N30: J02 - Public Safety
A31: A83 | B31: A83 - Klamath Falls | D31: 10A | E31: 10A | F31: NULL | G31: NULL | H31: NULL | I31: NULL | J31: NULL | K31: AA - Account Management | L31: NULL | M31: NULL | N31: N54 - Strategic Initiatives
A32: A84 | B32: A84 -South Lake Tahoe | D32: 10A | E32: AVA | F32: AVIS | G32: 10A | H32: NULL | I32: NULL | J32: NULL | K32: Total Company | L32: NULL | M32: NULL | N32: N54 - Strategic Initiatives
A33: B02 | B33: B02 - Benefits | D33: 10A | E33: AVIS | F33: 10A | G33: NULL | H33: NULL | I33: NULL | J33: NULL | K33: Avista Subsidiaries | L33: NULL | M33: Scott Morris | N33: N54 - Strategic Initiatives
A34: B04 | B34: B04 - Clark Fork License | D34: 11E | E34: 11E | F34: NULL | G34: NULL | H34: NULL | I34: NULL | J34: NULL | K34: AE - Finance | L34: 11E | M34: NULL | N34: 11E - AE Finance
A35: B07 | B35: B07 - Project Delivery | D35: 11E | E35: AVA | F35: AVIS | G35: 11E | H35: NULL | I35: NULL | J35: NULL | K35: Total Company | L35: 11E | M35: NULL | N35: 11E - AE Finance
A36: B08 | B36: B08 - Business Process Improvement | D36: 11E | E36: AVIS | F36: 11E | G36: NULL | H36: NULL | I36: NULL | J36: NULL | K36: Avista Subsidiaries | L36: 11E | M36: Scott Morris | N36: 11E - AE Finance
A37: B09 | B37: B09 - Network Operations | D37: 20A | E37: 20A | F37: NULL | G37: NULL | H37: NULL | I37: NULL | J37: NULL | K37: AA - Implementation | L37: NULL | M37: NULL | N37: N54 - Strategic Initiatives
A38: B16 | B38: B16 - Government Relations | D38: 20A | E38: AVA | F38: AVIS | G38: 20A | H38: NULL | I38: NULL | J38: NULL | K38: Total Company | L38: NULL | M38: NULL | N38: N54 - Strategic Initiatives
A39: B50 | B39: B50 - Spokane Electric | D39: 20A | E39: AVIS | F39: 20A | G39: NULL | H39: NULL | I39: NULL | J39: NULL | K39: Avista Subsidiaries | L39: NULL | M39: Scott Morris | N39: N54 - Strategic Initiatives
A40: B51 | B40: B51 - Gas Engineering | D40: 20E | E40: 20E | F40: NULL | G40: NULL | H40: NULL | I40: NULL | J40: NULL | K40: AE - Marketing Spokane | L40: 20E | M40: NULL | N40: 20E - AE - Marketing Spokane
A41: B52 | B41: B52 - Gas Comp Cathodic | D41: 20E | E41: AVA | F41: AVIS | G41: 20E | H41: NULL | I41: NULL | J41: NULL | K41: Total Company | L41: 20E | M41: NULL | N41: 20E - AE - Marketing Spokane
A42: B53 | B42: B53 - Pullman | D42: 20E | E42: AVIS | F42: 20E | G42: NULL | H42: NULL | I42: NULL | J42: NULL | K42: Avista Subsidiaries | L42: 20E | M42: Scott Morris | N42: 20E - AE - Marketing Spokane
A43: B54 | B43: B54 - Gas Compliance | D43: 21E | E43: 21E | F43: NULL | G43: NULL | H43: NULL | I43: NULL | J43: NULL | K43: AE - Marketing Houston | L43: NULL | M43: NULL | N43: N54 - Strategic Initiatives
A44: B56 | B44: B56 - Misc Transmission Expense | D44: 21E | E44: AVA | F44: AVIS | G44: 21E | H44: NULL | I44: NULL | J44: NULL | K44: Total Company | L44: NULL | M44: NULL | N44: N54 - Strategic Initiatives
A45: B81 | B45: B81 - Contact Ctr-Medford | D45: 21E | E45: AVIS | F45: 21E | G45: NULL | H45: NULL | I45: NULL | J45: NULL | K45: Avista Subsidiaries | L45: NULL | M45: Scott Morris | N45: N54 - Strategic Initiatives
A46: C02 | B46: C02 - Employee Engagement | D46: 260 | E46: 260 | F46: NULL | G46: NULL | H46: NULL | I46: NULL | J46: NULL | K46: Avista Development | L46: 260 | M46: NULL | N46: 260 - Development
A47: C04 | B47: C04 - Spokane River License | D47: 260 | E47: AVA | F47: AVIS | G47: 260 | H47: NULL | I47: NULL | J47: NULL | K47: Total Company | L47: 260 | M47: NULL | N47: 260 - Development
A48: C06 | B48: C06 - Joint Project - CS2 | D48: 260 | E48: AVIS | F48: 260 | G48: NULL | H48: NULL | I48: NULL | J48: NULL | K48: Avista Subsidiaries | L48: 260 | M48: Scott Morris | N48: 260 - Development
A49: C07 | B49: C07 - Spokane River Hydro | D49: 30E | E49: 30E | F49: NULL | G49: NULL | H49: NULL | I49: NULL | J49: NULL | K49: AE - IS | L49: NULL | M49: NULL | N49: N54 - Strategic Initiatives
A50: C08 | B50: C08 - Technical Services - GIS | D50: 30E | E50: AVA | F50: AVIS | G50: 30E | H50: NULL | I50: NULL | J50: NULL | K50: Total Company | L50: NULL | M50: NULL | N50: N54 - Strategic Initiatives
A51: C09 | B51: C09 - Security Systems | D51: 30E | E51: AVIS | F51: 30E | G51: NULL | H51: NULL | I51: NULL | J51: NULL | K51: Avista Subsidiaries | L51: NULL | M51: Scott Morris | N51: N54 - Strategic Initiatives
A52: C11 | B52: C11 - CC&B Technology | D52: 35E | E52: 35E | F52: NULL | G52: NULL | H52: NULL | I52: NULL | J52: NULL | K52: AE - Credit/Contracts | L52: NULL | M52: NULL | N52: N54 - Strategic Initiatives
A53: C19 | B53: C19 - Security Operations | D53: 35E | E53: AVA | F53: AVIS | G53: 35E | H53: NULL | I53: NULL | J53: NULL | K53: Total Company | L53: NULL | M53: NULL | N53: N54 - Strategic Initiatives
A54: C29 | B54: C29 - Security Products & Serv | D54: 35E | E54: AVIS | F54: 35E | G54: NULL | H54: NULL | I54: NULL | J54: NULL | K54: Avista Subsidiaries | L54: NULL | M54: Scott Morris | N54: N54 - Strategic Initiatives
A55: C50 | B55: C50 - Contact Ctr Spokane-Hire & Train | D55: 40A | E55: 40A | F55: NULL | G55: NULL | H55: NULL | I55: NULL | J55: NULL | K55: AA - Training | L55: NULL | M55: NULL | N55: N54 - Strategic Initiatives
A56: C51 | B56: C51 - Elec Distributn Design | D56: 40A | E56: AVA | F56: AVIS | G56: 40A | H56: NULL | I56: NULL | J56: NULL | K56: Total Company | L56: NULL | M56: NULL | N56: N54 - Strategic Initiatives
A57: C52 | B57: C52 - Customer Solutions | D57: 40A | E57: AVIS | F57: 40A | G57: NULL | H57: NULL | I57: NULL | J57: NULL | K57: Avista Subsidiaries | L57: NULL | M57: Scott Morris | N57: N54 - Strategic Initiatives
A58: C53 | B58: C53 - Coeur d Alene Gas | D58: 40E | E58: 40E | F58: NULL | G58: NULL | H58: NULL | I58: NULL | J58: NULL | K58: AE - Risk | L58: 40E | M58: NULL | N58: 40E - AE - Risk
A59: C54 | B59: C54 - Tax Services | D59: 40E | E59: AVA | F59: AVIS | G59: 40E | H59: NULL | I59: NULL | J59: NULL | K59: Total Company | L59: 40E | M59: NULL | N59: 40E - AE - Risk
A60: C55 | B60: C55 - Gas Resource Costs | D60: 40E | E60: AVIS | F60: 40E | G60: NULL | H60: NULL | I60: NULL | J60: NULL | K60: Avista Subsidiaries | L60: 40E | M60: Scott Morris | N60: 40E - AE - Risk
A61: C56 | B61: C56 - System Planning | D61: 50A | E61: 50A | F61: NULL | G61: NULL | H61: NULL | I61: NULL | J61: NULL | K61: AA - Administration | L61: NULL | M61: NULL | N61: N54 - Strategic Initiatives
A62: C57 | B62: C57 - Spokane Electric Network | D62: 50A | E62: AVA | F62: AVIS | G62: 50A | H62: NULL | I62: NULL | J62: NULL | K62: Total Company | L62: NULL | M62: NULL | N62: N54 - Strategic Initiatives
A63: C59 | B63: C59 - Enterprise Busi Continuity | D63: 50A | E63: AVIS | F63: 50A | G63: NULL | H63: NULL | I63: NULL | J63: NULL | K63: Avista Subsidiaries | L63: NULL | M63: Scott Morris | N63: N54 - Strategic Initiatives
A64: C81 | B64: C81 - Medford Tech Service | D64: 50E | E64: 50E | F64: NULL | G64: NULL | H64: NULL | I64: NULL | J64: NULL | K64: AE - Trading Spokane | L64: 50E | M64: NULL | N64: 50E - AE - Trading Spokane
A65: C83 | B65: C83 - La Grande | D65: 50E | E65: AVA | F65: AVIS | G65: 50E | H65: NULL | I65: NULL | J65: NULL | K65: Total Company | L65: 50E | M65: NULL | N65: 50E - AE - Trading Spokane
A66: D02 | B66: D02 - VP Of Hr & Corp Service | D66: 50E | E66: AVIS | F66: 50E | G66: NULL | H66: NULL | I66: NULL | J66: NULL | K66: Avista Subsidiaries | L66: 50E | M66: Scott Morris | N66: 50E - AE - Trading Spokane
A67: D08 | B67: D08 - Energy Del Gen Mg | D67: 52E | E67: 52E | F67: NULL | G67: NULL | H67: NULL | I67: NULL | J67: NULL | K67: AE - Trading Houston | L67: NULL | M67: NULL | N67: N54 - Strategic Initiatives
A68: D09 | B68: D09 - Scada | D68: 52E | E68: AVA | F68: AVIS | G68: 52E | H68: NULL | I68: NULL | J68: NULL | K68: Total Company | L68: NULL | M68: NULL | N68: =VLOOKUP(L68,Table1,2) -> N54 - Strategic Initiatives
A69: D50 | B69: D50 - Meter Read/Billing | D69: 52E | E69: AVIS | F69: 52E | G69: NULL | H69: NULL | I69: NULL | J69: NULL | K69: Avista Subsidiaries | L69: NULL | M69: Scott Morris | N69: N54 - Strategic Initiatives
A70: D51 | B70: D51 - Vegetation Management | D70: 60A | E70: 60A | F70: NULL | G70: NULL | H70: NULL | I70: NULL | J70: NULL | K70: AA - Data Entry | L70: NULL | M70: NULL | N70: N54 - Strategic Initiatives
A71: D52 | B71: D52 - Energy Efficiency | D71: 60A | E71: AVA | F71: AVIS | G71: 60A | H71: NULL | I71: NULL | J71: NULL | K71: Total Company | L71: NULL | M71: NULL | N71: N54 - Strategic Initiatives
A72: D53 | B72: D53 - Clarkston | D72: 60A | E72: AVIS | F72: 60A | G72: NULL | H72: NULL | I72: NULL | J72: NULL | K72: Avista Subsidiaries | L72: NULL | M72: Scott Morris | N72: N54 - Strategic Initiatives
A73: D54 | B73: D54 - Corp & Subs Accounting | D73: J02 | E73: J02 | F73: NULL | G73: NULL | H73: NULL | I73: NULL | J73: NULL | K73: Public Safety | L73: J02 | M73: Anthony Klutz | N73: J02 - Public Safety
A74: D55 | B74: D55 - Natural Gas Resources | D74: J02 | E74: SUPP | F74: NULL | G74: NULL | H74: NULL | I74: NULL | J74: NULL | K74: Support | L74: J02 | M74: NULL | N74: J02 - Public Safety
A75: D56 | B75: D56 - Director of Engineering/System Ops | D75: J02 | E75: VPHR | F75: NULL | G75: NULL | H75: NULL | I75: NULL | J75: NULL | K75: Sr. VP Human Resources | L75: J02 | M75: Heather Rosentrater | N75: J02 - Public Safety
A76: D83 | B76: D83 - Goldendale Construction | D76: J06 | E76: AVA | F76: NULL | G76: NULL | H76: NULL | I76: NULL | J76: NULL | K76: Total Company | L76: J06 | N76: J06 - Joint Project Jackson Prairie
A77: E01 | B77: E01 - Exec Administration | D77: J06 | E77: CEXO | F77: NULL | G77: NULL | H77: NULL | I77: NULL | J77: NULL | K77: CEO & President | L77: J06 | N77: J06 - Joint Project Jackson Prairie
A78: E02 | B78: E02 - Corp Org Development | D78: J06 | E78: J06 | F78: NULL | G78: NULL | H78: NULL | I78: NULL | J78: NULL | K78: Joint Project-Jackson Prairie | L78: J06 | M78: Jody Morehouse | N78: J06 - Joint Project Jackson Prairie
A79: E07 | B79: E07 - Generation Engineers | D79: J06 | E79: RSRC | F79: NULL | G79: NULL | H79: NULL | I79: NULL | J79: NULL | K79: Joint Resources | L79: J06 | M79: David Meyer | N79: J06 - Joint Project Jackson Prairie
A80: E08 | B80: E08 - Old RC for Conversion | D80: J06 | E80: SUPP | F80: NULL | G80: NULL | H80: NULL | I80: NULL | J80: NULL | K80: Support | L80: J06 | M80: NULL | N80: J06 - Joint Project Jackson Prairie
A81: E09 | B81: E09 - Distributed Systems | D81: J06 | E81: VPPS | F81: NULL | G81: NULL | H81: NULL | I81: NULL | J81: NULL | K81: Sr. VP Energy Resources | L81: J06 | M81: Kelly Norwood | N81: J06 - Joint Project Jackson Prairie
A82: E14 | B82: E14 - Environmental Compliance | D82: J06 | E82: VPUP | F82: NULL | G82: NULL | H82: NULL | I82: NULL | J82: NULL | K82: President & COO Avista Corp | L82: J06 | M82: Marian Durkin | N82: J06 - Joint Project Jackson Prairie
A83: E19 | B83: E19 - Dist Systems Ops | D83: J08 | E83: AVA | F83: NULL | G83: NULL | H83: NULL | I83: NULL | J83: NULL | K83: Total Company | L83: J08 | N83: J08 - Gas Construction Quality Control
A84: E29 | B84: E29 - Dist Syst Prod & Serv | D84: A03 | E84: A03 | F84: NULL | G84: NULL | H84: NULL | I84: NULL | J84: NULL | K84: Avista Power | L84: NULL | M84: NULL | N84: N54 - Strategic Initiatives
A85: E50 | B85: E50 - Contact Ctr-Spokane | D85: A03 | E85: AVA | F85: AVIS | G85: A03 | H85: NULL | I85: NULL | J85: NULL | K85: Total Company | L85: NULL | M85: NULL | N85: N54 - Strategic Initiatives
A86: E51 | B86: E51 - Asset Management | D86: A03 | E86: AVIS | F86: A03 | G86: NULL | H86: NULL | I86: NULL | J86: NULL | K86: Avista Subsidiaries | L86: NULL | M86: Scott Morris | N86: N54 - Strategic Initiatives
A87: E52 | B87: E52 - Oregon DSM | D87: J08 | E87: CEXO | F87: NULL | G87: NULL | H87: NULL | I87: NULL | J87: NULL | K87: CEO & President | L87: J08 | N87: J08 - Gas Construction Quality Control
A88: E53 | B88: E53 - Contact Ctr-Lewiston | D88: J08 | E88: GAS | F88: NULL | G88: NULL | H88: NULL | I88: NULL | J88: NULL | K88: Gas | L88: J08 | M88: NULL | N88: J08 - Gas Construction Quality Control
A89: E54 | B89: E54 - Accounts Payable | D89: J08 | E89: GEGR | F89: NULL | G89: NULL | H89: NULL | I89: NULL | J89: NULL | K89: Gas Engineering | L89: J08 | M89: Mike Faulkenberry | N89: J08 - Gas Construction Quality Control
A90: E55 | B90: E55 - Power Supply | D90: J08 | E90: J08 | F90: NULL | G90: NULL | H90: NULL | I90: NULL | J90: NULL | K90: Gas Construction Quality Control | L90: J08 | M90: Matt Mullineaux | N90: J08 - Gas Construction Quality Control
A91: E56 | B91: E56 - Transmission Services | D91: J08 | E91: NGAS | F91: NULL | G91: NULL | H91: NULL | I91: NULL | J91: NULL | K91: Natural Gas | L91: J08 | M91: Mike Faulkenberry | N91: J08 - Gas Construction Quality Control
A92: F02 | B92: F02 - HR Consulting and Analy | D92: J08 | E92: VPOP | F92: NULL | G92: NULL | H92: NULL | I92: NULL | J92: NULL | K92: VP Energy Delivery | L92: J08 | M92: Jason Thackston | N92: J08 - Gas Construction Quality Control
A93: F08 | B93: F08 - Electric Shop | D93: J08 | E93: VPUP | F93: NULL | G93: NULL | H93: NULL | I93: NULL | J93: NULL | K93: President & COO Avista Corp | L93: J08 | M93: Marian Durkin | N93: J08 - Gas Construction Quality Control
A94: F14 | B94: F14 - External Projects | D94: J09 | E94: AVA | F94: NULL | G94: NULL | H94: NULL | I94: NULL | J94: NULL | K94: Total Company | L94: J09 | N94: J09 - Network Systems
A95: F19 | B95: F19 - Back Office Tech Ops | D95: J09 | E95: CEXO | F95: NULL | G95: NULL | H95: NULL | I95: NULL | J95: NULL | K95: CEO & President | L95: J09 | N95: J09 - Network Systems
A96: F39 | B96: F39 - Oracle Fin Sevices Dev | D96: J09 | E96: INFO | F96: NULL | G96: NULL | H96: NULL | I96: NULL | J96: NULL | K96: VP Info & Security | L96: J09 | M96: Jim Kensok | N96: J09 - Network Systems
A97: F50 | B97: F50 - Contact Ctr-Credit & Collections | D97: J09 | E97: INFR | F97: NULL | G97: NULL | H97: NULL | I97: NULL | J97: NULL | K97: Infrastructure Technology Summary | L97: J09 | M97: Jim Corder | N97: J09 - Network Systems
A98: F51 | B98: F51 - G.I.S. | D98: J09 | E98: ITNE | F98: NULL | G98: NULL | H98: NULL | I98: NULL | J98: NULL | K98: Network Engineering Rollup | L98: J09 | M98: Jim Corder | N98: J09 - Network Systems
A99: F52 | B99: F52 - Market Services | D99: J09 | E99: J09 | F99: NULL | G99: NULL | H99: NULL | I99: NULL | J99: NULL | K99: Network Systems Engineering | L99: J09 | M99: Jim Corder | N99: J09 - Network Systems
A100: F53 | B100: F53 - AM Lewis/Clark | D100: J09 | E100: SUPP | F100: NULL | G100: NULL | H100: NULL | I100: NULL | J100: NULL | K100: Support | L100: J09 | M100: NULL | N100: J09 - Network Systems
A101: F54 | B101: F54 - Treasury & Trust Mgmt | D101: J09 | E101: VPUP | F101: NULL | G101: NULL | H101: NULL | I101: NULL | J101: NULL | K101: President & COO Avista Corp | L101: J09 | M101: Marian Durkin | N101: J09 - Network Systems
A102: F55 | B102: F55 - Financial Planning and Analysis | D102: J10 | E102: AVA | F102: NULL | G102: NULL | H102: NULL | I102: NULL | J102: NULL | K102: Total Company | L102: J10 | N102: J10 - Utility Fin Central
A103: FIN | B103: FIN - Financial Info Summary | D103: J10 | E103: CEXO | F103: NULL | G103: NULL | H103: NULL | I103: NULL | J103: NULL | K103: CEO & President | L103: J10 | N103: J10 - Utility Fin Central
A104: G01 | B104: G01 - Officer Support Team | D104: J10 | E104: J10 | F104: NULL | G104: NULL | H104: NULL | I104: NULL | J104: NULL | K104: Utility Finance Centralization | L104: J10 | M104: Laura Vickers | N104: J10 - Utility Fin Central
A105: G02 | B105: G02 - Employee Safety | D105: J10 | E105: SUPP | F105: NULL | G105: NULL | H105: NULL | I105: NULL | J105: NULL | K105: Support | L105: J10 | M105: NULL | N105: J10 - Utility Fin Central
A106: G08 | B106: G08 - Gas Construction Management | D106: J10 | E106: VPFO | F106: NULL | G106: NULL | H106: NULL | I106: NULL | J106: NULL | K106: Sr. VP & CFO | L106: J10 | M106: Marian Durkin | N106: J10 - Utility Fin Central
A107: G10 | B107: G10 - Credit Union | D107: J29 | E107: AVA | F107: NULL | G107: NULL | H107: NULL | I107: NULL | J107: NULL | K107: Total Company | L107: J29 | N107: J29 - Ntwk Sys Prod & Serv
A108: G39 | B108: G39 - GIS Development | D108: J29 | E108: CEXO | F108: NULL | G108: NULL | H108: NULL | I108: NULL | J108: NULL | K108: CEO & President | L108: J29 | N108: J29 - Ntwk Sys Prod & Serv
A109: G50 | B109: G50 - Colville | D109: J29 | E109: INFO | F109: NULL | G109: NULL | H109: NULL | I109: NULL | J109: NULL | K109: VP Info & Security | L109: J29 | M109: Jim Kensok | N109: J29 - Ntwk Sys Prod & Serv
A110: G51 | B110: G51 - Dir of Natural Gas | D110: J29 | E110: INFR | F110: NULL | G110: NULL | H110: NULL | I110: NULL | J110: NULL | K110: Infrastructure Technology Summary | L110: J29 | M110: Jim Corder | N110: J29 - Ntwk Sys Prod & Serv
A111: G53 | B111: G53 - Area Manager - CDA | D111: J29 | E111: ITNE | F111: NULL | G111: NULL | H111: NULL | I111: NULL | J111: NULL | K111: Network Engineering Rollup | L111: J29 | M111: Jim Corder | N111: J29 - Ntwk Sys Prod & Serv
A112: G54 | B112: G54 - Finance Administration | D112: J29 | E112: J29 | F112: NULL | G112: NULL | H112: NULL | I112: NULL | J112: NULL | K112: Network Systems Products & Services | L112: J29 | M112: Jim Corder | N112: J29 - Ntwk Sys Prod & Serv
A113: G55 | B113: G55 - Power Purchases | D113: J29 | E113: SUPP | F113: NULL | G113: NULL | H113: NULL | I113: NULL | J113: NULL | K113: Support | L113: J29 | M113: NULL | N113: J29 - Ntwk Sys Prod & Serv
A114: H02 | B114: H02 - Occupational Health | D114: J29 | E114: VPUP | F114: NULL | G114: NULL | H114: NULL | I114: NULL | J114: NULL | K114: President & COO Avista Corp | L114: J29 | M114: Marian Durkin | N114: J29 - Ntwk Sys Prod & Serv
A115: H03 | B115: H03 - Facility Lease Management | D115: J50 | E115: AVA | F115: NULL | G115: NULL | H115: NULL | I115: NULL | J115: NULL | K115: Total Company | L115: J50 | N115: J50 - Reg Bus Mgr - Spokane
A116: H04 | B116: H04 - Hydro Compliance | D116: J50 | E116: CEXO | F116: NULL | G116: NULL | H116: NULL | I116: NULL | J116: NULL | K116: CEO & President | L116: J50 | N116: J50 - Reg Bus Mgr - Spokane
A117: H07 | B117: H07 - Facilities Management | D117: J50 | E117: ESOL | F117: NULL | G117: NULL | H117: NULL | I117: NULL | J117: NULL | K117: Energy Solutions | L117: J50 | M117: Pat Lynch | N117: J50 - Reg Bus Mgr - Spokane
A118: H08 | B118: H08 - Energy Del Stratgic Proj | D118: J50 | E118: J50 | F118: NULL | G118: NULL | H118: NULL | I118: NULL | J118: NULL | K118: Reg Bus Mgr - Spokane | L118: J50 | M118: Pat Lynch | N118: J50 - Reg Bus Mgr - Spokane
A119: H14 | B119: H14 - Consumer Affairs | D119: J50 | E119: SUPP | F119: NULL | G119: NULL | H119: NULL | I119: NULL | J119: NULL | K119: Support | L119: J50 | M119: NULL | N119: J50 - Reg Bus Mgr - Spokane
A120: H50 | B120: H50 - Othello | D120: J50 | E120: VPCS | F120: NULL | G120: NULL | H120: NULL | I120: NULL | J120: NULL | K120: VP Customer Solutions | L120: J50 | M120: Kevin Christie | N120: J50 - Reg Bus Mgr - Spokane
A121: H51 | B121: H51 - Supply Chain Mgmt | D121: J50 | E121: VPUP | F121: NULL | G121: NULL | H121: NULL | I121: NULL | J121: NULL | K121: President & COO Avista Corp | L121: J50 | M121: Marian Durkin | N121: J50 - Reg Bus Mgr - Spokane
A122: H53 | B122: H53 - Kellogg | D122: J51 | E122: AVA | F122: NULL | G122: NULL | H122: NULL | I122: NULL | J122: NULL | K122: Total Company | L122: J51 | N122: J51 - Warehousing
A123: H54 | B123: H54 - AP/Remittance Services | D123: J51 | E123: CEXO | F123: NULL | G123: NULL | H123: NULL | I123: NULL | J123: NULL | K123: CEO & President | L123: J51 | N123: J51 - Warehousing
A124: H55 | B124: H55 - Fuels Management | D124: J51 | E124: J51 | F124: NULL | G124: NULL | H124: NULL | I124: NULL | J124: NULL | K124: Warehousing | L124: J51 | M124: April Spacek | N124: J51 - Warehousing
A125: I02 | B125: I02 - Craft Training | D125: J51 | E125: SERV | F125: NULL | G125: NULL | H125: NULL | I125: NULL | J125: NULL | K125: Shared Services | L125: J51 | M125: Dennis Vermillion | N125: J51 - Warehousing
A126: I08 | B126: I08 - Energy Delivery Operations Support | D126: J51 | E126: SUPP | F126: NULL | G126: NULL | H126: NULL | I126: NULL | J126: NULL | K126: Support | L126: J51 | M126: NULL | N126: J51 - Warehousing
A127: I50 | B127: I50 - Contact Center-IT | D127: J51 | E127: VPOP | F127: NULL | G127: NULL | H127: NULL | I127: NULL | J127: NULL | K127: VP Energy Delivery | L127: J51 | M127: Jason Thackston | N127: J51 - Warehousing
A128: I54 | B128: I54 - Tax Other Than Income | D128: J51 | E128: VPUP | F128: NULL | G128: NULL | H128: NULL | I128: NULL | J128: NULL | K128: President & COO Avista Corp | L128: J51 | M128: Marian Durkin | N128: J51 - Warehousing
A129: J01 | B129: J01 - SR VP & CFO | D129: J53 | E129: AVA | F129: NULL | G129: NULL | H129: NULL | I129: NULL | J129: NULL | K129: Total Company | L129: J53 | N129: J53 - Sandpoint/Bonners Ferry
A130: J02 | B130: J02 - Public Safety | D130: J53 | E130: CEXO | F130: NULL | G130: NULL | H130: NULL | I130: NULL | J130: NULL | K130: CEO & President | L130: J53 | N130: J53 - Sandpoint/Bonners Ferry
A131: J06 | B131: J06 - Joint Project Jackson Prairie | D131: J53 | E131: EAST | F131: NULL | G131: NULL | H131: NULL | I131: NULL | J131: NULL | K131: Director Operations - East | L131: J53 | M131: Greg Gfeller | N131: J53 - Sandpoint/Bonners Ferry
A132: J08 | B132: J08 - Gas Construction Quality Control | D132: J53 | E132: ELEC | F132: NULL | G132: NULL | H132: NULL | I132: NULL | J132: NULL | K132: Electric | L132: J53 | M132: NULL | N132: =VLOOKUP(L132,Table1,2) -> J53 - Sandpoint/Bonners Ferry
A133: J09 | B133: J09 - Network Systems | D133: J53 | E133: J53 | F133: NULL | G133: NULL | H133: NULL | I133: NULL | J133: NULL | K133: Sandpoint/Bonners Ferry | L133: J53 | M133: Jim Kane | N133: J53 - Sandpoint/Bonners Ferry
A134: J10 | B134: J10 - Utility Fin Central | D134: J53 | E134: VPOP | F134: NULL | G134: NULL | H134: NULL | I134: NULL | J134: NULL | K134: VP Energy Delivery | L134: J53 | M134: Jason Thackston | N134: J53 - Sandpoint/Bonners Ferry
A135: J11 | B135: J11 - Planning & Analysis | D135: J53 | E135: VPUP | F135: NULL | G135: NULL | H135: NULL | I135: NULL | J135: NULL | K135: President & COO Avista Corp | L135: J53 | M135: Marian Durkin | N135: J53 - Sandpoint/Bonners Ferry
A136: J29 | B136: J29 - Ntwk Sys Prod & Serv | D136: J54 | E136: AVA | F136: NULL | G136: NULL | H136: NULL | I136: NULL | J136: NULL | K136: Total Company | L136: J54 | N136: J54 - Internal Auditing
A137: J50 | B137: J50 - Reg Bus Mgr - Spokane | D137: J54 | E137: CEXO | F137: NULL | G137: NULL | H137: NULL | I137: NULL | J137: NULL | K137: CEO & President | L137: J54 | N137: J54 - Internal Auditing
A138: J51 | B138: J51 - Warehousing | D138: J54 | E138: EXEC | F138: NULL | G138: NULL | H138: NULL | I138: NULL | J138: NULL | K138: Executive Department Summary | L138: J54 | N138: J54 - Internal Auditing
A139: J53 | B139: J53 - Sandpoint/Bonners Ferry | D139: J54 | E139: J54 | F139: NULL | G139: NULL | H139: NULL | I139: NULL | J139: NULL | K139: Internal Auditing | L139: J54 | M139: Tracy Van Orden | N139: J54 - Internal Auditing
A140: J54 | B140: J54 - Internal Auditing | D140: J54 | E140: SUPP | F140: NULL | G140: NULL | H140: NULL | I140: NULL | J140: NULL | K140: Support | L140: J54 | M140: NULL | N140: J54 - Internal Auditing
A141: K02 | B141: K02 - Compensation | D141: K02 | E141: AVA | F141: NULL | G141: NULL | H141: NULL | I141: NULL | J141: NULL | K141: Total Company | L141: K02 | N141: K02 - Compensation
A142: K07 | B142: K07 - Kettle Falls Thermal | D142: K02 | E142: CEXO | F142: NULL | G142: NULL | H142: NULL | I142: NULL | J142: NULL | K142: CEO & President | L142: K02 | N142: K02 - Compensation
A143: K08 | B143: K08 - GIS Editing | D143: K02 | E143: K02 | F143: NULL | G143: NULL | H143: NULL | I143: NULL | J143: NULL | K143: Compensation | L143: K02 | M143: Dawnell Ellenson | N143: K02 - Compensation
A144: K14 | B144: K14 - Public Affairs | D144: A80 | E144: A80 | F144: NULL | G144: NULL | H144: NULL | I144: NULL | J144: NULL | K144: Director of OREG | L144: A80 | M144: NULL | N144: A80 - Director of ORCA
A145: K19 | B145: K19 - Customer Tech Ops | D145: A80 | E145: AVA | F145: CEXO | G145: VPUP | H145: VPOP | I145: NGAS | J145: A80 | K145: Total Company | L145: A80 | M145: NULL | N145: A80 - Director of ORCA
A146: K39 | B146: K39 - Gen Custom App Dev | D146: A80 | E146: CEXO | F146: VPUP | G146: VPOP | H146: NGAS | I146: A80 | J146: NULL | K146: CEO & President | L146: A80 | M146: NULL | N146: A80 - Director of ORCA
A147: K50 | B147: K50 - Old RC - Conversion | D147: A80 | E147: NGAS | F147: A80 | G147: NULL | H147: NULL | I147: NULL | J147: NULL | K147: Natural Gas Operations | L147: A80 | M147: Mike Faulkenberry | N147: A80 - Director of ORCA
A148: K51 | B148: K51 - Fleet Management | D148: A80 | E148: VPOP | F148: NGAS | G148: A80 | H148: NULL | I148: NULL | J148: NULL | K148: VP Operations | L148: A80 | M148: NULL | N148: A80 - Director of ORCA
A149: K53 | B149: K53 - Contact Ctr-CDA | D149: A80 | E149: VPUP | F149: VPOP | G149: NGAS | H149: A80 | I149: NULL | J149: NULL | K149: President & COO Avista Corp | L149: A80 | M149: Dennis Vermillion | N149: A80 - Director of ORCA
A150: K54 | B150: K54 - Financial Systems Project | D150: K02 | E150: SUPP | F150: NULL | G150: NULL | H150: NULL | I150: NULL | J150: NULL | K150: Support | L150: K02 | M150: NULL | N150: K02 - Compensation
A151: L02 | B151: L02 - SG Workforce Training | D151: K02 | E151: VPHR | F151: NULL | G151: NULL | H151: NULL | I151: NULL | J151: NULL | K151: Sr. VP Human Resources | L151: K02 | M151: Heather Rosentrater | N151: K02 - Compensation
A152: L07 | B152: L07 - Clarkfork Hydro | D152: K07 | E152: 0007 | F152: NULL | G152: NULL | H152: NULL | I152: NULL | J152: NULL | K152: Gen Prod Sub Support | L152: K07 | M152: Andy Vickers | N152: K07 - Kettle Falls Thermal
A153: L08 | B153: L08 - Transmission Design | D153: K07 | E153: AVA | F153: NULL | G153: NULL | H153: NULL | I153: NULL | J153: NULL | K153: Total Company | L153: K07 | N153: K07 - Kettle Falls Thermal
A154: L39 | B154: L39 - Nucleus Development | D154: K07 | E154: CEXO | F154: NULL | G154: NULL | H154: NULL | I154: NULL | J154: NULL | K154: CEO & President | L154: K07 | N154: K07 - Kettle Falls Thermal
A155: L50 | B155: L50 - Spokane Gas | D155: K07 | E155: K07 | F155: NULL | G155: NULL | H155: NULL | I155: NULL | J155: NULL | K155: Thermal Oper and Maint | L155: K07 | M155: Tom Dempsey | N155: K07 - Kettle Falls Thermal
A156: L51 | B156: L51 - Claims | D156: K07 | E156: SUPP | F156: NULL | G156: NULL | H156: NULL | I156: NULL | J156: NULL | K156: Support | L156: K07 | M156: NULL | N156: K07 - Kettle Falls Thermal
A157: L52 | B157: L52 - Claims Accrual | D157: K07 | E157: VPPS | F157: NULL | G157: NULL | H157: NULL | I157: NULL | J157: NULL | K157: Sr. VP Energy Resources | L157: K07 | M157: Kelly Norwood | N157: K07 - Kettle Falls Thermal
A158: L53 | B158: L53 - CDA | D158: K07 | E158: VPUP | F158: NULL | G158: NULL | H158: NULL | I158: NULL | J158: NULL | K158: President & COO Avista Corp | L158: K07 | M158: Marian Durkin | N158: K07 - Kettle Falls Thermal
A159: L54 | B159: L54 - Travel & Flight Operations | D159: K08 | E159: AVA | F159: NULL | G159: NULL | H159: NULL | I159: NULL | J159: NULL | K159: Total Company | L159: K08 | N159: K08 - GIS Editing
A160: M07 | B160: M07 - Mechanical/Structural Shop | D160: K08 | E160: CEXO | F160: NULL | G160: NULL | H160: NULL | I160: NULL | J160: NULL | K160: CEO & President | L160: K08 | N160: K08 - GIS Editing
A161: M08 | B161: M08 - Substation Design | D161: K08 | E161: ENGR | F161: NULL | G161: NULL | H161: NULL | I161: NULL | J161: NULL | K161: Electric Engineering | L161: K08 | M161: David Howell | N161: K08 - GIS Editing
A162: M09 | B162: M09 - Central Systems | D162: K08 | E162: K08 | F162: NULL | G162: NULL | H162: NULL | I162: NULL | J162: NULL | K162: GIS Editing | L162: K08 | M162: Lamont Miles | N162: K08 - GIS Editing
A163: M11 | B163: M11 - EAM Technology | D163: K08 | E163: SUPP | F163: NULL | G163: NULL | H163: NULL | I163: NULL | J163: NULL | K163: Support | L163: K08 | M163: NULL | N163: K08 - GIS Editing
A164: M19 | B164: M19 - Central Systems Ops | D164: K08 | E164: VPOP | F164: NULL | G164: NULL | H164: NULL | I164: NULL | J164: NULL | K164: VP Energy Delivery | L164: K08 | M164: Jason Thackston | N164: K08 - GIS Editing
A165: M29 | B165: M29 - Cntrl Syst Prod & Serv | D165: K08 | E165: VPUP | F165: NULL | G165: NULL | H165: NULL | I165: NULL | J165: NULL | K165: President & COO Avista Corp | L165: K08 | M165: Marian Durkin | N165: K08 - GIS Editing
A166: M50 | B166: M50 - Deer Park | D166: K19 | E166: APPS | F166: NULL | G166: NULL | H166: NULL | I166: NULL | J166: NULL | K166: Applications Summary | L166: K19 | M166: Hossein Nikdel | N166: K19 - Customer Tech Ops
A167: M51 | B167: M51 - Asset Maintenance | D167: K19 | E167: AVA | F167: NULL | G167: NULL | H167: NULL | I167: NULL | J167: NULL | K167: Total Company | L167: K19 | N167: K19 - Customer Tech Ops
A168: M53 | B168: M53 - Business Entrepreneurial Network | D168: K19 | E168: CEXO | F168: NULL | G168: NULL | H168: NULL | I168: NULL | J168: NULL | K168: CEO & President | L168: K19 | N168: K19 - Customer Tech Ops
A169: M54 | B169: M54 - Business Development | D169: K19 | E169: INFO | F169: NULL | G169: NULL | H169: NULL | I169: NULL | J169: NULL | K169: VP Info & Security | L169: K19 | M169: Jim Kensok | N169: K19 - Customer Tech Ops
A170: N06 | B170: N06 - Joint Project-Colstrip | D170: K19 | E170: ISOP | F170: NULL | G170: NULL | H170: NULL | I170: NULL | J170: NULL | K170: IS Operations Rollup | L170: K19 | M170: Hossein Nikdel | N170: K19 - Customer Tech Ops
A171: N07 | B171: N07 - Utility Environ Compliance | D171: A84 | E171: A84 | F171: NULL | G171: NULL | H171: NULL | I171: NULL | J171: NULL | K171: South Lake Tahoe | L171: A84 | M171: NULL | N171: A84 -South Lake Tahoe
A172: N08 | B172: N08 - Drafting & Survey | D172: A84 | E172: AVA | F172: CEXO | G172: VPUP | H172: VPOP | I172: NGAS | J172: A84 | K172: Total Company | L172: A84 | M172: NULL | N172: A84 -South Lake Tahoe
A173: N09 | B173: N09 - Office of CIO | D173: A84 | E173: CEXO | F173: VPUP | G173: VPOP | H173: NGAS | I173: A84 | J173: NULL | K173: CEO & President | L173: A84 | M173: NULL | N173: A84 -South Lake Tahoe
A174: N50 | B174: N50 - Director of Customer Service | D174: A84 | E174: VPOP | F174: NGAS | G174: A84 | H174: NULL | I174: NULL | J174: NULL | K174: VP Operations | L174: A84 | M174: NULL | N174: A84 -South Lake Tahoe
A175: N51 | B175: N51 - Write-Off Accrual | D175: K19 | E175: K19 | F175: NULL | G175: NULL | H175: NULL | I175: NULL | J175: NULL | K175: Customer Technology Operations | L175: K19 | M175: Jason Pitts | N175: K19 - Customer Tech Ops
A176: N52 | B176: N52 - Compass Replace Project | D176: K19 | E176: SUPP | F176: NULL | G176: NULL | H176: NULL | I176: NULL | J176: NULL | K176: Support | L176: K19 | M176: NULL | N176: K19 - Customer Tech Ops
A177: N53 | B177: N53 - AM Spokane West | D177: K19 | E177: VPUP | F177: NULL | G177: NULL | H177: NULL | I177: NULL | J177: NULL | K177: President & COO Avista Corp | L177: K19 | M177: Marian Durkin | N177: K19 - Customer Tech Ops
A178: N54 | B178: N54 - Strategic Initiatives | D178: K39 | E178: APPS | F178: NULL | G178: NULL | H178: NULL | I178: NULL | J178: NULL | K178: Applications Summary | L178: K39 | M178: Hossein Nikdel | N178: K39 - Gen Custom App Dev
A179: P01 | B179: P01 - Legal Expenses | D179: K39 | E179: AVA | F179: NULL | G179: NULL | H179: NULL | I179: NULL | J179: NULL | K179: Total Company | L179: K39 | N179: K39 - Gen Custom App Dev
A180: P03 | B180: P03 - Energy Deliver Tech Proj | D180: K39 | E180: CEXO | F180: NULL | G180: NULL | H180: NULL | I180: NULL | J180: NULL | K180: CEO & President | L180: K39 | N180: K39 - Gen Custom App Dev
A181: P07 | B181: P07 - Contract and Proj Mgmt | D181: I50 | E181: VPUP | F181: NULL | G181: NULL | H181: NULL | I181: NULL | J181: NULL | K181: President & COO Avista Corp | L181: I50 | M181: Marian Durkin | N181: I50 - Contact Center-IT
A182: P08 | B182: P08 - Distribution Oper Sys | D182: I54 | E182: ACCT | F182: NULL | G182: NULL | H182: NULL | I182: NULL | J182: NULL | K182: Accounting Items | L182: I54 | M182: Adam Munson | N182: I54 - Tax Other Than Income
A183: P09 | B183: P09 - Project Management | D183: I54 | E183: AVA | F183: NULL | G183: NULL | H183: NULL | I183: NULL | J183: NULL | K183: Total Company | L183: I54 | N183: I54 - Tax Other Than Income
A184: P50 | B184: P50 - Davenport | D184: I54 | E184: CEXO | F184: NULL | G184: NULL | H184: NULL | I184: NULL | J184: NULL | K184: CEO & President | L184: I54 | N184: I54 - Tax Other Than Income
A185: P51 | B185: P51 - Distribution Dispatch | D185: I54 | E185: I54 | F185: NULL | G185: NULL | H185: NULL | I185: NULL | J185: NULL | K185: Taxes Other Than Income | L185: I54 | M185: Don Falkner | N185: I54 - Tax Other Than Income
A186: P53 | B186: P53 - AM Moscow/Pullman | D186: I54 | E186: SUPP | F186: NULL | G186: NULL | H186: NULL | I186: NULL | J186: NULL | K186: Support | L186: I54 | M186: NULL | N186: I54 - Tax Other Than Income
A187: P59 | B187: P59 - Tech Service Center | D187: J01 | E187: AVA | F187: NULL | G187: NULL | H187: NULL | I187: NULL | J187: NULL | K187: Total Company | L187: J01 | N187: J01 - SR VP & CFO
A188: P99 | B188: P99 - IT Director | D188: K39 | E188: INFO | F188: NULL | G188: NULL | H188: NULL | I188: NULL | J188: NULL | K188: VP Info & Security | L188: K39 | M188: Jim Kensok | N188: K39 - Gen Custom App Dev
A189: Q19 | B189: Q19 - Qlty Assur & Rel Mgmt | D189: K39 | E189: ISDV | F189: NULL | G189: NULL | H189: NULL | I189: NULL | J189: NULL | K189: IS Development Rollup | L189: K39 | M189: Hossein Nikdel | N189: K39 - Gen Custom App Dev
A190: R03 | B190: R03 - Avista Energy | D190: K39 | E190: K39 | F190: NULL | G190: NULL | H190: NULL | I190: NULL | J190: NULL | K190: General Custom Application Development | L190: K39 | M190: Graham Smith | N190: K39 - Gen Custom App Dev
A191: R09 | B191: R09 - Communicated Systems | D191: K39 | E191: SUPP | F191: NULL | G191: NULL | H191: NULL | I191: NULL | J191: NULL | K191: Support | L191: K39 | M191: NULL | N191: K39 - Gen Custom App Dev
A192: R11 | B192: R11 - Rates & Regulations | D192: K39 | E192: VPUP | F192: NULL | G192: NULL | H192: NULL | I192: NULL | J192: NULL | K192: President & COO Avista Corp | L192: K39 | M192: Marian Durkin | N192: K39 - Gen Custom App Dev
A193: R19 | B193: R19 - Comm Systems Ops | D193: K51 | E193: AVA | F193: NULL | G193: NULL | H193: NULL | I193: NULL | J193: NULL | K193: Total Company | L193: K51 | N193: K51 - Fleet Management
A194: R29 | B194: R29 - Comm Sys Prod & Serv | D194: K51 | E194: CEXO | F194: NULL | G194: NULL | H194: NULL | I194: NULL | J194: NULL | K194: CEO & President | L194: K51 | N194: K51 - Fleet Management
A195: R50 | B195: R50 - Spokane Construction Engineering | D195: K51 | E195: K51 | F195: NULL | G195: NULL | H195: NULL | I195: NULL | J195: NULL | K195: Fleet Management | L195: K51 | M195: Greg Loew | N195: K51 - Fleet Management
A196: R51 | B196: R51 - Joint Use Projects-Distribution | D196: K51 | E196: SERV | F196: NULL | G196: NULL | H196: NULL | I196: NULL | J196: NULL | K196: Shared Services | L196: K51 | M196: Dennis Vermillion | N196: =VLOOKUP(L196,Table1,2) -> K51 - Fleet Management
A197: R53 | B197: R53 - Grangeville | D197: K51 | E197: SUPP | F197: NULL | G197: NULL | H197: NULL | I197: NULL | J197: NULL | K197: Support | L197: K51 | M197: NULL | N197: K51 - Fleet Management
A198: R54 | B198: R54 - Risk Management | D198: K51 | E198: VPOP | F198: NULL | G198: NULL | H198: NULL | I198: NULL | J198: NULL | K198: VP Energy Delivery | L198: K51 | M198: Jason Thackston | N198: K51 - Fleet Management
A199: R55 | B199: R55 - Resource Risk Mgmt | D199: K51 | E199: VPUP | F199: NULL | G199: NULL | H199: NULL | I199: NULL | J199: NULL | K199: President & COO Avista Corp | L199: K51 | M199: Marian Durkin | N199: K51 - Fleet Management
A200: R56 | B200: R56 - Insurance | D200: K53 | E200: AVA | F200: NULL | G200: NULL | H200: NULL | I200: NULL | J200: NULL | K200: Total Company | L200: K53 | N200: K53 - Contact Ctr-CDA
... 3831 more rows

Sheet Macro1 (hidden)
A1: Macro1 | B1: Auto_Open
A2: =ALIGNMENT(2,FALSE,1,0,FALSE) -> TRUE | B2: =ERROR(2,Recover) -> TRUE
A3: =BORDER(0,0,0,0,0,0,0,0,0,0,0) -> TRUE | B3: =WORKBOOK.SELECT("Sheet 1") -> TRUE
A4: =PATTERNS(1,0,2,TRUE) -> TRUE | B4: =WINDOW.RESTORE() -> TRUE
A5: =FORMAT.FONT("Arial",10,FALSE,FALSE,FALSE,FALSE,1,FALSE,FALSE) -> TRUE | B5: =WINDOW.SIZE(82.5,42.75) -> TRUE
A6: =RETURN() -> TRUE | B6: =WORKBOOK.HIDE("Macro1",TRUE) -> TRUE
B7: =EDIT.COLOR(1,0,0,0) -> TRUE
A8: Macro2 | B8: =EDIT.COLOR(3,255,0,0) -> TRUE
A9: =ALIGNMENT(4,FALSE,1,0,FALSE) -> TRUE | B9: =EDIT.COLOR(5,204,204,204) -> TRUE
A10: =BORDER(0,0,0,0,0,0,0,0,0,0,0) -> TRUE | B10: =EDIT.COLOR(4,212,212,212) -> TRUE
A11: =PATTERNS(1,0,2,TRUE) -> TRUE | B11: =EDIT.COLOR(2,255,255,255) -> TRUE
A12: =FORMAT.FONT("Arial",10,FALSE,FALSE,FALSE,FALSE,1,FALSE,FALSE) -> TRUE | B12: =RUN("Macro6") -> 
A13: =RETURN() -> TRUE | B13: =DELETE.NAME("Auto_Open") -> TRUE
B14: =WORKBOOK.SELECT("Sheet 1") -> TRUE
A15: Macro3 | B15: =SELECT("R1:R16384") -> TRUE
A16: =ALIGNMENT(2,FALSE,1,0,FALSE) -> TRUE | B16: =COLUMN.WIDTH(,,,3) -> TRUE
A17: =BORDER(0,0,0,0,0,0,0,0,0,0,0) -> TRUE | B17: =ROW.HEIGHT(,,,3) -> TRUE
A18: =PATTERNS(1,0,5,TRUE) -> TRUE | B18: =SELECT("R1C1") -> TRUE
A19: =FORMAT.FONT("Arial",10,FALSE,FALSE,FALSE,FALSE,1,FALSE,FALSE) -> TRUE | B19: =WINDOW.MAXIMIZE() -> TRUE
A20: =RETURN() -> TRUE | B20: =RETURN() -> TRUE
A22: Macro4
A23: =ALIGNMENT(4,FALSE,1,0,FALSE) -> TRUE
A24: =BORDER(0,0,0,0,0,0,0,0,0,0,0) -> TRUE
A25: =PATTERNS(1,0,5,TRUE) -> TRUE
A26: =FORMAT.FONT("Arial",10,FALSE,FALSE,FALSE,FALSE,1,FALSE,FALSE) -> TRUE
A27: =RETURN() -> TRUE
A29: Macro5
A30: =ALIGNMENT(2,FALSE,1,0,FALSE) -> TRUE
A31: =BORDER(0,0,0,0,0,0,0,0,0,0,0) -> TRUE
A32: =PATTERNS(1,0,2,TRUE) -> TRUE
A33: =FORMAT.FONT("Arial",10,FALSE,FALSE,FALSE,FALSE,1,FALSE,FALSE) -> TRUE
A34: =RETURN() -> TRUE
A36: Macro6
A37: =WORKBOOK.SELECT("Sheet 1") -> TRUE
A38: =SELECT("R2C1:R717C4,R2C10:R717C10") -> TRUE
A39: =RUN("Macro1") -> 
A40: =SELECT("R2C5:R717C9") -> TRUE
A41: =RUN("Macro2") -> 
A42: =SELECT("R2C5:R717C5,R2C6:R717C6,R2C7:R717C7,R2C8:R717C8,R2C9:R717C9") -> TRUE
A43: =FORMAT.NUMBER("#,###,###,###,###.00") -> TRUE
A44: =SELECT("R717C5,R717C6,R717C7,R717C8,R717C9") -> TRUE
A45: =FORMAT.NUMBER("""Sum: ""#,###,###,###,###.00;""Sum: ""-#,###,###,###,###.00") -> TRUE
A46: =SELECT("R1C1:R1C4,R1C10") -> TRUE
A47: =RUN("Macro3") -> 
A48: =SELECT("R1C5:R1C9") -> TRUE
A49: =RUN("Macro4") -> 
A50: =SELECT("R717C5,R717C6,R717C7,R717C8,R717C9") -> TRUE
A51: =RUN("Macro5") -> 
A52: =RETURN() -> TRUE
A54: Recover
A55: =GOTO(ABSREF("R[1]C[0]",LAST.ERROR())) -> FALSE
A56: =RETURN() -> TRUE
